Ref No,Fund Type,Dept,Cost Centre Description    ,Description    ,Creditor Name    ,GL Code Net Amount,Payment date        
2,Revenue,CAHD,Bed Purchasing - North,Permanent Nursing,.,3294.28, 01-Aug-2017
3,Revenue,CAHD,South Glos Users in South Glos Homes,Permanent Nursing,.,5848.21, 29-Aug-2017
4,Revenue,CAHD,South Glos Users in South Glos Homes,Permanent Nursing,.,2990.25, 29-Aug-2017
5,Revenue,CAHD,Bed Purchasing - North,Permanent Nursing,.,3294.28, 29-Aug-2017
6,Revenue,CAHD,South Glos Users in South Glos Homes,Permanent Nursing,.,620.20, 29-Aug-2017
7,Revenue,CAHD,Bed Purchasing - Elderly S117- North,Permanent Nursing,.,15600.20, 01-Aug-2017
8,Revenue,CAHD,Bed Purchasing - Elderly S117- North,Fees & Charges Income - General,.,700.00, 01-Aug-2017
9,Revenue,CAHD,Bed Purchasing - North,Permanent Nursing,.,4457.20, 01-Aug-2017
10,Revenue,CAHD,South Glos Users in South Glos Homes,Permanent Nursing,.,620.20, 01-Aug-2017
11,Revenue,CAHD,Bed Purchasing - Elderly S117- North,Fees & Charges Income - General,.,640.00, 01-Aug-2017
12,Revenue,CAHD,Bed Purchasing - North,Permanent Nursing,.,15600.20, 01-Aug-2017
13,Revenue,CAHD,Bed Purchasing - Elderly S117- North,Fees & Charges Income - General,.,1574.99, 01-Aug-2017
14,Revenue,CAHD,Bed Purchasing - Elderly S117- North,Fees & Charges Income - General,.,593.33, 01-Aug-2017
15,Revenue,CAHD,Bed Purchasing - North,Permanent Nursing,.,4457.20, 29-Aug-2017
16,Revenue,CAHD,South Glos Users in South Glos Homes,Permanent Nursing,.,620.20, 29-Aug-2017
17,Revenue,CAHD,Bed Purchasing - South,Permanent Nursing,.,3349.56, 01-Aug-2017
18,Revenue,CAHD,South Glos Users in South Glos Homes,Permanent Nursing,.,620.20, 01-Aug-2017
19,Revenue,CAHD,Bed Purchasing - South,Permanent Nursing,.,3349.56, 29-Aug-2017
20,Revenue,CAHD,South Glos Users in South Glos Homes,Permanent Nursing,.,620.20, 29-Aug-2017
21,Revenue,CAHD,Bed Purchasing - North,Permanent Nursing,.,3294.28, 01-Aug-2017
22,Revenue,CAHD,South Glos Users in South Glos Homes,Permanent Nursing,.,620.20, 01-Aug-2017
23,Revenue,CAHD,Bed Purchasing - North,Permanent Nursing,.,3294.28, 29-Aug-2017
24,Revenue,CAHD,South Glos Users in South Glos Homes,Permanent Nursing,.,620.20, 29-Aug-2017
25,Revenue,CAHD,South Glos Users in South Glos Homes,Permanent Nursing,.,620.20, 01-Aug-2017
26,Revenue,CAHD,South Glos Users in South Glos Homes,Permanent Nursing,.,575.90, 01-Aug-2017
27,Revenue,CAHD,South Glos Users in South Glos Homes,Permanent Nursing,.,620.20, 29-Aug-2017
28,Revenue,CAHD,Bed Purchasing - South,Permanent Nursing,.,3294.28, 01-Aug-2017
29,Revenue,CAHD,South Glos Users in South Glos Homes,Permanent Nursing,.,620.20, 01-Aug-2017
30,Revenue,CAHD,Bed Purchasing - South,Permanent Nursing,.,3294.28, 29-Aug-2017
31,Revenue,CAHD,South Glos Users in South Glos Homes,Permanent Nursing,.,620.20, 29-Aug-2017
32,Revenue,CAHD,Bed Purchasing - Southmead Hospital,Permanent Nursing,.,4800.00, 01-Aug-2017
33,Revenue,CAHD,South Glos Users in South Glos Homes,Permanent Nursing,.,620.20, 01-Aug-2017
34,Revenue,CAHD,Bed Purchasing - Southmead Hospital,Permanent Nursing,.,4800.00, 29-Aug-2017
35,Revenue,CAHD,South Glos Users in South Glos Homes,Permanent Nursing,.,620.20, 29-Aug-2017
36,Revenue,CAHD,South Glos Users in South Glos Homes,Permanent Nursing,.,620.20, 01-Aug-2017
37,Revenue,CAHD,South Glos Users in South Glos Homes,Permanent Nursing,.,620.20, 29-Aug-2017
38,Revenue,CAHD,Bed Purchasing - North,Permanent Residential,.,4254.60, 01-Aug-2017
39,Revenue,CAHD,South Glos Users in South Glos Homes,Permanent Nursing,.,620.20, 01-Aug-2017
40,Revenue,CAHD,Bed Purchasing - North,Permanent Residential,.,4254.60, 29-Aug-2017
41,Revenue,CAHD,South Glos Users in South Glos Homes,Permanent Nursing,.,620.20, 29-Aug-2017
42,Revenue,CAHD,Bed Purchasing - South,Permanent Nursing,.,3621.48, 01-Aug-2017
43,Revenue,CAHD,South Glos Users in South Glos Homes,Permanent Nursing,.,620.20, 01-Aug-2017
44,Revenue,CAHD,Bed Purchasing - South,Permanent Nursing,.,3621.48, 29-Aug-2017
45,Revenue,CAHD,South Glos Users in South Glos Homes,Permanent Nursing,.,620.20, 29-Aug-2017
46,Revenue,CAHD,Bed Purchasing - North,Permanent Nursing,.,5039.68, 01-Aug-2017
47,Revenue,CAHD,South Glos Users in South Glos Homes,Permanent Nursing,.,620.20, 01-Aug-2017
48,Revenue,CAHD,Bed Purchasing - North,Permanent Nursing,.,5039.68, 29-Aug-2017
49,Revenue,CAHD,South Glos Users in South Glos Homes,Permanent Nursing,.,620.20, 29-Aug-2017
50,Revenue,CAHD,Bed Purchasing - South,Permanent Nursing,.,3824.08, 01-Aug-2017
51,Revenue,CAHD,South Glos Users in South Glos Homes,Permanent Nursing,.,620.20, 01-Aug-2017
52,Revenue,CAHD,Bed Purchasing - South,Permanent Nursing,.,3824.08, 29-Aug-2017
53,Revenue,CAHD,South Glos Users in South Glos Homes,Permanent Nursing,.,620.20, 29-Aug-2017
54,Revenue,CAHD,Bed Purchasing - Southmead Hospital,Permanent Nursing,.,3824.08, 01-Aug-2017
55,Revenue,CAHD,South Glos Users in South Glos Homes,Permanent Nursing,.,620.20, 01-Aug-2017
56,Revenue,CAHD,Bed Purchasing - Southmead Hospital,Permanent Nursing,.,3824.08, 29-Aug-2017
57,Revenue,CAHD,South Glos Users in South Glos Homes,Permanent Nursing,.,620.20, 29-Aug-2017
58,Revenue,CAHD,South Glos Users in South Glos Homes,Permanent Nursing,.,620.20, 01-Aug-2017
59,Revenue,CAHD,South Glos Users in South Glos Homes,Permanent Nursing,.,620.20, 29-Aug-2017
60,Revenue,CAHD,South Glos Users in South Glos Homes,Permanent Nursing,.,620.20, 01-Aug-2017
61,Revenue,CAHD,South Glos Users in South Glos Homes,Permanent Nursing,.,620.20, 29-Aug-2017
62,Revenue,CAHD,South Glos Users in South Glos Homes,Permanent Nursing,.,620.20, 01-Aug-2017
63,Revenue,CAHD,South Glos Users in South Glos Homes,Permanent Nursing,.,620.20, 29-Aug-2017
64,Revenue,CAHD,South Glos Users in South Glos Homes,Permanent Nursing,.,620.20, 01-Aug-2017
65,Revenue,CAHD,South Glos Users in South Glos Homes,Permanent Nursing,.,620.20, 29-Aug-2017
66,Revenue,CAHD,South Glos Users in South Glos Homes,Permanent Nursing,.,620.20, 01-Aug-2017
67,Revenue,CAHD,South Glos Users in South Glos Homes,Permanent Nursing,.,620.20, 29-Aug-2017
68,Revenue,CAHD,Bed Purchasing - North,Permanent Nursing,.,4228.56, 01-Aug-2017
69,Revenue,CAHD,South Glos Users in South Glos Homes,Permanent Nursing,.,620.20, 01-Aug-2017
70,Revenue,CAHD,Bed Purchasing - North,Permanent Nursing,.,4228.56, 29-Aug-2017
71,Revenue,CAHD,South Glos Users in South Glos Homes,Permanent Nursing,.,620.20, 29-Aug-2017
72,Revenue,CAHD,South Glos Users in South Glos Homes,Permanent Nursing,.,1661.25, 29-Aug-2017
73,Revenue,CAHD,South Glos Users in South Glos Homes,Permanent Nursing,.,620.20, 29-Aug-2017
74,Revenue,CAHD,South Glos Users in South Glos Homes,Permanent Nursing,.,620.20, 01-Aug-2017
75,Revenue,CAHD,South Glos Users in South Glos Homes,Permanent Nursing,.,620.20, 29-Aug-2017
76,Revenue,CAHD,South Glos Users in South Glos Homes,Permanent Nursing,.,620.20, 01-Aug-2017
77,Revenue,CAHD,South Glos Users in South Glos Homes,Permanent Nursing,.,620.20, 29-Aug-2017
78,Revenue,CAHD,South Glos Users in South Glos Homes,Permanent Nursing,.,620.20, 01-Aug-2017
79,Revenue,CAHD,South Glos Users in South Glos Homes,Permanent Nursing,.,620.20, 29-Aug-2017
80,Revenue,CAHD,South Glos Users in South Glos Homes,Permanent Nursing,.,620.20, 01-Aug-2017
81,Revenue,CAHD,South Glos Users in South Glos Homes,Permanent Nursing,.,620.20, 29-Aug-2017
82,Revenue,CAHD,South Glos Users in South Glos Homes,Permanent Nursing,.,620.20, 01-Aug-2017
83,Revenue,CAHD,South Glos Users in South Glos Homes,Permanent Nursing,.,620.20, 29-Aug-2017
84,Revenue,CAHD,South Glos Users in South Glos Homes,Permanent Nursing,.,620.20, 01-Aug-2017
85,Revenue,CAHD,South Glos Users in South Glos Homes,Permanent Nursing,.,620.20, 29-Aug-2017
86,Revenue,CAHD,South Glos Users in South Glos Homes,Permanent Nursing,.,620.20, 01-Aug-2017
87,Revenue,CAHD,South Glos Users in South Glos Homes,Permanent Nursing,.,620.20, 29-Aug-2017
88,Revenue,CAHD,South Glos Users in South Glos Homes,Permanent Nursing,.,620.20, 01-Aug-2017
89,Revenue,CAHD,South Glos Users in South Glos Homes,Permanent Nursing,.,620.20, 29-Aug-2017
90,Revenue,CAHD,South Glos Users in South Glos Homes,Permanent Nursing,.,620.20, 01-Aug-2017
91,Revenue,CAHD,South Glos Users in South Glos Homes,Permanent Nursing,.,620.20, 29-Aug-2017
92,Revenue,CAHD,South Glos Users in South Glos Homes,Permanent Nursing,.,620.20, 01-Aug-2017
93,Revenue,CAHD,South Glos Users in South Glos Homes,Permanent Nursing,.,620.20, 29-Aug-2017
94,Revenue,CAHD,South Glos Users in South Glos Homes,Permanent Nursing,.,620.20, 01-Aug-2017
95,Revenue,CAHD,South Glos Users in South Glos Homes,Permanent Nursing,.,620.20, 29-Aug-2017
96,Revenue,CAHD,South Glos Users in South Glos Homes,Permanent Nursing,.,620.20, 01-Aug-2017
97,Revenue,CAHD,South Glos Users in South Glos Homes,Permanent Nursing,.,620.20, 29-Aug-2017
98,Revenue,CAHD,South Glos Users in South Glos Homes,Permanent Nursing,.,620.20, 01-Aug-2017
99,Revenue,CAHD,South Glos Users in South Glos Homes,Permanent Nursing,.,620.20, 29-Aug-2017
100,Revenue,CAHD,South Glos Users in South Glos Homes,Permanent Nursing,.,620.20, 01-Aug-2017
101,Revenue,CAHD,South Glos Users in South Glos Homes,Permanent Nursing,.,620.20, 29-Aug-2017
102,Revenue,CAHD,South Glos Users in South Glos Homes,Permanent Nursing,.,620.20, 01-Aug-2017
103,Revenue,CAHD,South Glos Users in South Glos Homes,Permanent Nursing,.,620.20, 29-Aug-2017
104,Revenue,CAHD,South Glos Users in South Glos Homes,Permanent Nursing,.,686.65, 29-Aug-2017
105,Revenue,CAHD,South Glos Users in South Glos Homes,Permanent Nursing,.,620.20, 29-Aug-2017
106,Revenue,CAHD,South Glos Users in South Glos Homes,Permanent Nursing,.,620.20, 01-Aug-2017
107,Revenue,CAHD,South Glos Users in South Glos Homes,Permanent Nursing,.,620.20, 29-Aug-2017
108,Revenue,CAHD,South Glos Users in South Glos Homes,Permanent Nursing,.,620.20, 01-Aug-2017
109,Revenue,CAHD,South Glos Users in South Glos Homes,Permanent Nursing,.,620.20, 01-Aug-2017
110,Revenue,CAHD,South Glos Users in South Glos Homes,Permanent Nursing,.,620.20, 29-Aug-2017
111,Revenue,CAHD,South Glos Users in South Glos Homes,Permanent Nursing,.,620.20, 01-Aug-2017
112,Revenue,CAHD,South Glos Users in South Glos Homes,Permanent Nursing,.,620.20, 29-Aug-2017
113,Revenue,CAHD,South Glos Users in South Glos Homes,Permanent Nursing,.,620.20, 01-Aug-2017
114,Revenue,CAHD,South Glos Users in South Glos Homes,Permanent Nursing,.,620.20, 29-Aug-2017
115,Revenue,CAHD,South Glos Users in South Glos Homes,Permanent Nursing,.,620.20, 01-Aug-2017
116,Revenue,CAHD,South Glos Users in South Glos Homes,Permanent Nursing,.,620.20, 29-Aug-2017
117,Revenue,CAHD,South Glos Users in South Glos Homes,Permanent Nursing,.,620.20, 01-Aug-2017
118,Revenue,CAHD,South Glos Users in South Glos Homes,Permanent Nursing,.,620.20, 29-Aug-2017
119,Revenue,CAHD,South Glos Users in South Glos Homes,Permanent Nursing,.,620.20, 01-Aug-2017
120,Revenue,CAHD,South Glos Users in South Glos Homes,Permanent Nursing,.,620.20, 29-Aug-2017
121,Revenue,CAHD,South Glos Users in South Glos Homes,Permanent Nursing,.,620.20, 29-Aug-2017
122,Revenue,CAHD,South Glos Users in South Glos Homes,Permanent Nursing,.,575.90, 29-Aug-2017
123,Revenue,CAHD,Bed Purchasing - Southmead Hospital,Permanent Residential,.,10528.57, 01-Aug-2017
124,Revenue,CAHD,Bed Purchasing - Southmead Hospital,Permanent Residential,.,4400.00, 01-Aug-2017
125,Revenue,CAHD,South Glos Users in South Glos Homes,Permanent Nursing,.,1484.05, 01-Aug-2017
126,Revenue,CAHD,South Glos Users in South Glos Homes,Permanent Nursing,.,620.20, 01-Aug-2017
127,Revenue,CAHD,Bed Purchasing - Southmead Hospital,Fees & Charges Income - General,.,1267.67, 01-Aug-2017
128,Revenue,CAHD,Bed Purchasing - Southmead Hospital,Permanent Residential,.,4400.00, 29-Aug-2017
129,Revenue,CAHD,South Glos Users in South Glos Homes,Permanent Nursing,.,620.20, 29-Aug-2017
130,Revenue,CAHD,South Glos Users in South Glos Homes,Permanent Nursing,.,620.20, 01-Aug-2017
131,Revenue,CAHD,South Glos Users in South Glos Homes,Permanent Nursing,.,620.20, 29-Aug-2017
132,Revenue,CAHD,Bed Purchasing - North,Permanent Nursing,.,3114.96, 01-Aug-2017
133,Revenue,CAHD,South Glos Users in South Glos Homes,Permanent Nursing,.,620.20, 01-Aug-2017
134,Revenue,CAHD,Bed Purchasing - North,Permanent Nursing,.,3114.96, 29-Aug-2017
135,Revenue,CAHD,South Glos Users in South Glos Homes,Permanent Nursing,.,620.20, 29-Aug-2017
136,Revenue,CAHD,Bed Purchasing - South,Permanent Nursing,.,3779.80, 01-Aug-2017
137,Revenue,CAHD,South Glos Users in South Glos Homes,Permanent Nursing,.,620.20, 01-Aug-2017
138,Revenue,CAHD,Bed Purchasing - South,Permanent Nursing,.,3779.80, 29-Aug-2017
139,Revenue,CAHD,South Glos Users in South Glos Homes,Permanent Nursing,.,620.20, 29-Aug-2017
140,Revenue,CAHD,Bed Purchasing - North,Permanent Nursing,.,8800.00, 01-Aug-2017
141,Revenue,CAHD,Bed Purchasing - North,Permanent Nursing,.,3294.28, 01-Aug-2017
142,Revenue,CAHD,South Glos Users in South Glos Homes,Permanent Nursing,.,620.20, 01-Aug-2017
143,Revenue,CAHD,Bed Purchasing - North,Permanent Nursing,.,3294.28, 29-Aug-2017
144,Revenue,CAHD,South Glos Users in South Glos Homes,Permanent Nursing,.,620.20, 29-Aug-2017
145,Revenue,CAHD,Bed Purchasing - North,Permanent Nursing,.,4400.00, 29-Aug-2017
146,Revenue,CAHD,Bed Purchasing - North,Permanent Nursing,.,4400.00, 29-Aug-2017
147,Revenue,CAHD,South Glos Users in South Glos Homes,Permanent Nursing,.,620.20, 01-Aug-2017
148,Revenue,CAHD,South Glos Users in South Glos Homes,Permanent Nursing,.,620.20, 29-Aug-2017
149,Revenue,CAHD,Bed Purchasing - Southmead Hospital,Permanent Nursing,.,3824.08, 01-Aug-2017
150,Revenue,CAHD,South Glos Users in South Glos Homes,Permanent Nursing,.,620.20, 01-Aug-2017
151,Revenue,CAHD,Bed Purchasing - Southmead Hospital,Permanent Nursing,.,3824.08, 29-Aug-2017
152,Revenue,CAHD,South Glos Users in South Glos Homes,Permanent Nursing,.,620.20, 29-Aug-2017
153,Revenue,CAHD,South Glos Users in South Glos Homes,Permanent Nursing,.,620.20, 01-Aug-2017
154,Revenue,CAHD,South Glos Users in South Glos Homes,Permanent Nursing,.,620.20, 29-Aug-2017
155,Revenue,CAHD,South Glos Users in South Glos Homes,Permanent Nursing,.,620.20, 01-Aug-2017
156,Revenue,CAHD,South Glos Users in South Glos Homes,Permanent Nursing,.,620.20, 29-Aug-2017
157,Revenue,CAHD,South Glos Users in South Glos Homes,Permanent Nursing,.,620.20, 01-Aug-2017
158,Revenue,CAHD,South Glos Users in South Glos Homes,Permanent Nursing,.,620.20, 29-Aug-2017
159,Revenue,CAHD,Bed Purchasing - North,Permanent Residential,.,3545.52, 01-Aug-2017
160,Revenue,CAHD,Bed Purchasing - North,Permanent Residential,.,3545.52, 29-Aug-2017
161,Revenue,CAHD,18-25 Year Olds,Permanent Residential,1 St Georges House,14038.20, 01-Aug-2017
162,Revenue,CAHD,18-25 Year Olds,Permanent Residential,1 St Georges House,14038.20, 29-Aug-2017
163,Revenue,CAHD,Supporting People Programme,Grants to Voluntary Bodies,1625 Independent People,14536.00, 01-Aug-2017
164,Revenue,CAHD,Home Care - Elderly - South,Day Care / Social Activities,3 Trees Community Support Ltd,93.40, 08-Aug-2017
165,Revenue,CAHD,Home Care - Elderly - North,Day Care / Social Activities,3 Trees Community Support Ltd,1372.98, 08-Aug-2017
166,Revenue,CAHD,Home Care - Elderly - North,Other Small Contracts,3 Trees Community Support Ltd,709.84, 08-Aug-2017
167,Revenue,CAHD,Home Care - Elderly - North,Supported Living,3 Trees Community Support Ltd,7414.09, 08-Aug-2017
168,Revenue,CAHD,Home Care - Elderly - South,Day Care / Social Activities,3 Trees Community Support Ltd,93.40, 09-Aug-2017
169,Revenue,CAHD,Home Care - Elderly - North,Day Care / Social Activities,3 Trees Community Support Ltd,1223.54, 09-Aug-2017
170,Revenue,CAHD,Home Care - Elderly - North,Other Small Contracts,3 Trees Community Support Ltd,709.84, 09-Aug-2017
171,Revenue,CAHD,Home Care - Elderly - North,Supported Living,3 Trees Community Support Ltd,7154.85, 09-Aug-2017
172,Revenue,CAHD,Home Care - Elderly - South,Day Care / Social Activities,3 Trees Community Support Ltd,93.40, 22-Aug-2017
173,Revenue,CAHD,Home Care - Elderly - North,Day Care / Social Activities,3 Trees Community Support Ltd,1372.98, 22-Aug-2017
174,Revenue,CAHD,Home Care - Elderly - North,Other Small Contracts,3 Trees Community Support Ltd,709.84, 22-Aug-2017
175,Revenue,CAHD,Home Care - Elderly - North,Supported Living,3 Trees Community Support Ltd,7433.12, 22-Aug-2017
176,Revenue,CAHD,Home Care - Elderly - South,Day Care / Social Activities,3 Trees Community Support Ltd,93.40, 23-Aug-2017
177,Revenue,CAHD,Home Care - Elderly - North,Day Care / Social Activities,3 Trees Community Support Ltd,1372.98, 23-Aug-2017
178,Revenue,CAHD,Home Care - Elderly - North,Other Small Contracts,3 Trees Community Support Ltd,695.83, 23-Aug-2017
179,Revenue,CAHD,Home Care - Elderly - North,Supported Living,3 Trees Community Support Ltd,7437.27, 23-Aug-2017
180,Revenue,CAHD,Bed Purchasing - North,Permanent Nursing,3Rd Floor  The Aspect,3179.80, 01-Aug-2017
181,Revenue,CAHD,Bed Purchasing - North,Permanent Nursing,3Rd Floor  The Aspect,3179.80, 29-Aug-2017
182,Revenue,CAHD,18-25 Year Olds,Permanent Residential,5Th Floor Harlech Court,14619.64, 01-Aug-2017
183,Revenue,CAHD,18-25 Year Olds,Permanent Residential,5Th Floor Harlech Court,14619.64, 29-Aug-2017
184,Revenue,CAHD,18-25 Year Olds,Permanent Residential,5Th Floor Harlech Court,14760.00, 01-Aug-2017
185,Revenue,CAHD,18-25 Year Olds,Permanent Residential,5Th Floor Harlech Court,14760.00, 29-Aug-2017
186,Revenue,CAHD,18-25 Year Olds,Permanent Residential,5Th Floor Harlech Court,13130.76, 01-Aug-2017
187,Revenue,CAHD,18-25 Year Olds,Permanent Residential,5Th Floor Harlech Court,13130.76, 29-Aug-2017
188,Revenue,CAHD,Bed Purchasing - North,Permanent Residential,5Th Floor Harlech Court,15870.60, 01-Aug-2017
189,Revenue,CAHD,Bed Purchasing - North,Permanent Residential,5Th Floor Harlech Court,15870.60, 29-Aug-2017
190,Revenue,CAHD,18-25 Year Olds,Respite Planned - Residential,5Th Floor Harlech Court,11496.51, 01-Aug-2017
191,Revenue,CAHD,Bed Purchasing - North,Permanent Residential,5Th Floor Harlech Court,14104.28, 01-Aug-2017
192,Revenue,CAHD,Jointly Funded H&SC Packages,Permanent Residential,5Th Floor Harlech Court,3490.16, 01-Aug-2017
193,Revenue,CAHD,Bed Purchasing - North,Permanent Residential,5Th Floor Harlech Court,14104.28, 29-Aug-2017
194,Revenue,CAHD,Jointly Funded H&SC Packages,Permanent Residential,5Th Floor Harlech Court,3490.16, 29-Aug-2017
195,Revenue,CAHD,18-25 Year Olds,Permanent Residential,5Th Floor Harlech Court,16704.04, 01-Aug-2017
196,Revenue,CAHD,18-25 Year Olds,Permanent Residential,5Th Floor Harlech Court,16704.04, 29-Aug-2017
197,Revenue,CAHD,Bed Purchasing - South,Permanent Residential,5Th Floor Harlech Court,15973.00, 01-Aug-2017
198,Revenue,CAHD,Bed Purchasing - South,Permanent Residential,5Th Floor Harlech Court,15973.00, 29-Aug-2017
199,Revenue,CAHD,Bed Purchasing - South,Permanent Residential,5Th Floor Harlech Court,9985.60, 01-Aug-2017
200,Revenue,CAHD,Bed Purchasing - South,Permanent Residential,5Th Floor Harlech Court,9985.60, 29-Aug-2017
201,Revenue,CAHD,Bed purchasing - S28A Under 65 - South,Permanent Residential,5Th Floor Harlech Court,10450.56, 01-Aug-2017
202,Revenue,CAHD,Bed purchasing - S28A Under 65 - South,Permanent Residential,5Th Floor Harlech Court,10450.56, 29-Aug-2017
203,Revenue,CAHD,Bed Purchasing - South,Permanent Residential,5Th Floor Harlech Court,10960.12, 01-Aug-2017
204,Revenue,CAHD,Bed Purchasing - South,Permanent Residential,5Th Floor Harlech Court,10960.12, 29-Aug-2017
205,Revenue,CAHD,Woodleaze,Mechanical & Electrical Maintenance,A W Parry Lifts Limited,1687.00, 31-Aug-2017
206,Revenue,CAHD,Bed Purchasing - North,Permanent Nursing,ABI Development Limited,7591.84, 01-Aug-2017
207,Revenue,CAHD,Bed Purchasing - North,Permanent Nursing,ABI Development Limited,7591.84, 29-Aug-2017
208,Revenue,CAHD,Bed and Breakfast,Storage & Removal,Ablemove-Wottons,420.00, 29-Aug-2017
209,Revenue,CAHD,Community Support - South,Preventative Assistance,Accessible Transport 4 U,936.00, 09-Aug-2017
210,Revenue,CAHD,Community Support - South,Preventative Assistance,Accessible Transport 4 U,624.00, 30-Aug-2017
211,Revenue,CAHD,Community Support - South,Preventative Assistance,Accessible Transport 4 U,864.75, 09-Aug-2017
212,Revenue,CAHD,Training - Adult Services,Training Expenses,Acorn Health & Safety Limited,465.00, 23-Aug-2017
213,Revenue,CAHD,Training - Adult Services,Training Expenses,Acorn Health & Safety Limited,465.00, 31-Aug-2017
214,Revenue,CAHD,Research & Conferences,Membership Fees,ADASS,1748.00, 17-Aug-2017
215,Revenue,CAHD,Home Care - Elderly - South,Other Small Contracts,Agincare UK Limited,1874.80, 09-Aug-2017
216,Revenue,CAHD,Home Care - Elderly - North,Other Small Contracts,Agincare UK Limited,723.76, 09-Aug-2017
217,Revenue,CAHD,Home Care - Elderly - South,Other Small Contracts,Agincare UK Limited,2223.60, 17-Aug-2017
218,Revenue,CAHD,Home Care - Elderly - North,Other Small Contracts,Agincare UK Limited,719.40, 17-Aug-2017
219,Revenue,CAHD,Home Care - Elderly - South,Other Small Contracts,Agincare UK Limited,2232.32, 17-Aug-2017
220,Revenue,CAHD,Home Care - Elderly - North,Other Small Contracts,Agincare UK Limited,719.40, 17-Aug-2017
221,Revenue,CAHD,Home Care - Elderly - South,Other Small Contracts,Agincare UK Limited,2289.00, 31-Aug-2017
222,Revenue,CAHD,Home Care - Elderly - North,Other Small Contracts,Agincare UK Limited,719.40, 31-Aug-2017
223,Revenue,CAHD,Extra Care Housing,Private & Voluntary Home Care,Agincare UK Limited,20536.00, 01-Aug-2017
224,Revenue,CAHD,Extra Care Housing,Private & Voluntary Home Care,Agincare UK Limited,10072.00, 01-Aug-2017
225,Revenue,CAHD,Home Care - Elderly - North,Day Care / Social Activities,Agincare UK Nutfield,93.84, 14-Aug-2017
226,Revenue,CAHD,Home Care - Elderly - North,Other Small Contracts,Agincare UK Nutfield,1923.72, 14-Aug-2017
227,Revenue,CAHD,Home care - Elderly MH - South,Other Small Contracts,Agincare UK Nutfield,58.65, 14-Aug-2017
228,Revenue,CAHD,Home Care - Elderly - North,Day Care / Social Activities,Agincare UK Nutfield,191.84, 08-Aug-2017
229,Revenue,CAHD,Home Care - Elderly - North,Other Small Contracts,Agincare UK Nutfield,1648.08, 08-Aug-2017
230,Revenue,CAHD,Home care - Elderly MH - South,Other Small Contracts,Agincare UK Nutfield,61.04, 08-Aug-2017
231,Revenue,CAHD,Home Care - Elderly - North,Day Care / Social Activities,Agincare UK Nutfield,191.84, 17-Aug-2017
232,Revenue,CAHD,Home Care - Elderly - North,Other Small Contracts,Agincare UK Nutfield,1587.04, 17-Aug-2017
233,Revenue,CAHD,Home care - Elderly MH - South,Other Small Contracts,Agincare UK Nutfield,69.76, 17-Aug-2017
234,Revenue,CAHD,Home Care - Elderly - North,Day Care / Social Activities,Agincare UK Nutfield,191.84, 17-Aug-2017
235,Revenue,CAHD,Home Care - Elderly - North,Other Small Contracts,Agincare UK Nutfield,1595.76, 17-Aug-2017
236,Revenue,CAHD,Home care - Elderly MH - South,Other Small Contracts,Agincare UK Nutfield,61.04, 17-Aug-2017
237,Revenue,CAHD,Home Care - Elderly - North,Day Care / Social Activities,Agincare UK Nutfield,191.84, 31-Aug-2017
238,Revenue,CAHD,Home Care - Elderly - North,Other Small Contracts,Agincare UK Nutfield,1499.84, 31-Aug-2017
239,Revenue,CAHD,Home care - Elderly MH - South,Other Small Contracts,Agincare UK Nutfield,69.76, 31-Aug-2017
240,Revenue,CAHD,Home Care - Elderly - South,Other Small Contracts,AliMo Care Ltd,1545.60, 02-Aug-2017
241,Revenue,CAHD,Home Care - Elderly - South,Other Small Contracts,AliMo Care Ltd,1572.48, 04-Aug-2017
242,Revenue,CAHD,Home Care - Elderly - South,Other Small Contracts,AliMo Care Ltd,1684.48, 18-Aug-2017
243,Revenue,CAHD,Home Care - Elderly - South,Other Small Contracts,AliMo Care Ltd,1688.96, 18-Aug-2017
244,Revenue,CAHD,Home Care - Elderly - South,Other Small Contracts,AliMo Care Ltd,1617.28, 25-Aug-2017
245,Revenue,CAHD,Home Care - Elderly - South,Other Small Contracts,AliMo Care Ltd,1706.88, 30-Aug-2017
246,Revenue,CAHD,Bed Purchasing - South,Permanent Nursing,Ambleside Nusing Home,2126.16, 01-Aug-2017
247,Revenue,CAHD,Bed Purchasing - South,Permanent Nursing,Ambleside Nusing Home,2126.16, 29-Aug-2017
248,Revenue,CAHD,Bed Purchasing - Southmead Hospital,Permanent Nursing,Amerind Grove Nursing Home,2593.60, 01-Aug-2017
249,Revenue,CAHD,Bed Purchasing - Southmead Hospital,Permanent Nursing,Amerind Grove Nursing Home,2593.60, 29-Aug-2017
250,Revenue,CAHD,Bed Purchasing - Southmead Hospital,Permanent Nursing,Amerind Grove Nursing Home,2283.24, 01-Aug-2017
251,Revenue,CAHD,Supporting People Programme,Grants to Voluntary Bodies,Anchor Housing,812.50, 01-Aug-2017
252,Revenue,CAHD,Bed Purchasing - North,Permanent Residential,Ark Care Homes Ltd,11036.72, 01-Aug-2017
253,Revenue,CAHD,Bed Purchasing - North,Permanent Residential,Ark Care Homes Ltd,11036.72, 29-Aug-2017
254,Revenue,CAHD,Bed Purchasing - South,Permanent Nursing,Ash Grove House,5672.80, 29-Aug-2017
255,Revenue,CAHD,Jointly Funded H&SC Packages,Permanent Residential,Ash View House,1065.12, 01-Aug-2017
256,Revenue,CAHD,Bed Purchasing - South,Permanent Residential,Ash View House,5195.24, 01-Aug-2017
257,Revenue,CAHD,Bed Purchasing - South,Permanent Residential,Ash View House,1855.44, 01-Aug-2017
258,Revenue,CAHD,Jointly Funded H&SC Packages,Permanent Residential,Ash View House,1065.12, 29-Aug-2017
259,Revenue,CAHD,Bed Purchasing - South,Permanent Residential,Ash View House,5195.24, 29-Aug-2017
260,Revenue,CAHD,S117 Placements PCT,Permanent Residential,Ash View House,7241.60, 01-Aug-2017
261,Revenue,CAHD,S117 Placements PCT,Permanent Residential,Ash View House,7241.60, 29-Aug-2017
262,Revenue,CAHD,18-25 Year Olds,Permanent Residential,Ash View House,6803.84, 01-Aug-2017
263,Revenue,CAHD,18-25 Year Olds,Permanent Residential,Ash View House,6803.84, 29-Aug-2017
264,Revenue,CAHD,Section 117 Placements MH Younger,Permanent Residential,Ash View House,4719.08, 01-Aug-2017
265,Revenue,CAHD,Jointly Funded H&SC Packages,Permanent Residential,Ash View House,2022.48, 01-Aug-2017
266,Revenue,CAHD,Section 117 Placements MH Younger,Permanent Residential,Ash View House,4719.08, 29-Aug-2017
267,Revenue,CAHD,Jointly Funded H&SC Packages,Permanent Residential,Ash View House,2022.48, 29-Aug-2017
268,Revenue,CAHD,Bed purchasing - Elderly S117 - South,Permanent Residential,Ash View House,6414.04, 01-Aug-2017
269,Revenue,CAHD,Bed purchasing - Elderly S117 - South,Permanent Residential,Ash View House,6414.04, 29-Aug-2017
270,Revenue,CAHD,Bed purchasing -S28A  Under 65 - North,Permanent Residential,Ash View House,22190.00, 01-Aug-2017
271,Revenue,CAHD,18-25 Year Olds,Permanent Residential,Ash View House,6340.00, 01-Aug-2017
272,Revenue,CAHD,18-25 Year Olds,Permanent Residential,Ash View House,22190.00, 01-Aug-2017
273,Revenue,CAHD,18-25 Year Olds,Permanent Residential,Ash View House,6340.00, 29-Aug-2017
274,Revenue,CAHD,Bed Purchasing - North,Permanent Residential,Aspects 2 Limited,6930.72, 01-Aug-2017
275,Revenue,CAHD,Bed Purchasing - North,Permanent Residential,Aspects 2 Limited,6930.72, 29-Aug-2017
276,Revenue,CAHD,Supporting People Programme,Grants to Voluntary Bodies,Aspects and Milestones Trust,3298.58, 01-Aug-2017
277,Revenue,CAHD,Supporting People Programme,Grants to Voluntary Bodies,Aspects and Milestones Trust,1653.75, 01-Aug-2017
278,Revenue,CAHD,Supporting People Programme,Grants to Voluntary Bodies,Aspects and Milestones Trust,2014.33, 01-Aug-2017
279,Revenue,CAHD,Supporting People Programme,Grants to Voluntary Bodies,Aspects and Milestones Trust,650.00, 01-Aug-2017
280,Revenue,CAHD,Supporting People Programme,Grants to Voluntary Bodies,Aspects and Milestones Trust,650.00, 01-Aug-2017
281,Revenue,CAHD,Bed Purchasing - South,Permanent Residential,Autism Specialised Care Homes,6235.88, 01-Aug-2017
282,Revenue,CAHD,Bed Purchasing - South,Permanent Residential,Autism Specialised Care Homes,6235.88, 29-Aug-2017
283,Revenue,CAHD,Purchase of RAC places,Other L.A.'s - General,Bath & North East Somerset Council,966.08, 16-Aug-2017
284,Revenue,CAHD,Purchase of RAC places,Other L.A.'s - General,Bath & North East Somerset Council,1417.60, 01-Aug-2017
285,Revenue,CAHD,Purchase of RAC places,Other L.A.'s - General,Bath & North East Somerset Council,1772.00, 16-Aug-2017
286,Revenue,CAHD,Purchase of RAC places,Other L.A.'s - General,Bath & North East Somerset Council,966.08, 29-Aug-2017
287,Revenue,CAHD,South Glos Users in South Glos Homes,Permanent Nursing,Beaufort Grange Care Home,620.20, 01-Aug-2017
288,Revenue,CAHD,South Glos Users in South Glos Homes,Permanent Nursing,Beaufort Grange Care Home,620.20, 29-Aug-2017
289,Revenue,CAHD,South Glos Users in South Glos Homes,Permanent Nursing,Beaufort Grange Care Home,620.20, 01-Aug-2017
290,Revenue,CAHD,South Glos Users in South Glos Homes,Permanent Nursing,Beaufort Grange Care Home,620.20, 29-Aug-2017
291,Revenue,CAHD,South Glos Users in South Glos Homes,Permanent Nursing,Beaufort Grange Care Home,620.20, 01-Aug-2017
292,Revenue,CAHD,Bed Purchasing - South,Fees & Charges Income - General,Beaufort Grange Care Home,1863.09, 01-Aug-2017
293,Revenue,CAHD,Bed Purchasing - South,Fees & Charges Income - General,Beaufort Grange Care Home,5878.06, 01-Aug-2017
294,Revenue,CAHD,Bed Purchasing - South,Permanent Nursing,Beaufort Grange Care Home,4436.72, 01-Aug-2017
295,Revenue,CAHD,Bed Purchasing - South,Fees & Charges Income - General,Beaufort Grange Care Home,1076.79, 01-Aug-2017
296,Revenue,CAHD,South Glos Users in South Glos Homes,Permanent Nursing,Beaufort Grange Care Home,620.20, 01-Aug-2017
297,Revenue,CAHD,Bed Purchasing - South,Fees & Charges Income - General,Beaufort Grange Care Home,1829.80, 01-Aug-2017
298,Revenue,CAHD,Bed Purchasing - South,Fees & Charges Income - General,Beaufort Grange Care Home,5862.50, 01-Aug-2017
299,Revenue,CAHD,Bed Purchasing - South,Permanent Nursing,Beaufort Grange Care Home,4436.72, 29-Aug-2017
300,Revenue,CAHD,South Glos Users in South Glos Homes,Permanent Nursing,Beaufort Grange Care Home,620.20, 29-Aug-2017
301,Revenue,CAHD,Bed Purchasing - North,Permanent Nursing,Beaufort Grange Care Home,4229.28, 01-Aug-2017
302,Revenue,CAHD,South Glos Users in South Glos Homes,Permanent Nursing,Beaufort Grange Care Home,620.20, 01-Aug-2017
303,Revenue,CAHD,Bed Purchasing - North,Permanent Nursing,Beaufort Grange Care Home,4229.28, 29-Aug-2017
304,Revenue,CAHD,South Glos Users in South Glos Homes,Permanent Nursing,Beaufort Grange Care Home,620.20, 29-Aug-2017
305,Revenue,CAHD,South Glos Users in South Glos Homes,Permanent Nursing,Beaufort Grange Care Home,620.20, 01-Aug-2017
306,Revenue,CAHD,South Glos Users in South Glos Homes,Permanent Nursing,Beaufort Grange Care Home,620.20, 29-Aug-2017
307,Revenue,CAHD,South Glos Users in South Glos Homes,Permanent Nursing,Beaufort Grange Care Home,620.20, 01-Aug-2017
308,Revenue,CAHD,South Glos Users in South Glos Homes,Permanent Nursing,Beaufort Grange Care Home,620.20, 29-Aug-2017
309,Revenue,CAHD,South Glos Users in South Glos Homes,Permanent Nursing,Beaufort Grange Care Home,620.20, 01-Aug-2017
310,Revenue,CAHD,South Glos Users in South Glos Homes,Permanent Nursing,Beaufort Grange Care Home,620.20, 29-Aug-2017
311,Revenue,CAHD,South Glos Users in South Glos Homes,Permanent Nursing,Beaufort Grange Care Home,620.20, 01-Aug-2017
312,Revenue,CAHD,South Glos Users in South Glos Homes,Permanent Nursing,Beaufort Grange Care Home,620.20, 29-Aug-2017
313,Revenue,CAHD,South Glos Users in South Glos Homes,Permanent Nursing,Beaufort Grange Care Home,620.20, 01-Aug-2017
314,Revenue,CAHD,South Glos Users in South Glos Homes,Permanent Nursing,Beaufort Grange Care Home,620.20, 29-Aug-2017
315,Revenue,CAHD,South Glos Users in South Glos Homes,Permanent Nursing,Beaufort Grange Care Home,620.20, 01-Aug-2017
316,Revenue,CAHD,South Glos Users in South Glos Homes,Permanent Nursing,Beaufort Grange Care Home,620.20, 29-Aug-2017
317,Revenue,CAHD,South Glos Users in South Glos Homes,Permanent Nursing,Beaufort Grange Care Home,620.20, 01-Aug-2017
318,Revenue,CAHD,South Glos Users in South Glos Homes,Permanent Nursing,Beaufort Grange Care Home,620.20, 29-Aug-2017
319,Revenue,CAHD,South Glos Users in South Glos Homes,Permanent Nursing,Beaufort Grange Care Home,620.20, 01-Aug-2017
320,Revenue,CAHD,South Glos Users in South Glos Homes,Permanent Nursing,Beaufort Grange Care Home,620.20, 29-Aug-2017
321,Revenue,CAHD,South Glos Users in South Glos Homes,Permanent Nursing,Beaufort Grange Care Home,620.20, 01-Aug-2017
322,Revenue,CAHD,South Glos Users in South Glos Homes,Permanent Nursing,Beaufort Grange Care Home,620.20, 29-Aug-2017
323,Revenue,CAHD,Bed Purchasing - Elderly S117- North,Permanent Nursing,Beaufort Grange Care Home,4468.56, 01-Aug-2017
324,Revenue,CAHD,South Glos Users in South Glos Homes,Permanent Nursing,Beaufort Grange Care Home,620.20, 01-Aug-2017
325,Revenue,CAHD,Bed Purchasing - Elderly S117- North,Permanent Nursing,Beaufort Grange Care Home,4468.56, 29-Aug-2017
326,Revenue,CAHD,South Glos Users in South Glos Homes,Permanent Nursing,Beaufort Grange Care Home,620.20, 29-Aug-2017
327,Revenue,CAHD,Bed Purchasing - Elderly S117- North,Permanent Nursing,Beaufort Grange Care Home,4673.92, 01-Aug-2017
328,Revenue,CAHD,South Glos Users in South Glos Homes,Permanent Nursing,Beaufort Grange Care Home,620.20, 01-Aug-2017
329,Revenue,CAHD,Bed Purchasing - Elderly S117- North,Permanent Nursing,Beaufort Grange Care Home,4673.92, 29-Aug-2017
330,Revenue,CAHD,South Glos Users in South Glos Homes,Permanent Nursing,Beaufort Grange Care Home,620.20, 29-Aug-2017
331,Revenue,CAHD,South Glos Users in South Glos Homes,Permanent Nursing,Beaufort Grange Care Home,620.20, 01-Aug-2017
332,Revenue,CAHD,South Glos Users in South Glos Homes,Permanent Nursing,Beaufort Grange Care Home,620.20, 01-Aug-2017
333,Revenue,CAHD,South Glos Users in South Glos Homes,Permanent Nursing,Beaufort Grange Care Home,620.20, 29-Aug-2017
334,Revenue,CAHD,South Glos Users in South Glos Homes,Permanent Nursing,Beaufort Grange Care Home,620.20, 01-Aug-2017
335,Revenue,CAHD,South Glos Users in South Glos Homes,Permanent Nursing,Beaufort Grange Care Home,620.20, 29-Aug-2017
336,Revenue,CAHD,South Glos Users in South Glos Homes,Permanent Nursing,Beaufort Grange Care Home,620.20, 01-Aug-2017
337,Revenue,CAHD,South Glos Users in South Glos Homes,Permanent Nursing,Beaufort Grange Care Home,620.20, 29-Aug-2017
338,Revenue,CAHD,South Glos Users in South Glos Homes,Permanent Nursing,Beaufort Grange Care Home,620.20, 01-Aug-2017
339,Revenue,CAHD,South Glos Users in South Glos Homes,Permanent Nursing,Beaufort Grange Care Home,620.20, 29-Aug-2017
340,Revenue,CAHD,South Glos Users in South Glos Homes,Permanent Nursing,Beaufort Grange Care Home,620.20, 01-Aug-2017
341,Revenue,CAHD,South Glos Users in South Glos Homes,Permanent Nursing,Beaufort Grange Care Home,620.20, 29-Aug-2017
342,Revenue,CAHD,Bed Purchasing - North,Permanent Residential,Beaufort House,2443.36, 01-Aug-2017
343,Revenue,CAHD,Bed Purchasing - North,Permanent Residential,Beaufort House,2443.36, 29-Aug-2017
344,Revenue,CAHD,Bed Purchasing - North,Permanent Residential,Beaufort House,2464.28, 01-Aug-2017
345,Revenue,CAHD,Bed Purchasing - North,Permanent Residential,Beaufort House,2464.28, 29-Aug-2017
346,Revenue,CAHD,Bed Purchasing - South,Permanent Residential,Beaufort House,2431.20, 01-Aug-2017
347,Revenue,CAHD,Bed Purchasing - South,Permanent Residential,Beaufort House,2431.20, 29-Aug-2017
348,Revenue,CAHD,Bed Purchasing - South,Permanent Residential,Beaufort House,8187.90, 01-Aug-2017
349,Revenue,CAHD,Bed Purchasing - South,Permanent Residential,Beaufort House,2339.40, 01-Aug-2017
350,Revenue,CAHD,Bed Purchasing - South,Fees & Charges Income - General,Beaufort House,2853.60, 01-Aug-2017
351,Revenue,CAHD,Bed Purchasing - South,Permanent Residential,Beaufort House,2339.40, 29-Aug-2017
352,Revenue,CAHD,Bed Purchasing - Southmead Hospital,Permanent Residential,Beaufort House,2464.28, 01-Aug-2017
353,Revenue,CAHD,Bed Purchasing - Southmead Hospital,Permanent Residential,Beaufort House,2464.28, 29-Aug-2017
354,Revenue,CAHD,Bed Purchasing - North,Permanent Residential,Beaufort House,2407.80, 01-Aug-2017
355,Revenue,CAHD,Bed Purchasing - North,Permanent Residential,Beaufort House,2407.80, 29-Aug-2017
356,Revenue,CAHD,Bed Purchasing - Southmead Hospital,Permanent Residential,Beaufort House,2600.00, 01-Aug-2017
357,Revenue,CAHD,Bed Purchasing - Southmead Hospital,Permanent Residential,Beaufort House,2600.00, 29-Aug-2017
358,Revenue,CAHD,Bed Purchasing - North,Permanent Residential,Beaufort House,2407.80, 01-Aug-2017
359,Revenue,CAHD,Bed Purchasing - North,Permanent Residential,Beaufort House,2407.80, 29-Aug-2017
360,Revenue,CAHD,Bed Purchasing - Southmead Hospital,Respite Emergency - Residential,Beaufort House,3342.86, 01-Aug-2017
361,Revenue,CAHD,Bed Purchasing - Southmead Hospital,Permanent Residential,Beaufort House,2757.58, 29-Aug-2017
362,Revenue,CAHD,Bed Purchasing - Southmead Hospital,Permanent Residential,Beaufort House,1979.80, 29-Aug-2017
363,Revenue,CAHD,Bed Purchasing - North,Permanent Residential,Beaufort House,2587.48, 01-Aug-2017
364,Revenue,CAHD,Bed Purchasing - North,Permanent Residential,Beaufort House,2587.48, 29-Aug-2017
365,Revenue,CAHD,Bed Purchasing - South,Permanent Residential,Beaufort House,2600.00, 01-Aug-2017
366,Revenue,CAHD,Bed Purchasing - South,Permanent Residential,Beaufort House,5571.43, 29-Aug-2017
367,Revenue,CAHD,Bed Purchasing - South,Permanent Residential,Beaufort House,2600.00, 29-Aug-2017
368,Revenue,CAHD,Bed Purchasing - South,Fees & Charges Income - General,Beaufort House,1133.22, 29-Aug-2017
369,Revenue,CAHD,Bed Purchasing - Southmead Hospital,Permanent Residential,Beaufort House,2464.28, 01-Aug-2017
370,Revenue,CAHD,Bed Purchasing - Southmead Hospital,Permanent Residential,Beaufort House,2464.28, 29-Aug-2017
371,Revenue,CAHD,Bed Purchasing - Southmead Hospital,Permanent Residential,Beaufort House,2633.80, 01-Aug-2017
372,Revenue,CAHD,Bed Purchasing - Southmead Hospital,Permanent Residential,Beaufort House,2633.80, 29-Aug-2017
373,Revenue,CAHD,South Glos Users in South Glos Homes,Permanent Nursing,Beech House,620.20, 01-Aug-2017
374,Revenue,CAHD,South Glos Users in South Glos Homes,Permanent Nursing,Beech House,620.20, 29-Aug-2017
375,Revenue,CAHD,Bed Purchasing - South,Permanent Residential,Beech House,2836.40, 01-Aug-2017
376,Revenue,CAHD,Bed Purchasing - South,Permanent Residential,Beech House,2836.40, 29-Aug-2017
377,Revenue,CAHD,South Glos Users in South Glos Homes,Permanent Nursing,Beech House,620.20, 01-Aug-2017
378,Revenue,CAHD,South Glos Users in South Glos Homes,Permanent Nursing,Beech House,620.20, 29-Aug-2017
379,Revenue,CAHD,Bed Purchasing - North,Permanent Nursing,Beech House,2709.76, 01-Aug-2017
380,Revenue,CAHD,South Glos Users in South Glos Homes,Permanent Nursing,Beech House,620.20, 01-Aug-2017
381,Revenue,CAHD,Bed Purchasing - North,Permanent Nursing,Beech House,2709.76, 29-Aug-2017
382,Revenue,CAHD,South Glos Users in South Glos Homes,Permanent Nursing,Beech House,620.20, 29-Aug-2017
383,Revenue,CAHD,South Glos Users in South Glos Homes,Permanent Nursing,Beech House,620.20, 01-Aug-2017
384,Revenue,CAHD,South Glos Users in South Glos Homes,Permanent Nursing,Beech House,620.20, 29-Aug-2017
385,Revenue,CAHD,South Glos Users in South Glos Homes,Permanent Nursing,Beech House,620.20, 01-Aug-2017
386,Revenue,CAHD,South Glos Users in South Glos Homes,Permanent Nursing,Beech House,620.20, 29-Aug-2017
387,Revenue,CAHD,Bed Purchasing - North,Permanent Nursing,Beech House,3031.04, 01-Aug-2017
388,Revenue,CAHD,South Glos Users in South Glos Homes,Permanent Nursing,Beech House,620.20, 01-Aug-2017
389,Revenue,CAHD,Bed Purchasing - North,Permanent Nursing,Beech House,3031.04, 29-Aug-2017
390,Revenue,CAHD,South Glos Users in South Glos Homes,Permanent Nursing,Beech House,620.20, 29-Aug-2017
391,Revenue,CAHD,Bed Purchasing - North,Permanent Residential,Beech House,2836.40, 01-Aug-2017
392,Revenue,CAHD,Bed Purchasing - North,Permanent Residential,Beech House,2836.40, 29-Aug-2017
393,Revenue,CAHD,South Glos Users in South Glos Homes,Permanent Nursing,Beech House,620.20, 01-Aug-2017
394,Revenue,CAHD,South Glos Users in South Glos Homes,Permanent Nursing,Beech House,620.20, 29-Aug-2017
395,Revenue,CAHD,Bed Purchasing - North,Fees & Charges Income - General,Beech House,988.57, 01-Aug-2017
396,Revenue,CAHD,South Glos Users in South Glos Homes,Permanent Nursing,Beech House,620.20, 01-Aug-2017
397,Revenue,CAHD,South Glos Users in South Glos Homes,Permanent Nursing,Beech House,620.20, 29-Aug-2017
398,Revenue,CAHD,South Glos Users in South Glos Homes,Permanent Nursing,Beech House,620.20, 01-Aug-2017
399,Revenue,CAHD,South Glos Users in South Glos Homes,Permanent Nursing,Beech House,620.20, 29-Aug-2017
400,Revenue,CAHD,South Glos Users in South Glos Homes,Permanent Nursing,Beech House,620.20, 01-Aug-2017
401,Revenue,CAHD,South Glos Users in South Glos Homes,Permanent Nursing,Beech House,620.20, 29-Aug-2017
402,Revenue,CAHD,South Glos Users in South Glos Homes,Permanent Nursing,Beech House,620.20, 01-Aug-2017
403,Revenue,CAHD,South Glos Users in South Glos Homes,Permanent Nursing,Beech House,620.20, 29-Aug-2017
404,Revenue,CAHD,South Glos Users in South Glos Homes,Permanent Nursing,Beech House,620.20, 01-Aug-2017
405,Revenue,CAHD,South Glos Users in South Glos Homes,Permanent Nursing,Beech House,620.20, 29-Aug-2017
406,Revenue,CAHD,Bed Purchasing - North,Permanent Nursing,Beech House,12588.94, 01-Aug-2017
407,Revenue,CAHD,Bed Purchasing - North,Permanent Nursing,Beech House,3480.00, 01-Aug-2017
408,Revenue,CAHD,South Glos Users in South Glos Homes,Permanent Nursing,Beech House,620.20, 01-Aug-2017
409,Revenue,CAHD,Bed Purchasing - North,Fees & Charges Income - General,Beech House,4118.90, 01-Aug-2017
410,Revenue,CAHD,Bed Purchasing - North,Permanent Nursing,Beech House,3480.00, 29-Aug-2017
411,Revenue,CAHD,South Glos Users in South Glos Homes,Permanent Nursing,Beech House,620.20, 29-Aug-2017
412,Revenue,CAHD,South Glos Users in South Glos Homes,Permanent Nursing,Beech House,620.20, 01-Aug-2017
413,Revenue,CAHD,South Glos Users in South Glos Homes,Permanent Nursing,Beech House,620.20, 29-Aug-2017
414,Revenue,CAHD,Bed Purchasing - North,Permanent Residential,Beech House,3444.20, 01-Aug-2017
415,Revenue,CAHD,Bed Purchasing - North,Permanent Residential,Beech House,3444.20, 29-Aug-2017
416,Revenue,CAHD,Bed Purchasing - Southmead Hospital,Permanent Residential,Beech House,3680.00, 01-Aug-2017
417,Revenue,CAHD,Bed Purchasing - Southmead Hospital,Permanent Residential,Beech House,3680.00, 29-Aug-2017
418,Revenue,CAHD,South Glos Users in South Glos Homes,Permanent Nursing,Beech House,620.20, 01-Aug-2017
419,Revenue,CAHD,South Glos Users in South Glos Homes,Permanent Nursing,Beech House,620.20, 29-Aug-2017
420,Revenue,CAHD,South Glos Users in South Glos Homes,Permanent Nursing,Beech House,620.20, 01-Aug-2017
421,Revenue,CAHD,South Glos Users in South Glos Homes,Permanent Nursing,Beech House,620.20, 29-Aug-2017
422,Revenue,CAHD,Bed Purchasing - North,Permanent Nursing,Beech House,3300.00, 29-Aug-2017
423,Revenue,CAHD,Bed Purchasing - North,Permanent Nursing,Beech House,3169.68, 01-Aug-2017
424,Revenue,CAHD,South Glos Users in South Glos Homes,Permanent Nursing,Beech House,620.20, 01-Aug-2017
425,Revenue,CAHD,Bed Purchasing - North,Permanent Nursing,Beech House,3169.68, 29-Aug-2017
426,Revenue,CAHD,South Glos Users in South Glos Homes,Permanent Nursing,Beech House,620.20, 29-Aug-2017
427,Revenue,CAHD,South Glos Users in South Glos Homes,Permanent Nursing,Beech House,620.20, 01-Aug-2017
428,Revenue,CAHD,South Glos Users in South Glos Homes,Permanent Nursing,Beech House,620.20, 29-Aug-2017
429,Revenue,CAHD,South Glos Users in South Glos Homes,Permanent Nursing,Beech House,620.20, 01-Aug-2017
430,Revenue,CAHD,South Glos Users in South Glos Homes,Permanent Nursing,Beech House,620.20, 29-Aug-2017
431,Revenue,CAHD,South Glos Users in South Glos Homes,Permanent Nursing,Beech House,620.20, 01-Aug-2017
432,Revenue,CAHD,South Glos Users in South Glos Homes,Permanent Nursing,Beech House,620.20, 01-Aug-2017
433,Revenue,CAHD,South Glos Users in South Glos Homes,Permanent Nursing,Beech House,620.20, 29-Aug-2017
434,Revenue,CAHD,South Glos Users in South Glos Homes,Permanent Nursing,Beech House,620.20, 01-Aug-2017
435,Revenue,CAHD,South Glos Users in South Glos Homes,Permanent Nursing,Beech House,620.20, 29-Aug-2017
436,Revenue,CAHD,South Glos Users in South Glos Homes,Permanent Nursing,Beech House,620.20, 01-Aug-2017
437,Revenue,CAHD,South Glos Users in South Glos Homes,Permanent Nursing,Beech House,620.20, 29-Aug-2017
438,Revenue,CAHD,South Glos Users in South Glos Homes,Permanent Nursing,Beech House,620.20, 01-Aug-2017
439,Revenue,CAHD,South Glos Users in South Glos Homes,Permanent Nursing,Beech House,620.20, 29-Aug-2017
440,Revenue,CAHD,Bed Purchasing - North,Adults - Family Support,Individual,1488.00, 07-Aug-2017
441,Revenue,CAHD,Home Care - Elderly - North,Other Small Contracts,Bibby Factors Bristol Limited,8076.03, 04-Aug-2017
442,Revenue,CAHD,Home Care - Elderly - North,Other Small Contracts,Bibby Factors Bristol Limited,7650.43, 18-Aug-2017
443,Revenue,CAHD,Home Care - Elderly - North,Other Small Contracts,Bibby Factors Bristol Limited,7930.74, 18-Aug-2017
444,Revenue,CAHD,Home Care - Elderly - North,Other Small Contracts,Bibby Factors Bristol Limited,7765.56, 25-Aug-2017
445,Revenue,CAHD,Home Care - Elderly - North,Other Small Contracts,Bibby Factors Bristol Limited,8118.02, 25-Aug-2017
446,Revenue,CAHD,South Glos Users in South Glos Homes,Permanent Nursing,Blossom Field,531.60, 29-Aug-2017
447,Revenue,CAHD,Bed purchasing - Elderly S117 - South,Permanent Nursing,Blossom Field,4179.80, 29-Aug-2017
448,Revenue,CAHD,Bed purchasing - Elderly S117 - South,Permanent Nursing,Blossom Field,3731.96, 29-Aug-2017
449,Revenue,CAHD,South Glos Users in South Glos Homes,Permanent Nursing,Blossom Field,620.20, 29-Aug-2017
450,Revenue,CAHD,South Glos Users in South Glos Homes,Permanent Nursing,Blossom Field,553.75, 29-Aug-2017
451,Revenue,CAHD,Bed Purchasing - North,Permanent Nursing,Blossom Field,3523.92, 01-Aug-2017
452,Revenue,CAHD,South Glos Users in South Glos Homes,Permanent Nursing,Blossom Field,620.20, 01-Aug-2017
453,Revenue,CAHD,Bed Purchasing - North,Permanent Nursing,Blossom Field,3523.92, 29-Aug-2017
454,Revenue,CAHD,South Glos Users in South Glos Homes,Permanent Nursing,Blossom Field,620.20, 29-Aug-2017
455,Revenue,CAHD,Bed Purchasing - Southmead Hospital,Permanent Nursing,Blossom Field,4400.00, 01-Aug-2017
456,Revenue,CAHD,Bed Purchasing - Southmead Hospital,Permanent Nursing,Blossom Field,4400.00, 01-Aug-2017
457,Revenue,CAHD,Bed Purchasing - Elderly S117- North,Permanent Nursing,Blossom Field,3539.76, 01-Aug-2017
458,Revenue,CAHD,South Glos Users in South Glos Homes,Permanent Nursing,Blossom Field,620.20, 01-Aug-2017
459,Revenue,CAHD,Bed Purchasing - Elderly S117- North,Permanent Nursing,Blossom Field,3539.76, 29-Aug-2017
460,Revenue,CAHD,South Glos Users in South Glos Homes,Permanent Nursing,Blossom Field,620.20, 29-Aug-2017
461,Revenue,CAHD,South Glos Users in South Glos Homes,Permanent Nursing,Blossom Field,620.20, 01-Aug-2017
462,Revenue,CAHD,South Glos Users in South Glos Homes,Permanent Nursing,Blossom Field,620.20, 29-Aug-2017
463,Revenue,CAHD,Bed Purchasing - Southmead Hospital,Permanent Nursing,Blossom Field,4862.40, 01-Aug-2017
464,Revenue,CAHD,South Glos Users in South Glos Homes,Permanent Nursing,Blossom Field,620.20, 01-Aug-2017
465,Revenue,CAHD,Bed Purchasing - Southmead Hospital,Permanent Nursing,Blossom Field,4862.40, 29-Aug-2017
466,Revenue,CAHD,South Glos Users in South Glos Homes,Permanent Nursing,Blossom Field,620.20, 29-Aug-2017
467,Revenue,CAHD,South Glos Users in South Glos Homes,Permanent Nursing,Blossom Field,620.20, 01-Aug-2017
468,Revenue,CAHD,South Glos Users in South Glos Homes,Permanent Nursing,Blossom Field,620.20, 29-Aug-2017
469,Revenue,CAHD,Bed Purchasing - North,Permanent Nursing,Blossom Field,3811.40, 01-Aug-2017
470,Revenue,CAHD,South Glos Users in South Glos Homes,Permanent Nursing,Blossom Field,620.20, 01-Aug-2017
471,Revenue,CAHD,Bed Purchasing - North,Fees & Charges Income - General,Blossom Field,811.22, 29-Aug-2017
472,Revenue,CAHD,South Glos Users in South Glos Homes,Permanent Nursing,Blossom Field,620.20, 01-Aug-2017
473,Revenue,CAHD,South Glos Users in South Glos Homes,Permanent Nursing,Blossom Field,620.20, 29-Aug-2017
474,Revenue,CAHD,South Glos Users in South Glos Homes,Permanent Nursing,Blossom Field,620.20, 01-Aug-2017
475,Revenue,CAHD,South Glos Users in South Glos Homes,Permanent Nursing,Blossom Field,620.20, 29-Aug-2017
476,Revenue,CAHD,South Glos Users in South Glos Homes,Permanent Nursing,Blossom Field,620.20, 01-Aug-2017
477,Revenue,CAHD,South Glos Users in South Glos Homes,Permanent Nursing,Blossom Field,620.20, 29-Aug-2017
478,Revenue,CAHD,South Glos Users in South Glos Homes,Permanent Nursing,Blossom Field,620.20, 01-Aug-2017
479,Revenue,CAHD,South Glos Users in South Glos Homes,Permanent Nursing,Blossom Field,620.20, 29-Aug-2017
480,Revenue,CAHD,South Glos Users in South Glos Homes,Permanent Nursing,Blossom Field,620.20, 01-Aug-2017
481,Revenue,CAHD,South Glos Users in South Glos Homes,Permanent Nursing,Blossom Field,620.20, 29-Aug-2017
482,Revenue,CAHD,South Glos Users in South Glos Homes,Permanent Nursing,Blossom Field,620.20, 01-Aug-2017
483,Revenue,CAHD,South Glos Users in South Glos Homes,Permanent Nursing,Blossom Field,620.20, 29-Aug-2017
484,Revenue,CAHD,South Glos Users in South Glos Homes,Permanent Nursing,Blossom Field,620.20, 01-Aug-2017
485,Revenue,CAHD,South Glos Users in South Glos Homes,Permanent Nursing,Blossom Field,620.20, 29-Aug-2017
486,Revenue,CAHD,Bed purchasing - Elderly S117 - South,Permanent Nursing,Blossom Field,4468.56, 01-Aug-2017
487,Revenue,CAHD,South Glos Users in South Glos Homes,Permanent Nursing,Blossom Field,620.20, 01-Aug-2017
488,Revenue,CAHD,Bed purchasing - Elderly S117 - South,Permanent Nursing,Blossom Field,4468.56, 29-Aug-2017
489,Revenue,CAHD,South Glos Users in South Glos Homes,Permanent Nursing,Blossom Field,620.20, 29-Aug-2017
490,Revenue,CAHD,South Glos Users in South Glos Homes,Permanent Nursing,Blossom Field,620.20, 01-Aug-2017
491,Revenue,CAHD,South Glos Users in South Glos Homes,Permanent Nursing,Blossom Field,620.20, 29-Aug-2017
492,Revenue,CAHD,Bed Purchasing - South,Permanent Nursing,Blossom Field,4229.28, 01-Aug-2017
493,Revenue,CAHD,South Glos Users in South Glos Homes,Permanent Nursing,Blossom Field,620.20, 01-Aug-2017
494,Revenue,CAHD,Bed Purchasing - South,Permanent Nursing,Blossom Field,4229.28, 29-Aug-2017
495,Revenue,CAHD,South Glos Users in South Glos Homes,Permanent Nursing,Blossom Field,620.20, 29-Aug-2017
496,Revenue,CAHD,South Glos Users in South Glos Homes,Permanent Nursing,Blossom Field,620.20, 01-Aug-2017
497,Revenue,CAHD,South Glos Users in South Glos Homes,Permanent Nursing,Blossom Field,620.20, 29-Aug-2017
498,Revenue,CAHD,South Glos Users in South Glos Homes,Permanent Nursing,Blossom Field,620.20, 01-Aug-2017
499,Revenue,CAHD,South Glos Users in South Glos Homes,Permanent Nursing,Blossom Field,620.20, 29-Aug-2017
500,Revenue,CAHD,South Glos Users in South Glos Homes,Permanent Nursing,Blossom Field,620.20, 01-Aug-2017
501,Revenue,CAHD,South Glos Users in South Glos Homes,Permanent Nursing,Blossom Field,620.20, 29-Aug-2017
502,Revenue,CAHD,South Glos Users in South Glos Homes,Permanent Nursing,Blossom Field,620.20, 01-Aug-2017
503,Revenue,CAHD,South Glos Users in South Glos Homes,Permanent Nursing,Blossom Field,620.20, 29-Aug-2017
504,Revenue,CAHD,South Glos Users in South Glos Homes,Permanent Nursing,Blossom Field,620.20, 01-Aug-2017
505,Revenue,CAHD,South Glos Users in South Glos Homes,Permanent Nursing,Blossom Field,620.20, 29-Aug-2017
506,Revenue,CAHD,South Glos Users in South Glos Homes,Permanent Nursing,Blossom Field,620.20, 01-Aug-2017
507,Revenue,CAHD,South Glos Users in South Glos Homes,Permanent Nursing,Blossom Field,620.20, 29-Aug-2017
508,Revenue,CAHD,South Glos Users in South Glos Homes,Permanent Nursing,Blossom Field,620.20, 01-Aug-2017
509,Revenue,CAHD,South Glos Users in South Glos Homes,Permanent Nursing,Blossom Field,620.20, 29-Aug-2017
510,Revenue,CAHD,South Glos Users in South Glos Homes,Permanent Nursing,Blossom Field,620.20, 01-Aug-2017
511,Revenue,CAHD,South Glos Users in South Glos Homes,Permanent Nursing,Blossom Field,620.20, 29-Aug-2017
512,Revenue,CAHD,South Glos Users in South Glos Homes,Permanent Nursing,Blossom Field,620.20, 01-Aug-2017
513,Revenue,CAHD,Bed Purchasing - North,Permanent Nursing,Blossom Field,15077.14, 29-Aug-2017
514,Revenue,CAHD,Bed Purchasing - North,Permanent Nursing,Blossom Field,4179.80, 29-Aug-2017
515,Revenue,CAHD,South Glos Users in South Glos Homes,Permanent Nursing,Blossom Field,620.20, 29-Aug-2017
516,Revenue,CAHD,Bed Purchasing - North,Permanent Nursing,Blossom Field,3824.08, 01-Aug-2017
517,Revenue,CAHD,South Glos Users in South Glos Homes,Permanent Nursing,Blossom Field,620.20, 01-Aug-2017
518,Revenue,CAHD,Bed Purchasing - North,Permanent Nursing,Blossom Field,3824.08, 29-Aug-2017
519,Revenue,CAHD,South Glos Users in South Glos Homes,Permanent Nursing,Blossom Field,620.20, 29-Aug-2017
520,Revenue,CAHD,Bed Purchasing - North,Permanent Nursing,Blossom Field,3483.56, 01-Aug-2017
521,Revenue,CAHD,South Glos Users in South Glos Homes,Permanent Nursing,Blossom Field,620.20, 01-Aug-2017
522,Revenue,CAHD,Bed Purchasing - North,Permanent Nursing,Blossom Field,3483.56, 29-Aug-2017
523,Revenue,CAHD,South Glos Users in South Glos Homes,Permanent Nursing,Blossom Field,620.20, 29-Aug-2017
524,Revenue,CAHD,South Glos Users in South Glos Homes,Permanent Nursing,Blossom Field,620.20, 01-Aug-2017
525,Revenue,CAHD,South Glos Users in South Glos Homes,Permanent Nursing,Blossom Field,620.20, 29-Aug-2017
526,Revenue,CAHD,South Glos Users in South Glos Homes,Permanent Nursing,Blossom Fields,620.20, 17-Aug-2017
527,Revenue,CAHD,Bed Purchasing - North,Permanent Nursing,Blossom Fields,1880.20, 17-Aug-2017
528,Revenue,CAHD,South Glos Users in South Glos Homes,Permanent Nursing,Blossom Fields,620.20, 17-Aug-2017
529,Revenue,CAHD,Bed Purchasing - North,Permanent Nursing,Blossom Fields,2688.00, 17-Aug-2017
530,Revenue,CAHD,Home Care - Elderly - South,Other Small Contracts,Bluebird Care (South Gloucestershire),288.96, 11-Aug-2017
531,Revenue,CAHD,Home Care - Elderly - North,Other Small Contracts,Bluebird Care (South Gloucestershire),401.88, 11-Aug-2017
532,Revenue,CAHD,Home Care - Elderly - South,Other Small Contracts,Bluebird Care (South Gloucestershire),288.96, 14-Aug-2017
533,Revenue,CAHD,Home Care - Elderly - North,Other Small Contracts,Bluebird Care (South Gloucestershire),412.20, 14-Aug-2017
534,Revenue,CAHD,Home Care - Elderly - South,Other Small Contracts,Bluebird Care (South Gloucestershire),288.96, 23-Aug-2017
535,Revenue,CAHD,Home Care - Elderly - North,Other Small Contracts,Bluebird Care (South Gloucestershire),407.04, 23-Aug-2017
536,Revenue,CAHD,Home Care - Elderly - South,Other Small Contracts,Bluebird Care (South Gloucestershire),288.96, 31-Aug-2017
537,Revenue,CAHD,Home Care - Elderly - North,Other Small Contracts,Bluebird Care (South Gloucestershire),407.04, 31-Aug-2017
538,Revenue,CAHD,Bed purchasing - S28A Under 65 - South,Permanent Residential,Bradbury House,4854.16, 01-Aug-2017
539,Revenue,CAHD,Bed purchasing - S28A Under 65 - South,Permanent Residential,Bradbury House,4854.16, 29-Aug-2017
540,Revenue,CAHD,Bed Purchasing - South,Permanent Residential,Bradbury House,8375.20, 01-Aug-2017
541,Revenue,CAHD,Bed Purchasing - South,Permanent Residential,Bradbury House,8375.20, 29-Aug-2017
542,Revenue,CAHD,Bed purchasing - S28A Under 65 - South,Permanent Residential,Bradbury House,7152.84, 01-Aug-2017
543,Revenue,CAHD,Bed purchasing - S28A Under 65 - South,Permanent Residential,Bradbury House,7152.84, 29-Aug-2017
544,Revenue,CAHD,18-25 Year Olds,Permanent Residential,Bradbury House,9504.08, 01-Aug-2017
545,Revenue,CAHD,18-25 Year Olds,Permanent Residential,Bradbury House,9504.08, 29-Aug-2017
546,Revenue,CAHD,Bed purchasing - Elderly S117 - South,Permanent Residential,Bradbury House,8572.56, 01-Aug-2017
547,Revenue,CAHD,Jointly Funded H&SC Packages,Permanent Residential,Bradbury House,3184.96, 01-Aug-2017
548,Revenue,CAHD,Bed purchasing - Elderly S117 - South,Permanent Residential,Bradbury House,8572.56, 29-Aug-2017
549,Revenue,CAHD,Jointly Funded H&SC Packages,Permanent Residential,Bradbury House,3184.96, 29-Aug-2017
550,Revenue,CAHD,Bed Purchasing - North,Permanent Residential,Bradbury House,5952.84, 01-Aug-2017
551,Revenue,CAHD,Jointly Funded H&SC Packages,Permanent Residential,Bradbury House,8223.16, 01-Aug-2017
552,Revenue,CAHD,Bed Purchasing - North,Permanent Residential,Bradbury House,5952.84, 29-Aug-2017
553,Revenue,CAHD,Jointly Funded H&SC Packages,Permanent Residential,Bradbury House,8223.16, 29-Aug-2017
554,Revenue,CAHD,Home Care - Elderly - North,Other Small Contracts,Bramble Home Care Limited,2142.00, 16-Aug-2017
555,Revenue,CAHD,Home Care - Elderly - North,Other Small Contracts,Bramble Home Care Limited,2142.00, 15-Aug-2017
556,Revenue,CAHD,Home Care - Elderly - North,Other Small Contracts,Bramble Home Care Limited,1103.52, 16-Aug-2017
557,Revenue,CAHD,Home Care - Elderly - North,Other Small Contracts,Bramble Home Care Limited,654.16, 16-Aug-2017
558,Revenue,CAHD,Home Care - Elderly - North,Other Small Contracts,Bramble Home Care Limited,1112.64, 16-Aug-2017
559,Revenue,CAHD,Home Care - Elderly - North,Other Small Contracts,Bramble Home Care Limited,813.28, 16-Aug-2017
560,Revenue,CAHD,Home Care - Elderly - North,Other Small Contracts,Bramble Home Care Limited,583.44, 15-Aug-2017
561,Revenue,CAHD,Home Care - Elderly - North,Other Small Contracts,Bramble Home Care Limited,1254.40, 16-Aug-2017
562,Revenue,CAHD,Home Care - Elderly - North,Other Small Contracts,Bramble Home Care Limited,972.10, 15-Aug-2017
563,Revenue,CAHD,Home Care - Elderly - North,Other Small Contracts,Bramble Home Care Limited,653.96, 16-Aug-2017
564,Revenue,CAHD,Home Care - Elderly - North,Other Small Contracts,Bramble Home Care Limited,541.20, 17-Aug-2017
565,Revenue,CAHD,Home Care - Elderly - North,Other Small Contracts,Bramble Home Care Limited,510.76, 15-Aug-2017
566,Revenue,CAHD,Home Care - Elderly - North,Other Small Contracts,Bramble Home Care Limited,501.76, 15-Aug-2017
567,Revenue,CAHD,Home Care - Elderly - North,Other Small Contracts,Bramble Home Care Limited,591.36, 09-Aug-2017
568,Revenue,CAHD,Home Care - Elderly - North,Other Small Contracts,Bramble Home Care Limited,663.04, 15-Aug-2017
569,Revenue,CAHD,Home Care - Elderly - North,Other Small Contracts,Bramble Home Care Limited,510.72, 09-Aug-2017
570,Revenue,CAHD,Home Care - Elderly - North,Other Small Contracts,Bramble Home Care Limited,949.76, 10-Aug-2017
571,Revenue,CAHD,Home Care - Elderly - North,Other Small Contracts,Bramble Home Care Limited,896.00, 10-Aug-2017
572,Revenue,CAHD,Home Care - Elderly - North,Other Small Contracts,Bramble Home Care Limited,884.64, 10-Aug-2017
573,Revenue,CAHD,Home Care - Elderly - North,Other Small Contracts,Bramble Home Care Limited,645.12, 10-Aug-2017
574,Revenue,CAHD,Home Care - Elderly - North,Other Small Contracts,Bramble Home Care Limited,506.24, 10-Aug-2017
575,Revenue,CAHD,Home Care - Elderly - North,Other Small Contracts,Bramble Home Care Limited,645.12, 10-Aug-2017
576,Revenue,CAHD,Home Care - Elderly - North,Other Small Contracts,Bramble Home Care Limited,555.52, 10-Aug-2017
577,Revenue,CAHD,Bed Purchasing - North,Permanent Nursing,Breadstone House Care Centre,7684.76, 04-Aug-2017
578,Revenue,CAHD,Social Lettings Agency,Fees - General,Individual ,11.41, 03-Aug-2017
579,Revenue,CAHD,Social Lettings Agency,Other Supplies & Services,Individual ,746.54, 03-Aug-2017
580,Revenue,CAHD,Bed Purchasing - Southmead Hospital,Permanent Residential,Bridge House Care Home,2423.08, 01-Aug-2017
581,Revenue,CAHD,Bed Purchasing - Southmead Hospital,Permanent Residential,Bridge House Care Home,2423.08, 29-Aug-2017
582,Revenue,CAHD,Bed Purchasing - North,Permanent Residential,Bridge House Care Home,2382.12, 01-Aug-2017
583,Revenue,CAHD,Bed Purchasing - North,Permanent Residential,Bridge House Care Home,2382.12, 29-Aug-2017
584,Revenue,CAHD,Home Care - Elderly - North,Day Care / Social Activities,Bridge House Care Home,526.72, 01-Aug-2017
585,Revenue,CAHD,Home Care - Elderly - North,Day Care / Social Activities,Bridge House Care Home,526.72, 29-Aug-2017
586,Revenue,CAHD,Bed Purchasing - Southmead Hospital,Permanent Residential,Bridge House Care Home,3359.10, 01-Aug-2017
587,Revenue,CAHD,Bed Purchasing - Southmead Hospital,Permanent Residential,Bridge House Care Home,2464.00, 01-Aug-2017
588,Revenue,CAHD,Bed Purchasing - Southmead Hospital,Permanent Residential,Bridge House Care Home,2464.00, 29-Aug-2017
589,Revenue,CAHD,Bed Purchasing - North,Permanent Residential,Bridge House Care Home,2496.04, 01-Aug-2017
590,Revenue,CAHD,Bed Purchasing - North,Permanent Residential,Bridge House Care Home,2496.04, 29-Aug-2017
591,Revenue,CAHD,Bed Purchasing - North,Permanent Residential,Bridge House Care Home,2191.80, 01-Aug-2017
592,Revenue,CAHD,Bed Purchasing - North,Permanent Residential,Bridge House Care Home,2191.80, 29-Aug-2017
593,Revenue,CAHD,Bed Purchasing - North,Permanent Residential,Bridgwater Court,10324.96, 01-Aug-2017
594,Revenue,CAHD,Bed Purchasing - North,Permanent Residential,Bridgwater Court,10324.96, 29-Aug-2017
595,Revenue,CAHD,Home Care - Elderly - North,Day Care / Social Activities,Bristol Community Links North,996.32, 01-Aug-2017
596,Revenue,CAHD,Home Care - Elderly - North,Day Care / Social Activities,Bristol Community Links North,996.32, 29-Aug-2017
597,Revenue,CAHD,Home Care - Elderly - North,Day Care / Social Activities,Bristol Community Links North,2490.80, 01-Aug-2017
598,Revenue,CAHD,Home Care - Elderly - North,Day Care / Social Activities,Bristol Community Links North,2490.80, 29-Aug-2017
599,Revenue,CAHD,Home Care - Elderly - South,Supported Living,Bristol Houses UK Limited,710.40, 11-Aug-2017
600,Revenue,CAHD,Home Care - Elderly - South,Day Care / Social Activities,Bristol Houses UK Limited,1436.64, 10-Aug-2017
601,Revenue,CAHD,Home Care - Elderly - South,Day Care / Social Activities,Bristol Houses UK Limited,1331.52, 07-Aug-2017
602,Revenue,CAHD,Home Care - Elderly - South,Day Care / Social Activities,Bristol Houses UK Limited,1349.76, 04-Aug-2017
603,Revenue,CAHD,Home Care - Elderly - South,Day Care / Social Activities,Bristol Houses UK Limited,1336.44, 11-Aug-2017
604,Revenue,CAHD,18-25 Year Olds,SU Employment Support,Britannia House,712.08, 01-Aug-2017
605,Revenue,CAHD,18-25 Year Olds,SU Employment Support,Britannia House,712.08, 29-Aug-2017
606,Revenue,CAHD,Home Care - Elderly - North,Day Care / Social Activities,Britannia House,949.44, 01-Aug-2017
607,Revenue,CAHD,Home Care - Elderly - North,Day Care / Social Activities,Britannia House,949.44, 29-Aug-2017
608,Revenue,CAHD,18-25 Year Olds,Day Care / Social Activities,Britannia House,712.08, 01-Aug-2017
609,Revenue,CAHD,18-25 Year Olds,Day Care / Social Activities,Britannia House,712.08, 29-Aug-2017
610,Revenue,CAHD,Home Care - Elderly - South,Supported Living,Britannia House,2209.12, 01-Aug-2017
611,Revenue,CAHD,Home Care - Elderly - South,Supported Living,Britannia House,2209.12, 29-Aug-2017
612,Revenue,CAHD,Home Care - Elderly - North,Day Care / Social Activities,Britannia House,712.08, 01-Aug-2017
613,Revenue,CAHD,Home Care - Elderly - North,Day Care / Social Activities,Britannia House,712.08, 29-Aug-2017
614,Revenue,CAHD,Home Care - Elderly - North,Day Care / Social Activities,Britannia House,949.44, 01-Aug-2017
615,Revenue,CAHD,Home Care - Elderly - North,Day Care / Social Activities,Britannia House,949.44, 29-Aug-2017
616,Revenue,CAHD,Home Care - Elderly - South,Day Care / Social Activities,Britannia House,949.44, 01-Aug-2017
617,Revenue,CAHD,Home Care - Elderly - South,Day Care / Social Activities,Britannia House,949.44, 29-Aug-2017
618,Revenue,CAHD,Home Care - Elderly - South,Day Care / Social Activities,Britannia House,712.08, 01-Aug-2017
619,Revenue,CAHD,Home Care - Elderly - South,Day Care / Social Activities,Britannia House,712.08, 29-Aug-2017
620,Revenue,CAHD,Home Care - Elderly - South,Day Care / Social Activities,Britannia House,712.08, 01-Aug-2017
621,Revenue,CAHD,Home Care - Elderly - South,Day Care / Social Activities,Britannia House,712.08, 29-Aug-2017
622,Revenue,CAHD,South Glos Users in South Glos Homes,Permanent Nursing,Britannia House,620.20, 01-Aug-2017
623,Revenue,CAHD,South Glos Users in South Glos Homes,Permanent Nursing,Britannia House,620.20, 29-Aug-2017
624,Revenue,CAHD,South Glos Users in South Glos Homes,Permanent Nursing,Britannia House,620.20, 01-Aug-2017
625,Revenue,CAHD,South Glos Users in South Glos Homes,Permanent Nursing,Britannia House,620.20, 29-Aug-2017
626,Revenue,CAHD,South Glos Users in South Glos Homes,Permanent Nursing,Britannia House,620.20, 01-Aug-2017
627,Revenue,CAHD,South Glos Users in South Glos Homes,Permanent Nursing,Britannia House,620.20, 29-Aug-2017
628,Revenue,CAHD,Bed Purchasing - South,Permanent Nursing,Britannia House,19634.16, 01-Aug-2017
629,Revenue,CAHD,Bed Purchasing - South,Permanent Nursing,Britannia House,5609.76, 01-Aug-2017
630,Revenue,CAHD,South Glos Users in South Glos Homes,Permanent Nursing,Britannia House,620.20, 01-Aug-2017
631,Revenue,CAHD,Bed Purchasing - South,Fees & Charges Income - General,Britannia House,1285.25, 01-Aug-2017
632,Revenue,CAHD,Bed Purchasing - South,Permanent Nursing,Britannia House,5609.76, 29-Aug-2017
633,Revenue,CAHD,South Glos Users in South Glos Homes,Permanent Nursing,Britannia House,620.20, 29-Aug-2017
634,Revenue,CAHD,Bed Purchasing - South,Permanent Residential,Britannia House,10988.80, 01-Aug-2017
635,Revenue,CAHD,Bed Purchasing - South,Permanent Residential,Britannia House,10988.80, 29-Aug-2017
636,Revenue,CAHD,Bed Purchasing - South,Permanent Nursing,Britannia House,5559.08, 01-Aug-2017
637,Revenue,CAHD,South Glos Users in South Glos Homes,Permanent Nursing,Britannia House,620.20, 01-Aug-2017
638,Revenue,CAHD,Bed Purchasing - South,Permanent Nursing,Britannia House,5559.08, 29-Aug-2017
639,Revenue,CAHD,South Glos Users in South Glos Homes,Permanent Nursing,Britannia House,620.20, 29-Aug-2017
640,Revenue,CAHD,Bed purchasing - S28A Under 65 - South,Permanent Nursing,Britannia House,5893.56, 01-Aug-2017
641,Revenue,CAHD,South Glos Users in South Glos Homes,Permanent Nursing,Britannia House,620.20, 01-Aug-2017
642,Revenue,CAHD,Bed purchasing - S28A Under 65 - South,Permanent Nursing,Britannia House,5893.56, 29-Aug-2017
643,Revenue,CAHD,South Glos Users in South Glos Homes,Permanent Nursing,Britannia House,620.20, 29-Aug-2017
644,Revenue,CAHD,Bed purchasing - S28A Under 65 - South,Permanent Residential,Britannia House,5789.24, 01-Aug-2017
645,Revenue,CAHD,Bed purchasing - S28A Under 65 - South,Permanent Residential,Britannia House,5789.24, 29-Aug-2017
646,Revenue,CAHD,Bed Purchasing - LD S28A- Over 65- South,Permanent Nursing,Britannia House,5893.56, 01-Aug-2017
647,Revenue,CAHD,South Glos Users in South Glos Homes,Permanent Nursing,Britannia House,620.20, 01-Aug-2017
648,Revenue,CAHD,Bed Purchasing - LD S28A- Over 65- South,Permanent Nursing,Britannia House,5893.56, 29-Aug-2017
649,Revenue,CAHD,South Glos Users in South Glos Homes,Permanent Nursing,Britannia House,620.20, 29-Aug-2017
650,Revenue,CAHD,Bed Purchasing - LD S28A- Over 65- South,Permanent Nursing,Britannia House,5559.08, 01-Aug-2017
651,Revenue,CAHD,South Glos Users in South Glos Homes,Permanent Nursing,Britannia House,620.20, 01-Aug-2017
652,Revenue,CAHD,Bed Purchasing - LD S28A- Over 65- South,Permanent Nursing,Britannia House,5559.08, 29-Aug-2017
653,Revenue,CAHD,South Glos Users in South Glos Homes,Permanent Nursing,Britannia House,620.20, 29-Aug-2017
654,Revenue,CAHD,Bed Purchasing - South,Permanent Residential,Britannia House,3756.88, 01-Aug-2017
655,Revenue,CAHD,Bed Purchasing - South,Permanent Residential,Britannia House,3756.88, 29-Aug-2017
656,Revenue,CAHD,Bed purchasing - S28A Under 65 - South,Permanent Residential,Britannia House,5670.48, 01-Aug-2017
657,Revenue,CAHD,Bed purchasing - S28A Under 65 - South,Permanent Residential,Britannia House,5670.48, 29-Aug-2017
658,Revenue,CAHD,Bed purchasing - S28A Under 65 - South,Permanent Residential,Britannia House,5789.04, 01-Aug-2017
659,Revenue,CAHD,Bed purchasing - S28A Under 65 - South,Permanent Residential,Britannia House,5789.04, 29-Aug-2017
660,Revenue,CAHD,Bed Purchasing - North,Permanent Nursing,Britannia House,5553.32, 01-Aug-2017
661,Revenue,CAHD,South Glos Users in South Glos Homes,Permanent Nursing,Britannia House,620.20, 01-Aug-2017
662,Revenue,CAHD,Bed Purchasing - North,Fees & Charges Income - General,Britannia House,1451.54, 01-Aug-2017
663,Revenue,CAHD,Bed Purchasing - North,Permanent Nursing,Britannia House,5553.32, 29-Aug-2017
664,Revenue,CAHD,South Glos Users in South Glos Homes,Permanent Nursing,Britannia House,620.20, 29-Aug-2017
665,Revenue,CAHD,Bed purchasing - S28A Under 65 - South,Permanent Nursing,Britannia House,5893.56, 01-Aug-2017
666,Revenue,CAHD,South Glos Users in South Glos Homes,Permanent Nursing,Britannia House,620.20, 01-Aug-2017
667,Revenue,CAHD,Bed purchasing - S28A Under 65 - South,Fees & Charges Income - General,Britannia House,1118.96, 01-Aug-2017
668,Revenue,CAHD,Bed purchasing - S28A Under 65 - South,Permanent Nursing,Britannia House,5893.56, 29-Aug-2017
669,Revenue,CAHD,South Glos Users in South Glos Homes,Permanent Nursing,Britannia House,620.20, 29-Aug-2017
670,Revenue,CAHD,Bed purchasing -S28A  Under 65 - North,Permanent Nursing,Britannia House,5335.52, 01-Aug-2017
671,Revenue,CAHD,Bed purchasing -S28A  Under 65 - North,Permanent Nursing,Britannia House,5335.52, 29-Aug-2017
672,Revenue,CAHD,Bed purchasing - S28A Under 65 - South,Permanent Residential,Britannia House,5789.04, 01-Aug-2017
673,Revenue,CAHD,Bed purchasing - S28A Under 65 - South,Permanent Residential,Britannia House,5789.04, 29-Aug-2017
674,Revenue,CAHD,Bed Purchasing - LD S28A- Over 65- South,Permanent Residential,Britannia House,5442.56, 01-Aug-2017
675,Revenue,CAHD,Bed Purchasing - LD S28A- Over 65- South,Permanent Residential,Britannia House,5442.56, 29-Aug-2017
676,Revenue,CAHD,Bed purchasing - S28A Under 65 - South,Permanent Residential,Britannia House,9567.24, 01-Aug-2017
677,Revenue,CAHD,Bed purchasing - S28A Under 65 - South,Permanent Residential,Britannia House,9567.24, 29-Aug-2017
678,Revenue,CAHD,User Involvement,"Provisions (Food, etc)",British Youth Council,510.00, 16-Aug-2017
679,Revenue,CAHD,Supporting People Programme,Grants to Voluntary Bodies,Bromford Housing Group,14395.08, 01-Aug-2017
680,Revenue,CAHD,Pathway 1 - Re-Ablement Home Care,Private & Voluntary Home Care,Brunelcare,24132.35, 07-Aug-2017
681,Revenue,CAHD,Pathway 1 - Re-Ablement Home Care,Private & Voluntary Home Care,Brunelcare,24132.35, 14-Aug-2017
682,Revenue,CAHD,Pathway 1 - Re-Ablement Home Care,Private & Voluntary Home Care,Brunelcare,24132.35, 21-Aug-2017
683,Revenue,CAHD,Pathway 1 - Re-Ablement Home Care,Private & Voluntary Home Care,Brunelcare,24132.35, 25-Aug-2017
684,Revenue,CAHD,South Glos Users in South Glos Homes,Permanent Nursing,Brunelcare,686.65, 11-Aug-2017
685,Revenue,CAHD,South Glos Users in South Glos Homes,Permanent Nursing,Brunelcare,686.65, 11-Aug-2017
686,Revenue,CAHD,South Glos Users in South Glos Homes,Permanent Nursing,Brunelcare,686.65, 11-Aug-2017
687,Revenue,CAHD,South Glos Users in South Glos Homes,Permanent Nursing,Brunelcare,686.65, 11-Aug-2017
688,Revenue,CAHD,South Glos Users in South Glos Homes,Permanent Nursing,Brunelcare,686.65, 11-Aug-2017
689,Revenue,CAHD,South Glos Users in South Glos Homes,Permanent Nursing,Brunelcare,686.65, 11-Aug-2017
690,Revenue,CAHD,South Glos Users in South Glos Homes,Permanent Nursing,Brunelcare,686.65, 11-Aug-2017
691,Revenue,CAHD,South Glos Users in South Glos Homes,Permanent Nursing,Brunelcare,686.65, 11-Aug-2017
692,Revenue,CAHD,South Glos Users in South Glos Homes,Permanent Nursing,Brunelcare,686.65, 11-Aug-2017
693,Revenue,CAHD,South Glos Users in South Glos Homes,Permanent Nursing,Brunelcare,686.65, 11-Aug-2017
694,Revenue,CAHD,South Glos Users in South Glos Homes,Permanent Nursing,Brunelcare,686.65, 11-Aug-2017
695,Revenue,CAHD,South Glos Users in South Glos Homes,Permanent Nursing,Brunelcare,686.65, 11-Aug-2017
696,Revenue,CAHD,South Glos Users in South Glos Homes,Permanent Nursing,Brunelcare,686.65, 11-Aug-2017
697,Revenue,CAHD,South Glos Users in South Glos Homes,Permanent Nursing,Brunelcare,686.65, 11-Aug-2017
698,Revenue,CAHD,South Glos Users in South Glos Homes,Permanent Nursing,Brunelcare,686.65, 11-Aug-2017
699,Revenue,CAHD,Bed purchasing - Elderly S117 - South,Permanent Nursing,Brunelcare,3516.29, 11-Aug-2017
700,Revenue,CAHD,Bed Purchasing - Elderly S117- North,Permanent Nursing,Brunelcare,3516.29, 11-Aug-2017
701,Revenue,CAHD,Bed Purchasing - Elderly S117- North,Permanent Nursing,Brunelcare,3516.29, 11-Aug-2017
702,Revenue,CAHD,Bed Purchasing - Southmead Hospital,Permanent Nursing,Brunelcare,2853.11, 11-Aug-2017
703,Revenue,CAHD,Bed Purchasing - Southmead Hospital,Permanent Nursing,Brunelcare,2749.83, 11-Aug-2017
704,Revenue,CAHD,Bed Purchasing - Southmead Hospital,Permanent Nursing,Brunelcare,2920.86, 11-Aug-2017
705,Revenue,CAHD,Bed Purchasing - Southmead Hospital,Permanent Nursing,Brunelcare,3516.29, 11-Aug-2017
706,Revenue,CAHD,Bed Purchasing - South,Permanent Nursing,Brunelcare,2913.25, 11-Aug-2017
707,Revenue,CAHD,Bed Purchasing - South,Permanent Nursing,Brunelcare,2794.65, 11-Aug-2017
708,Revenue,CAHD,Bed Purchasing - South,Permanent Nursing,Brunelcare,2703.82, 11-Aug-2017
709,Revenue,CAHD,Bed Purchasing - South,Permanent Nursing,Brunelcare,2729.15, 11-Aug-2017
710,Revenue,CAHD,Bed Purchasing - South,Respite Planned - Nursing,Brunelcare,567.14, 11-Aug-2017
711,Revenue,CAHD,Bed Purchasing - South,Respite Planned - Nursing,Brunelcare,1220.21, 11-Aug-2017
712,Revenue,CAHD,Bed Purchasing - North,Permanent Nursing,Brunelcare,2882.60, 11-Aug-2017
713,Revenue,CAHD,Bed Purchasing - North,Permanent Nursing,Brunelcare,2847.04, 11-Aug-2017
714,Revenue,CAHD,Bed Purchasing - North,Permanent Nursing,Brunelcare,2880.21, 11-Aug-2017
715,Revenue,CAHD,Bed Purchasing - North,Permanent Nursing,Brunelcare,2920.86, 11-Aug-2017
716,Revenue,CAHD,Bed Purchasing - North,Respite Planned - Nursing,Brunelcare,3516.29, 11-Aug-2017
717,Revenue,CAHD,Bed Purchasing - North,Respite Planned - Nursing,Brunelcare,1220.21, 11-Aug-2017
718,Revenue,CAHD,Bed Purchasing - North,Respite Planned - Nursing,Brunelcare,907.43, 11-Aug-2017
719,Revenue,CAHD,South Glos Users in South Glos Homes,Permanent Nursing,Brunelcare,2819.22, 11-Aug-2017
720,Revenue,CAHD,Bed Purchasing - North,Respite Planned - Nursing,Brunelcare,1814.85, 11-Aug-2017
721,Revenue,CAHD,Pathway 2 - (Interim Beds),Permanent Nursing,Brunelcare,51751.00, 14-Aug-2017
722,Revenue,CAHD,Pathway 2 - (Interim Beds),Permanent Nursing,Brunelcare,16280.45, 14-Aug-2017
723,Revenue,CAHD,Home Care - Elderly - South,Other Small Contracts,Brunelcare,2087.68, 09-Aug-2017
724,Revenue,CAHD,Home Care - Elderly - North,Other Small Contracts,Brunelcare,1052.80, 09-Aug-2017
725,Revenue,CAHD,Home Care - Elderly - South,Other Small Contracts,Brunelcare,2405.76, 18-Aug-2017
726,Revenue,CAHD,Home Care - Elderly - North,Other Small Contracts,Brunelcare,1030.40, 18-Aug-2017
727,Revenue,CAHD,Home Care - Elderly - South,Other Small Contracts,Brunelcare,2472.96, 22-Aug-2017
728,Revenue,CAHD,Home Care - Elderly - North,Other Small Contracts,Brunelcare,1048.32, 22-Aug-2017
729,Revenue,CAHD,Home Care - Elderly - South,Other Small Contracts,Brunelcare,2347.52, 22-Aug-2017
730,Revenue,CAHD,Home Care - Elderly - North,Other Small Contracts,Brunelcare,1057.28, 22-Aug-2017
731,Revenue,CAHD,Home Care - Elderly - South,Other Small Contracts,Brunelcare,2365.44, 31-Aug-2017
732,Revenue,CAHD,Home Care - Elderly - North,Other Small Contracts,Brunelcare,1093.12, 31-Aug-2017
733,Revenue,CAHD,Woodleaze,Agency Staff (Admin/Support Staff) Pay,BS Project Services Limited,698.40, 03-Aug-2017
734,Revenue,CAHD,Woodleaze,Agency Staff (Admin/Support Staff) Pay,BS Project Services Limited,559.86, 03-Aug-2017
735,Revenue,CAHD,Woodleaze,Agency Staff (Admin/Support Staff) Pay,BS Project Services Limited,453.96, 16-Aug-2017
736,Revenue,CAHD,Woodleaze,Agency Staff (Admin/Support Staff) Pay,BS Project Services Limited,585.91, 31-Aug-2017
737,Revenue,CAHD,Bed Purchasing - North,Permanent Nursing,Bupa Care Services  Bridge House,1762.64, 01-Aug-2017
738,Revenue,CAHD,Jointly Funded H&SC Packages,Permanent Nursing,Bupa Care Services  Bridge House,4400.48, 01-Aug-2017
739,Revenue,CAHD,South Glos Users in all other LA Homes,Permanent Nursing,Bupa Care Services  Bridge House,853.28, 01-Aug-2017
740,Revenue,CAHD,Bed Purchasing - North,Permanent Nursing,Bupa Care Services  Bridge House,1762.64, 29-Aug-2017
741,Revenue,CAHD,Jointly Funded H&SC Packages,Permanent Nursing,Bupa Care Services  Bridge House,4400.48, 29-Aug-2017
742,Revenue,CAHD,South Glos Users in all other LA Homes,Permanent Nursing,Bupa Care Services  Bridge House,853.28, 29-Aug-2017
743,Revenue,CAHD,Home Care - Elderly - South,Supported Living,Caegmoor SYI Bristol & Wiltshire Priory,652.80, 25-Aug-2017
744,Revenue,CAHD,Home Care - Elderly - South,Supported Living,Caegmoor SYI Bristol & Wiltshire Priory,822.12, 25-Aug-2017
745,Revenue,CAHD,Home Care - Elderly - South,Supported Living,Caegmoor SYI Bristol & Wiltshire Priory,806.00, 25-Aug-2017
746,Revenue,CAHD,Home Care - Elderly - South,Supported Living,Caegmoor SYI Bristol & Wiltshire Priory,822.12, 25-Aug-2017
747,Revenue,CAHD,Home Care - Elderly - South,Supported Living,Caegmoor SYI Bristol & Wiltshire Priory,728.64, 25-Aug-2017
748,Revenue,CAHD,Home Care - Elderly - North,Day Care / Social Activities,Camphill Communities Thornbury Limited,903.35, 04-Aug-2017
749,Revenue,CAHD,Home Care - Elderly - North,Other Small Contracts,Camphill Communities Thornbury Limited,160.20, 04-Aug-2017
750,Revenue,CAHD,Home Care - Elderly - North,Supported Living,Camphill Communities Thornbury Limited,1139.20, 04-Aug-2017
751,Revenue,CAHD,Home Care - Elderly - North,Day Care / Social Activities,Camphill Communities Thornbury Limited,507.30, 11-Aug-2017
752,Revenue,CAHD,Home Care - Elderly - North,Other Small Contracts,Camphill Communities Thornbury Limited,164.65, 11-Aug-2017
753,Revenue,CAHD,Home Care - Elderly - North,Supported Living,Camphill Communities Thornbury Limited,1139.20, 11-Aug-2017
754,Revenue,CAHD,Home Care - Elderly - North,Day Care / Social Activities,Camphill Communities Thornbury Limited,974.55, 18-Aug-2017
755,Revenue,CAHD,Home Care - Elderly - North,Other Small Contracts,Camphill Communities Thornbury Limited,160.20, 18-Aug-2017
756,Revenue,CAHD,Home Care - Elderly - North,Supported Living,Camphill Communities Thornbury Limited,952.30, 18-Aug-2017
757,Revenue,CAHD,Home Care - Elderly - North,Day Care / Social Activities,Camphill Communities Thornbury Limited,805.45, 24-Aug-2017
758,Revenue,CAHD,Home Care - Elderly - North,Other Small Contracts,Camphill Communities Thornbury Limited,164.65, 24-Aug-2017
759,Revenue,CAHD,Home Care - Elderly - North,Supported Living,Camphill Communities Thornbury Limited,970.10, 24-Aug-2017
760,Revenue,CAHD,Home Care - Elderly - North,Day Care / Social Activities,Camphill Communities Thornbury Limited,654.15, 30-Aug-2017
761,Revenue,CAHD,Home Care - Elderly - North,Supported Living,Camphill Communities Thornbury Limited,952.30, 30-Aug-2017
762,Revenue,CAHD,Bed Purchasing - Elderly S117- North,Permanent Residential,Canjayor,2422.40, 01-Aug-2017
763,Revenue,CAHD,Bed Purchasing - Elderly S117- North,Permanent Residential,Canjayor,2422.40, 29-Aug-2017
764,Revenue,CAHD,Information Systems - Software,Software Support & Maintenance,Capita Business Services Ltd,5000.00, 16-Aug-2017
765,Revenue,CAHD,Home Care - Elderly - South,Other Small Contracts,Care 1st Homecare,4976.00, 23-Aug-2017
766,Revenue,CAHD,Home Care - Elderly - North,Other Small Contracts,Care 1st Homecare,4323.20, 23-Aug-2017
767,Revenue,CAHD,Home Care - Elderly - South,Other Small Contracts,Care 1st Homecare,3720.32, 23-Aug-2017
768,Revenue,CAHD,Home Care - Elderly - North,Other Small Contracts,Care 1st Homecare,4385.92, 23-Aug-2017
769,Revenue,CAHD,Home Care - Elderly - South,Other Small Contracts,Care 1st Homecare,3099.84, 31-Aug-2017
770,Revenue,CAHD,Home Care - Elderly - North,Other Small Contracts,Care 1st Homecare,4823.62, 31-Aug-2017
771,Revenue,CAHD,Home Care - Elderly - South,Other Small Contracts,Care 1st Homecare,3015.92, 31-Aug-2017
772,Revenue,CAHD,Home Care - Elderly - North,Other Small Contracts,Care 1st Homecare,4323.20, 31-Aug-2017
773,Revenue,CAHD,Home Care - Elderly - South,Other Small Contracts,Care Horizons Limited,874.39, 01-Aug-2017
774,Revenue,CAHD,Home Care - Elderly - North,Day Care / Social Activities,Care Horizons Limited,383.46, 01-Aug-2017
775,Revenue,CAHD,Home Care - Elderly - North,Other Small Contracts,Care Horizons Limited,133.98, 01-Aug-2017
776,Revenue,CAHD,Home care - Elderly MH - North,Other Small Contracts,Care Horizons Limited,198.66, 01-Aug-2017
777,Revenue,CAHD,Home Care - Elderly - South,Other Small Contracts,Care Horizons Limited,656.04, 18-Aug-2017
778,Revenue,CAHD,Home Care - Elderly - North,Day Care / Social Activities,Care Horizons Limited,388.08, 18-Aug-2017
779,Revenue,CAHD,Home Care - Elderly - North,Other Small Contracts,Care Horizons Limited,170.94, 18-Aug-2017
780,Revenue,CAHD,Home care - Elderly MH - North,Other Small Contracts,Care Horizons Limited,189.42, 18-Aug-2017
781,Revenue,CAHD,Home Care - Elderly - South,Other Small Contracts,Care Horizons Limited,660.66, 22-Aug-2017
782,Revenue,CAHD,Home Care - Elderly - North,Day Care / Social Activities,Care Horizons Limited,383.46, 22-Aug-2017
783,Revenue,CAHD,Home Care - Elderly - North,Other Small Contracts,Care Horizons Limited,189.42, 22-Aug-2017
784,Revenue,CAHD,Home care - Elderly MH - North,Other Small Contracts,Care Horizons Limited,198.66, 22-Aug-2017
785,Revenue,CAHD,Home Care - Elderly - South,Other Small Contracts,Care Horizons Limited,665.28, 23-Aug-2017
786,Revenue,CAHD,Home Care - Elderly - North,Day Care / Social Activities,Care Horizons Limited,397.32, 23-Aug-2017
787,Revenue,CAHD,Home Care - Elderly - North,Other Small Contracts,Care Horizons Limited,258.72, 23-Aug-2017
788,Revenue,CAHD,Home care - Elderly MH - North,Other Small Contracts,Care Horizons Limited,207.90, 23-Aug-2017
789,Revenue,CAHD,Home Care - Elderly - South,Other Small Contracts,Care Horizons Limited,670.87, 31-Aug-2017
790,Revenue,CAHD,Home Care - Elderly - North,Day Care / Social Activities,Care Horizons Limited,360.36, 31-Aug-2017
791,Revenue,CAHD,Home Care - Elderly - North,Other Small Contracts,Care Horizons Limited,263.34, 31-Aug-2017
792,Revenue,CAHD,Home care - Elderly MH - North,Other Small Contracts,Care Horizons Limited,198.66, 31-Aug-2017
793,Revenue,CAHD,Home Care - Elderly - South,Other Small Contracts,Carepride Ltd,2356.20, 23-Aug-2017
794,Revenue,CAHD,Home Care - Elderly - South,Other Small Contracts,Carepride Ltd,2533.24, 23-Aug-2017
795,Revenue,CAHD,Home Care - Elderly - South,Other Small Contracts,Carepride Ltd,1293.60, 23-Aug-2017
796,Revenue,CAHD,Home Care - Elderly - South,Other Small Contracts,Carers R Us (Bristol) Limited,336.00, 11-Aug-2017
797,Revenue,CAHD,Home Care - Elderly - North,Other Small Contracts,Carers R Us (Bristol) Limited,2229.16, 11-Aug-2017
798,Revenue,CAHD,Home Care - Elderly - South,Other Small Contracts,Carers R Us (Bristol) Limited,349.44, 14-Aug-2017
799,Revenue,CAHD,Home Care - Elderly - North,Other Small Contracts,Carers R Us (Bristol) Limited,2233.64, 14-Aug-2017
800,Revenue,CAHD,Home Care - Elderly - South,Other Small Contracts,Carers R Us (Bristol) Limited,349.44, 23-Aug-2017
801,Revenue,CAHD,Home Care - Elderly - North,Other Small Contracts,Carers R Us (Bristol) Limited,2235.30, 23-Aug-2017
802,Revenue,CAHD,Home Care - Elderly - South,Other Small Contracts,Carers R Us (Bristol) Limited,353.92, 22-Aug-2017
803,Revenue,CAHD,Home Care - Elderly - North,Other Small Contracts,Carers R Us (Bristol) Limited,2244.98, 22-Aug-2017
804,Revenue,CAHD,Home Care - Elderly - South,Other Small Contracts,Carers R Us (Bristol) Limited,313.60, 31-Aug-2017
805,Revenue,CAHD,Home Care - Elderly - North,Other Small Contracts,Carers R Us (Bristol) Limited,2239.78, 31-Aug-2017
806,Revenue,CAHD,Home Care - Elderly - South,Other Small Contracts,Caring Comes 1st Ltd,566.10, 23-Aug-2017
807,Revenue,CAHD,Home Care - Elderly - South,Other Small Contracts,Caring Comes 1st Ltd,1259.85, 22-Aug-2017
808,Revenue,CAHD,Home Care - Elderly - South,Other Small Contracts,Caring Comes 1st Ltd,788.10, 21-Aug-2017
809,Revenue,CAHD,Home Care - Elderly - North,Other Small Contracts,Caring Comes 1st Ltd,1087.80, 10-Aug-2017
810,Revenue,CAHD,Home Care - Elderly - South,Other Small Contracts,Caring Comes 1st Ltd,910.20, 02-Aug-2017
811,Revenue,CAHD,Home Care - Elderly - South,Other Small Contracts,Caring Comes 1st Ltd,843.60, 07-Aug-2017
812,Revenue,CAHD,Home Care - Elderly - South,Other Small Contracts,Caring Comes 1st Ltd,699.30, 10-Aug-2017
813,Revenue,CAHD,Home Care - Elderly - South,Other Small Contracts,Caring Comes 1st Ltd,521.70, 18-Aug-2017
814,Revenue,CAHD,Home Care - Elderly - South,Other Small Contracts,Caring Comes 1st Ltd,2064.60, 23-Aug-2017
815,Revenue,CAHD,Home Care - Elderly - South,Other Small Contracts,Caring Comes 1st Ltd,960.15, 07-Aug-2017
816,Revenue,CAHD,Home Care - Elderly - South,Other Small Contracts,Caring Comes 1st Ltd,2186.70, 10-Aug-2017
817,Revenue,CAHD,Home Care - Elderly - South,Other Small Contracts,Caring Comes 1st Ltd,754.80, 16-Aug-2017
818,Revenue,CAHD,Home Care - Elderly - South,Other Small Contracts,Caring Comes 1st Ltd,782.55, 22-Aug-2017
819,Revenue,CAHD,Home Care - Elderly - South,Other Small Contracts,Caring Comes 1st Ltd,1864.80, 21-Aug-2017
820,Revenue,CAHD,Home Care - Elderly - South,Other Small Contracts,Caring Comes 1st Ltd,1232.10, 23-Aug-2017
821,Revenue,CAHD,Home Care - Elderly - South,Other Small Contracts,Caring Comes 1st Ltd,1121.10, 31-Aug-2017
822,Revenue,CAHD,Home Care - Elderly - South,Other Small Contracts,Caring Comes 1st Ltd,904.65, 31-Aug-2017
823,Revenue,CAHD,Home Care - Elderly - South,Other Small Contracts,Caring Comes 1st Ltd,2142.30, 23-Aug-2017
824,Revenue,CAHD,Social Lettings Agency,Fees - General,Individual ,10.53, 01-Aug-2017
825,Revenue,CAHD,Social Lettings Agency,Fees & Charges Income - General,Individual ,595.11, 01-Aug-2017
826,Revenue,CAHD,Home Care - Elderly - North,Day Care / Social Activities,Causeway House,2951.04, 01-Aug-2017
827,Revenue,CAHD,Home Care - Elderly - North,Day Care / Social Activities,Causeway House,2951.04, 29-Aug-2017
828,Revenue,CAHD,Home Care - Elderly - South,Day Care / Social Activities,Causeway House,5034.88, 01-Aug-2017
829,Revenue,CAHD,Home Care - Elderly - South,Day Care / Social Activities,Causeway House,5034.88, 29-Aug-2017
830,Revenue,CAHD,Home Care - Elderly - North,Day Care / Social Activities,Causeway House,4311.60, 01-Aug-2017
831,Revenue,CAHD,Home Care - Elderly - North,Day Care / Social Activities,Causeway House,4311.60, 29-Aug-2017
832,Revenue,CAHD,Home Care - Elderly - North,Day Care / Social Activities,Causeway House,2179.36, 01-Aug-2017
833,Revenue,CAHD,Home Care - Elderly - North,Day Care / Social Activities,Causeway House,2179.36, 29-Aug-2017
834,Revenue,CAHD,Home Care - Elderly - North,Day Care / Social Activities,Causeway House,3729.92, 01-Aug-2017
835,Revenue,CAHD,Home Care - Elderly - North,Day Care / Social Activities,Causeway House,3729.92, 29-Aug-2017
836,Revenue,CAHD,Home Care - Elderly - North,Day Care / Social Activities,Causeway House,1991.36, 01-Aug-2017
837,Revenue,CAHD,Home Care - Elderly - North,Day Care / Social Activities,Causeway House,1991.36, 29-Aug-2017
838,Revenue,CAHD,Home Care - Elderly - North,Day Care / Social Activities,Causeway House,3092.16, 01-Aug-2017
839,Revenue,CAHD,Home Care - Elderly - North,Day Care / Social Activities,Causeway House,3092.16, 29-Aug-2017
840,Revenue,CAHD,Home Care - Elderly - North,Day Care / Social Activities,Causeway House,4606.72, 01-Aug-2017
841,Revenue,CAHD,Home Care - Elderly - North,Day Care / Social Activities,Causeway House,4606.72, 29-Aug-2017
842,Revenue,CAHD,Home Care - Elderly - North,Day Care / Social Activities,Causeway House,1634.40, 01-Aug-2017
843,Revenue,CAHD,Home Care - Elderly - North,Day Care / Social Activities,Causeway House,1634.40, 29-Aug-2017
844,Revenue,CAHD,Home Care - Elderly - North,Day Care / Social Activities,Causeway House,3018.24, 01-Aug-2017
845,Revenue,CAHD,Home Care - Elderly - North,Day Care / Social Activities,Causeway House,3018.24, 29-Aug-2017
846,Revenue,CAHD,Bed Purchasing - Elderly S117- North,Permanent Nursing,Cedar Care Homes Limited,4352.00, 01-Aug-2017
847,Revenue,CAHD,Bed Purchasing - Elderly S117- North,Permanent Nursing,Cedar Care Homes Limited,4352.00, 29-Aug-2017
848,Revenue,CAHD,Bed Purchasing - North,Permanent Residential,Charlton House,1886.24, 01-Aug-2017
849,Revenue,CAHD,Bed Purchasing - North,Permanent Residential,Charlton House,1886.24, 29-Aug-2017
850,Revenue,CAHD,Home Care - Elderly - South,Other Small Contracts,Cherish Able Care Limited,7844.48, 04-Aug-2017
851,Revenue,CAHD,Home Care - Elderly - North,Other Small Contracts,Cherish Able Care Limited,2886.32, 04-Aug-2017
852,Revenue,CAHD,Home Care - Elderly - South,Other Small Contracts,Cherish Able Care Limited,7687.68, 11-Aug-2017
853,Revenue,CAHD,Home Care - Elderly - North,Other Small Contracts,Cherish Able Care Limited,2839.08, 11-Aug-2017
854,Revenue,CAHD,Home Care - Elderly - South,Other Small Contracts,Cherish Able Care Limited,8808.37, 17-Aug-2017
855,Revenue,CAHD,Home Care - Elderly - North,Other Small Contracts,Cherish Able Care Limited,2736.44, 17-Aug-2017
856,Revenue,CAHD,Home Care - Elderly - South,Other Small Contracts,Cherish Able Care Limited,8933.81, 25-Aug-2017
857,Revenue,CAHD,Home Care - Elderly - North,Other Small Contracts,Cherish Able Care Limited,2689.71, 25-Aug-2017
858,Revenue,CAHD,Bed purchasing -S28A  Under 65 - North,Permanent Residential,Chescombe Lodge,9357.80, 01-Aug-2017
859,Revenue,CAHD,Bed purchasing -S28A  Under 65 - North,Permanent Residential,Chescombe Lodge,9357.80, 29-Aug-2017
860,Revenue,CAHD,18-25 Year Olds,Permanent Residential,Chosen Care Ltd  Citibase Watford,7689.72, 01-Aug-2017
861,Revenue,CAHD,18-25 Year Olds,Permanent Residential,Chosen Care Ltd  Citibase Watford,7689.72, 29-Aug-2017
862,Revenue,CAHD,Bed Purchasing - Elderly S117- North,Permanent Residential,Chosen Care Ltd  Citibase Watford,5060.64, 01-Aug-2017
863,Revenue,CAHD,Jointly Funded H&SC Packages,Permanent Residential,Chosen Care Ltd  Citibase Watford,5060.64, 01-Aug-2017
864,Revenue,CAHD,Bed Purchasing - Elderly S117- North,Permanent Residential,Chosen Care Ltd  Citibase Watford,5060.64, 29-Aug-2017
865,Revenue,CAHD,Jointly Funded H&SC Packages,Permanent Residential,Chosen Care Ltd  Citibase Watford,5060.64, 29-Aug-2017
866,Revenue,CAHD,18-25 Year Olds,Permanent Residential,Chosen Care Ltd  Citibase Watford,6073.44, 01-Aug-2017
867,Revenue,CAHD,18-25 Year Olds,Permanent Residential,Chosen Care Ltd  Citibase Watford,6073.44, 29-Aug-2017
868,Revenue,CAHD,Bed Purchasing - Southmead Hospital,Permanent Nursing,Churchill Property Services,2249.92, 01-Aug-2017
869,Revenue,CAHD,Bed Purchasing - Southmead Hospital,Permanent Nursing,Churchill Property Services,2249.92, 29-Aug-2017
870,Revenue,CAHD,Home Care - Elderly - South,Other Small Contracts,Cintre,224.16, 11-Aug-2017
871,Revenue,CAHD,Home Care - Elderly - North,Day Care / Social Activities,Cintre,102.74, 11-Aug-2017
872,Revenue,CAHD,Home Care - Elderly - North,Other Small Contracts,Cintre,457.66, 11-Aug-2017
873,Revenue,CAHD,Home Care - Elderly - South,Other Small Contracts,Cintre,224.16, 11-Aug-2017
874,Revenue,CAHD,Home Care - Elderly - North,Day Care / Social Activities,Cintre,79.39, 11-Aug-2017
875,Revenue,CAHD,Home Care - Elderly - North,Other Small Contracts,Cintre,373.60, 11-Aug-2017
876,Revenue,CAHD,Home Care - Elderly - South,Other Small Contracts,Cintre,144.77, 22-Aug-2017
877,Revenue,CAHD,Home Care - Elderly - North,Day Care / Social Activities,Cintre,102.74, 22-Aug-2017
878,Revenue,CAHD,Home Care - Elderly - North,Other Small Contracts,Cintre,583.75, 22-Aug-2017
879,Revenue,CAHD,Home Care - Elderly - South,Other Small Contracts,Cintre,112.08, 22-Aug-2017
880,Revenue,CAHD,Home Care - Elderly - North,Day Care / Social Activities,Cintre,65.38, 22-Aug-2017
881,Revenue,CAHD,Home Care - Elderly - North,Other Small Contracts,Cintre,350.25, 22-Aug-2017
882,Revenue,CAHD,Home Care - Elderly - South,Day Care / Social Activities,Cintre,74.72, 31-Aug-2017
883,Revenue,CAHD,Home Care - Elderly - South,Other Small Contracts,Cintre,144.77, 31-Aug-2017
884,Revenue,CAHD,Home Care - Elderly - North,Day Care / Social Activities,Cintre,74.72, 31-Aug-2017
885,Revenue,CAHD,Home Care - Elderly - North,Other Small Contracts,Cintre,270.86, 31-Aug-2017
886,Revenue,CAHD,MH Purchasing - Younger,Permanent Residential,Claro Homes,2207.44, 01-Aug-2017
887,Revenue,CAHD,Bed Purchasing - South,Permanent Residential,Cleeve Lodge,1232.16, 01-Aug-2017
888,Revenue,CAHD,Bed Purchasing - South,Permanent Residential,Cleeve Lodge,1232.16, 29-Aug-2017
889,Revenue,CAHD,Bed Purchasing - Southmead Hospital,Permanent Residential,Cleeve Lodge,6100.00, 01-Aug-2017
890,Revenue,CAHD,Bed Purchasing - Southmead Hospital,Permanent Residential,Cleeve Lodge,2800.00, 01-Aug-2017
891,Revenue,CAHD,Bed Purchasing - Southmead Hospital,Permanent Residential,Cleeve Lodge,2800.00, 29-Aug-2017
892,Revenue,CAHD,Bed Purchasing - South,Permanent Residential,Cleeve Lodge,2957.96, 01-Aug-2017
893,Revenue,CAHD,Bed Purchasing - South,Permanent Residential,Cleeve Lodge,2957.96, 29-Aug-2017
894,Revenue,CAHD,Bed Purchasing - South,Permanent Residential,Cleeve Lodge,2361.60, 01-Aug-2017
895,Revenue,CAHD,Bed Purchasing - South,Permanent Residential,Cleeve Lodge,2361.60, 29-Aug-2017
896,Revenue,CAHD,Bed Purchasing - North,Respite Planned - Residential,Cleeve Lodge,1450.00, 01-Aug-2017
897,Revenue,CAHD,Bed Purchasing - South,Permanent Residential,Cleeve Lodge,2735.12, 01-Aug-2017
898,Revenue,CAHD,Bed Purchasing - South,Permanent Residential,Cleeve Lodge,2735.12, 29-Aug-2017
899,Revenue,CAHD,Bed Purchasing - South,Permanent Residential,Cleeve Lodge,2525.84, 01-Aug-2017
900,Revenue,CAHD,Bed Purchasing - South,Permanent Residential,Cleeve Lodge,2525.84, 29-Aug-2017
901,Revenue,CAHD,Bed Purchasing - South,Permanent Residential,Cleeve Lodge,2486.76, 01-Aug-2017
902,Revenue,CAHD,Bed Purchasing - South,Permanent Residential,Cleeve Lodge,2486.76, 29-Aug-2017
903,Revenue,CAHD,Bed Purchasing - South,Permanent Residential,Clerkenleap Barn,6079.80, 01-Aug-2017
904,Revenue,CAHD,Bed Purchasing - South,Permanent Residential,Clerkenleap Barn,6079.80, 29-Aug-2017
905,Revenue,CAHD,Bed Purchasing - South,Permanent Residential,Collingwood Residential Home,2147.96, 01-Aug-2017
906,Revenue,CAHD,Bed Purchasing - South,Permanent Residential,Collingwood Residential Home,2147.96, 29-Aug-2017
907,Revenue,CAHD,Bed Purchasing - Southmead Hospital,Permanent Residential,Collingwood Residential Home,2431.20, 01-Aug-2017
908,Revenue,CAHD,Bed Purchasing - Southmead Hospital,Permanent Residential,Collingwood Residential Home,2431.20, 29-Aug-2017
909,Revenue,CAHD,Bed Purchasing - South,Permanent Residential,Collingwood Residential Home,2329.92, 01-Aug-2017
910,Revenue,CAHD,Bed Purchasing - South,Permanent Residential,Collingwood Residential Home,2329.92, 29-Aug-2017
911,Revenue,CAHD,Bed Purchasing - South,Permanent Residential,Collingwood Residential Home,2320.00, 01-Aug-2017
912,Revenue,CAHD,Bed Purchasing - South,Permanent Residential,Collingwood Residential Home,2320.00, 29-Aug-2017
913,Revenue,CAHD,Bed Purchasing - Southmead Hospital,Permanent Residential,Collingwood Residential Home,2350.16, 01-Aug-2017
914,Revenue,CAHD,Bed Purchasing - Southmead Hospital,Permanent Residential,Collingwood Residential Home,2350.16, 29-Aug-2017
915,Revenue,CAHD,Bed Purchasing - South,Permanent Residential,Collingwood Residential Home,2390.68, 01-Aug-2017
916,Revenue,CAHD,Bed Purchasing - South,Fees & Charges Income - General,Collingwood Residential Home,806.70, 29-Aug-2017
917,Revenue,CAHD,Bed Purchasing - South,Fees & Charges Income - General,Collingwood Residential Home,1171.64, 29-Aug-2017
918,Revenue,CAHD,Bed Purchasing - South,Permanent Residential,Collingwood Residential Home,2016.16, 01-Aug-2017
919,Revenue,CAHD,Bed Purchasing - South,Permanent Residential,Collingwood Residential Home,2016.16, 29-Aug-2017
920,Revenue,CAHD,Bed Purchasing - South,Permanent Nursing,Community Integrated Care,1901.96, 01-Aug-2017
921,Revenue,CAHD,Bed Purchasing - South,Permanent Nursing,Community Integrated Care,1901.96, 29-Aug-2017
922,Revenue,CAHD,Training - Adult Services,Training Expenses,ComputerWorld Systems Limited,2287.50, 16-Aug-2017
923,Revenue,CAHD,Bed and Breakfast,Bed & Breakfast,Connolly & Callaghan Limited,455.00, 01-Aug-2017
924,Revenue,CAHD,Bed and Breakfast,Bed & Breakfast,Connolly & Callaghan Limited,497.00, 01-Aug-2017
925,Revenue,CAHD,Bed and Breakfast,Bed & Breakfast,Connolly & Callaghan Limited,455.00, 01-Aug-2017
926,Revenue,CAHD,Bed and Breakfast,Bed & Breakfast,Connolly & Callaghan Limited,721.00, 01-Aug-2017
927,Revenue,CAHD,Bed and Breakfast,Bed & Breakfast,Connolly & Callaghan Limited,616.00, 17-Aug-2017
928,Revenue,CAHD,Bed and Breakfast,Bed & Breakfast,Connolly & Callaghan Limited,455.00, 08-Aug-2017
929,Revenue,CAHD,Bed and Breakfast,Bed & Breakfast,Connolly & Callaghan Limited,539.00, 17-Aug-2017
930,Revenue,CAHD,Bed and Breakfast,Bed & Breakfast,Connolly & Callaghan Limited,490.00, 08-Aug-2017
931,Revenue,CAHD,Bed and Breakfast,Bed & Breakfast,Connolly & Callaghan Limited,497.00, 08-Aug-2017
932,Revenue,CAHD,Bed and Breakfast,Bed & Breakfast,Connolly & Callaghan Limited,490.00, 17-Aug-2017
933,Revenue,CAHD,Bed and Breakfast,Bed & Breakfast,Connolly & Callaghan Limited,455.00, 17-Aug-2017
934,Revenue,CAHD,Bed and Breakfast,Bed & Breakfast,Connolly & Callaghan Limited,455.00, 17-Aug-2017
935,Revenue,CAHD,Bed and Breakfast,Bed & Breakfast,Connolly & Callaghan Limited,455.00, 08-Aug-2017
936,Revenue,CAHD,Bed and Breakfast,Bed & Breakfast,Connolly & Callaghan Limited,791.00, 17-Aug-2017
937,Revenue,CAHD,Bed and Breakfast,Bed & Breakfast,Connolly & Callaghan Limited,721.00, 08-Aug-2017
938,Revenue,CAHD,Bed and Breakfast,Bed & Breakfast,Connolly & Callaghan Limited,616.00, 17-Aug-2017
939,Revenue,CAHD,Bed and Breakfast,Bed & Breakfast,Connolly & Callaghan Limited,455.00, 17-Aug-2017
940,Revenue,CAHD,Bed and Breakfast,Bed & Breakfast,Connolly & Callaghan Limited,539.00, 17-Aug-2017
941,Revenue,CAHD,Bed and Breakfast,Bed & Breakfast,Connolly & Callaghan Limited,490.00, 17-Aug-2017
942,Revenue,CAHD,Bed and Breakfast,Bed & Breakfast,Connolly & Callaghan Limited,497.00, 17-Aug-2017
943,Revenue,CAHD,Bed and Breakfast,Bed & Breakfast,Connolly & Callaghan Limited,490.00, 17-Aug-2017
944,Revenue,CAHD,Bed and Breakfast,Bed & Breakfast,Connolly & Callaghan Limited,455.00, 17-Aug-2017
945,Revenue,CAHD,Bed and Breakfast,Bed & Breakfast,Connolly & Callaghan Limited,455.00, 17-Aug-2017
946,Revenue,CAHD,Bed and Breakfast,Bed & Breakfast,Connolly & Callaghan Limited,455.00, 17-Aug-2017
947,Revenue,CAHD,Bed and Breakfast,Bed & Breakfast,Connolly & Callaghan Limited,791.00, 17-Aug-2017
948,Revenue,CAHD,Bed and Breakfast,Bed & Breakfast,Connolly & Callaghan Limited,721.00, 17-Aug-2017
949,Revenue,CAHD,Bed and Breakfast,Bed & Breakfast,Connolly & Callaghan Limited,623.00, 23-Aug-2017
950,Revenue,CAHD,Bed and Breakfast,Bed & Breakfast,Connolly & Callaghan Limited,616.00, 25-Aug-2017
951,Revenue,CAHD,Bed and Breakfast,Bed & Breakfast,Connolly & Callaghan Limited,455.00, 23-Aug-2017
952,Revenue,CAHD,Bed and Breakfast,Bed & Breakfast,Connolly & Callaghan Limited,539.00, 25-Aug-2017
953,Revenue,CAHD,Bed and Breakfast,Bed & Breakfast,Connolly & Callaghan Limited,490.00, 23-Aug-2017
954,Revenue,CAHD,Bed and Breakfast,Bed & Breakfast,Connolly & Callaghan Limited,490.00, 23-Aug-2017
955,Revenue,CAHD,Bed and Breakfast,Bed & Breakfast,Connolly & Callaghan Limited,455.00, 31-Aug-2017
956,Revenue,CAHD,Bed and Breakfast,Bed & Breakfast,Connolly & Callaghan Limited,455.00, 25-Aug-2017
957,Revenue,CAHD,Bed and Breakfast,Bed & Breakfast,Connolly & Callaghan Limited,455.00, 23-Aug-2017
958,Revenue,CAHD,Bed and Breakfast,Bed & Breakfast,Connolly & Callaghan Limited,791.00, 25-Aug-2017
959,Revenue,CAHD,Bed and Breakfast,Bed & Breakfast,Connolly & Callaghan Limited,721.00, 23-Aug-2017
960,Revenue,CAHD,Bed Purchasing - North,Permanent Residential,Cream Iii Ltd,8284.00, 29-Aug-2017
961,Revenue,CAHD,Bed Purchasing - North,Permanent Residential,Cream Iii Ltd,2366.86, 29-Aug-2017
962,Revenue,CAHD,Bed purchasing -S28A  Under 65 - North,Permanent Residential,Creedy Court,10156.60, 01-Aug-2017
963,Revenue,CAHD,Bed purchasing -S28A  Under 65 - North,Permanent Residential,Creedy Court,10156.60, 29-Aug-2017
964,Revenue,CAHD,Bed Purchasing - S28A - Over 65- North,Permanent Residential,Creedy Court,8534.04, 01-Aug-2017
965,Revenue,CAHD,Bed Purchasing - S28A - Over 65- North,Permanent Residential,Creedy Court,8534.04, 29-Aug-2017
966,Revenue,CAHD,Bed Purchasing - North,Permanent Residential,Creedy Court,13468.68, 01-Aug-2017
967,Revenue,CAHD,Bed Purchasing - North,Permanent Residential,Creedy Court,13468.68, 29-Aug-2017
968,Revenue,CAHD,Bed Purchasing - South,Permanent Residential,Daneswood,11757.84, 01-Aug-2017
969,Revenue,CAHD,Bed Purchasing - South,Permanent Residential,Daneswood,11757.84, 29-Aug-2017
970,Revenue,CAHD,Home Care - Elderly - South,Day Care / Social Activities,Daneswood,1354.56, 01-Aug-2017
971,Revenue,CAHD,Home Care - Elderly - South,Day Care / Social Activities,Daneswood,1354.56, 29-Aug-2017
972,Revenue,CAHD,Bed Purchasing - North,Permanent Residential,Daneswood,9836.56, 01-Aug-2017
973,Revenue,CAHD,Bed Purchasing - North,Permanent Residential,Daneswood,9836.56, 29-Aug-2017
974,Revenue,CAHD,Bed Purchasing - Elderly S117- North,Permanent Nursing,Danshell Healthcare Group,10419.44, 01-Aug-2017
975,Revenue,CAHD,Jointly Funded H&SC Packages,Permanent Nursing,Danshell Healthcare Group,1546.12, 01-Aug-2017
976,Revenue,CAHD,Bed Purchasing - Elderly S117- North,Permanent Nursing,Danshell Healthcare Group,10419.44, 29-Aug-2017
977,Revenue,CAHD,Jointly Funded H&SC Packages,Permanent Nursing,Danshell Healthcare Group,1546.12, 29-Aug-2017
978,Revenue,CAHD,Learning Difficulties PSL,Other Supplies & Services,Individual ,2105.50, 22-Aug-2017
979,Revenue,CAHD,Home Care - Elderly - South,Supported Living,Design House,2746.28, 01-Aug-2017
980,Revenue,CAHD,Home Care - Elderly - South,Supported Living,Design House,2746.28, 29-Aug-2017
981,Revenue,CAHD,Home Care - Elderly - South,Supported Living,Design House,2935.76, 01-Aug-2017
982,Revenue,CAHD,Home Care - Elderly - South,Supported Living,Design House,2935.76, 29-Aug-2017
983,Revenue,CAHD,Home Care - Elderly - South,Supported Living,Design House,3002.60, 01-Aug-2017
984,Revenue,CAHD,Home Care - Elderly - South,Supported Living,Design House,3002.60, 29-Aug-2017
985,Revenue,CAHD,Home Care - Elderly - South,Supported Living,Design House,2868.88, 01-Aug-2017
986,Revenue,CAHD,Home Care - Elderly - South,Supported Living,Design House,2868.88, 29-Aug-2017
987,Revenue,CAHD,18-25 Year Olds,Supported Living,Design House,1599.92, 01-Aug-2017
988,Revenue,CAHD,18-25 Year Olds,Supported Living,Design House,1599.92, 29-Aug-2017
989,Revenue,CAHD,Home Care - Elderly - North,Day Care / Social Activities,Design House,2117.92, 29-Aug-2017
990,Revenue,CAHD,Home Care - Elderly - South,Day Care / Social Activities,Design House,1471.60, 01-Aug-2017
991,Revenue,CAHD,Home Care - Elderly - South,Day Care / Social Activities,Design House,1471.60, 29-Aug-2017
992,Revenue,CAHD,Home Care - Elderly - South,Supported Living,Design House,2528.96, 01-Aug-2017
993,Revenue,CAHD,Home Care - Elderly - South,Supported Living,Design House,2528.96, 29-Aug-2017
994,Revenue,CAHD,Home Care - Elderly - South,Supported Living,Design House,2528.96, 01-Aug-2017
995,Revenue,CAHD,Home Care - Elderly - South,Supported Living,Design House,2528.96, 29-Aug-2017
996,Revenue,CAHD,Home Care - Elderly - South,Supported Living,Design House,1648.36, 01-Aug-2017
997,Revenue,CAHD,Home Care - Elderly - South,Supported Living,Design House,1648.36, 29-Aug-2017
998,Revenue,CAHD,Home Care - Elderly - South,Supported Living,Design House,2060.00, 01-Aug-2017
999,Revenue,CAHD,Home Care - Elderly - South,Supported Living,Design House,2060.00, 29-Aug-2017
1000,Revenue,CAHD,Home Care - Elderly - South,Supported Living,Design House,1817.72, 01-Aug-2017
1001,Revenue,CAHD,Home Care - Elderly - South,Supported Living,Design House,1817.72, 29-Aug-2017
1002,Revenue,CAHD,Home Care - Elderly - South,Supported Living,Design House,2412.00, 01-Aug-2017
1003,Revenue,CAHD,Home Care - Elderly - South,Supported Living,Design House,2412.00, 29-Aug-2017
1004,Revenue,CAHD,Home Care - Elderly - South,Supported Living,Design House,4128.16, 01-Aug-2017
1005,Revenue,CAHD,Home Care - Elderly - South,Supported Living,Design House,4128.16, 29-Aug-2017
1006,Revenue,CAHD,Home Care - Elderly - South,Supported Living,Design House,2927.36, 01-Aug-2017
1007,Revenue,CAHD,Home Care - Elderly - South,Supported Living,Design House,2927.36, 29-Aug-2017
1008,Revenue,CAHD,Home Care - Elderly - South,Day Care / Social Activities,Design House,1231.60, 01-Aug-2017
1009,Revenue,CAHD,Home Care - Elderly - South,Day Care / Social Activities,Design House,1431.60, 29-Aug-2017
1010,Revenue,CAHD,Home Care - Elderly - South,Supported Living,Design House,2779.72, 01-Aug-2017
1011,Revenue,CAHD,Home Care - Elderly - South,Supported Living,Design House,2779.72, 29-Aug-2017
1012,Revenue,CAHD,Home Care - Elderly - South,Supported Living,Design House,2829.88, 01-Aug-2017
1013,Revenue,CAHD,Home Care - Elderly - South,Supported Living,Design House,2829.88, 29-Aug-2017
1014,Revenue,CAHD,Home Care - Elderly - South,Supported Living,Design House,2163.68, 01-Aug-2017
1015,Revenue,CAHD,Home Care - Elderly - South,Supported Living,Design House,2163.68, 29-Aug-2017
1016,Revenue,CAHD,Home Care - Elderly - South,Supported Living,Design House,1817.72, 01-Aug-2017
1017,Revenue,CAHD,Home Care - Elderly - South,Supported Living,Design House,1817.72, 29-Aug-2017
1018,Revenue,CAHD,Home Care - Elderly - South,Supported Living,Design House,2163.68, 01-Aug-2017
1019,Revenue,CAHD,Home Care - Elderly - South,Supported Living,Design House,2163.68, 29-Aug-2017
1020,Revenue,CAHD,Bed Purchasing - South,Permanent Residential,Devon & Cornwall Autistic Community Trus,19052.08, 01-Aug-2017
1021,Revenue,CAHD,Bed Purchasing - South,Permanent Residential,Devon & Cornwall Autistic Community Trus,9526.04, 29-Aug-2017
1022,Revenue,CAHD,Home Care - Elderly - South,Other Small Contracts,Dhek Bhal,670.32, 04-Aug-2017
1023,Revenue,CAHD,Home Care - Elderly - North,Other Small Contracts,Dhek Bhal,40.32, 04-Aug-2017
1024,Revenue,CAHD,Home Care - Elderly - South,Other Small Contracts,Dhek Bhal,584.64, 09-Aug-2017
1025,Revenue,CAHD,Home Care - Elderly - North,Other Small Contracts,Dhek Bhal,40.32, 09-Aug-2017
1026,Revenue,CAHD,Home Care - Elderly - South,Other Small Contracts,Dhek Bhal,599.76, 22-Aug-2017
1027,Revenue,CAHD,Home Care - Elderly - South,Other Small Contracts,Dhek Bhal,559.44, 22-Aug-2017
1028,Revenue,CAHD,Home Care - Elderly - North,Other Small Contracts,Dhek Bhal,40.32, 22-Aug-2017
1029,Revenue,CAHD,Home Care - Elderly - South,Other Small Contracts,Dhek Bhal,599.76, 31-Aug-2017
1030,Revenue,CAHD,Home Care - Elderly - North,Other Small Contracts,Dhek Bhal,40.32, 31-Aug-2017
1031,Revenue,CAHD,Bed Purchasing - South,Permanent Residential,Dimensions  Suite 2,18886.98, 01-Aug-2017
1032,Revenue,CAHD,Bed Purchasing - South,Permanent Residential,Dimensions  Suite 2,5396.28, 01-Aug-2017
1033,Revenue,CAHD,Bed Purchasing - South,Fees & Charges Income - General,Dimensions  Suite 2,1118.96, 01-Aug-2017
1034,Revenue,CAHD,Bed Purchasing - South,Permanent Residential,Dimensions  Suite 2,5396.28, 29-Aug-2017
1035,Revenue,CAHD,Home Care - Elderly - North,Supported Living,Dimensions Suite 2,1823.24, 01-Aug-2017
1036,Revenue,CAHD,Home Care - Elderly - North,Supported Living,Dimensions Suite 2,1823.24, 29-Aug-2017
1037,Revenue,CAHD,Home Care - Elderly - South,Supported Living,Dimensions Suite 2,1823.24, 01-Aug-2017
1038,Revenue,CAHD,Home Care - Elderly - South,Supported Living,Dimensions Suite 2,1823.24, 29-Aug-2017
1039,Revenue,CAHD,Home Care - Elderly - South,Supported Living,Dimensions Suite 2,1823.24, 01-Aug-2017
1040,Revenue,CAHD,Home Care - Elderly - South,Supported Living,Dimensions Suite 2,1823.24, 29-Aug-2017
1041,Revenue,CAHD,Home Care - Elderly - South,Supported Living,Dimensions Suite 2,1823.24, 01-Aug-2017
1042,Revenue,CAHD,Home Care - Elderly - South,Supported Living,Dimensions Suite 2,1823.24, 29-Aug-2017
1043,Revenue,CAHD,Home Care - Elderly - North,Supported Living,Dimensions Suite 2,1823.24, 01-Aug-2017
1044,Revenue,CAHD,Home Care - Elderly - North,Supported Living,Dimensions Suite 2,1823.24, 29-Aug-2017
1045,Revenue,CAHD,Training - Adult Services,Training Expenses,Do The Write Thing,850.00, 02-Aug-2017
1046,Revenue,CAHD,Home Care - Elderly - South,Day Care / Social Activities,DoCare Ltd,72.38, 17-Aug-2017
1047,Revenue,CAHD,Home Care - Elderly - South,Other Small Contracts,DoCare Ltd,1315.15, 17-Aug-2017
1048,Revenue,CAHD,Home Care - Elderly - North,Other Small Contracts,DoCare Ltd,6236.64, 17-Aug-2017
1049,Revenue,CAHD,Home Care - Elderly - South,Day Care / Social Activities,DoCare Ltd,72.38, 17-Aug-2017
1050,Revenue,CAHD,Home Care - Elderly - South,Other Small Contracts,DoCare Ltd,1335.83, 17-Aug-2017
1051,Revenue,CAHD,Home Care - Elderly - North,Other Small Contracts,DoCare Ltd,6134.26, 17-Aug-2017
1052,Revenue,CAHD,Home Care - Elderly - South,Day Care / Social Activities,DoCare Ltd,72.38, 23-Aug-2017
1053,Revenue,CAHD,Home Care - Elderly - South,Other Small Contracts,DoCare Ltd,1201.92, 23-Aug-2017
1054,Revenue,CAHD,Home Care - Elderly - North,Other Small Contracts,DoCare Ltd,6308.51, 23-Aug-2017
1055,Revenue,CAHD,Home Care - Elderly - South,Day Care / Social Activities,DoCare Ltd,31.02, 23-Aug-2017
1056,Revenue,CAHD,Home Care - Elderly - South,Other Small Contracts,DoCare Ltd,1278.96, 23-Aug-2017
1057,Revenue,CAHD,Home Care - Elderly - North,Other Small Contracts,DoCare Ltd,6144.09, 23-Aug-2017
1058,Revenue,CAHD,Bed Purchasing - Southmead Hospital,Permanent Nursing,Drakes Court,9160.71, 29-Aug-2017
1059,Revenue,CAHD,Bed Purchasing - Southmead Hospital,Permanent Nursing,Drakes Court,2700.00, 29-Aug-2017
1060,Revenue,CAHD,Bed Purchasing - North,Permanent Nursing,Drakes Court,2288.92, 01-Aug-2017
1061,Revenue,CAHD,South Glos Users in South Glos Homes,Permanent Nursing,Drakes Court,620.20, 01-Aug-2017
1062,Revenue,CAHD,Bed Purchasing - North,Permanent Nursing,Drakes Court,2288.92, 29-Aug-2017
1063,Revenue,CAHD,South Glos Users in South Glos Homes,Permanent Nursing,Drakes Court,620.20, 29-Aug-2017
1064,Revenue,CAHD,Bed Purchasing - Southmead Hospital,Permanent Nursing,Drakes Court,2780.00, 01-Aug-2017
1065,Revenue,CAHD,Bed Purchasing - Southmead Hospital,Permanent Nursing,Drakes Court,934.47, 29-Aug-2017
1066,Revenue,CAHD,Bed Purchasing - Southmead Hospital,Permanent Nursing,Drakes Court,2780.00, 29-Aug-2017
1067,Revenue,CAHD,South Glos Users in South Glos Homes,Permanent Nursing,Drakes Court,620.20, 01-Aug-2017
1068,Revenue,CAHD,South Glos Users in South Glos Homes,Permanent Nursing,Drakes Court,620.20, 29-Aug-2017
1069,Revenue,CAHD,Bed Purchasing - North,Permanent Nursing,Drakes Court,2700.00, 01-Aug-2017
1070,Revenue,CAHD,Bed Purchasing - North,Permanent Nursing,Drakes Court,1928.57, 01-Aug-2017
1071,Revenue,CAHD,Bed Purchasing - North,Permanent Nursing,Drakes Court,2700.00, 29-Aug-2017
1072,Revenue,CAHD,Bed Purchasing - Southmead Hospital,Permanent Nursing,Drakes Court,1945.28, 01-Aug-2017
1073,Revenue,CAHD,South Glos Users in South Glos Homes,Permanent Nursing,Drakes Court,620.20, 01-Aug-2017
1074,Revenue,CAHD,Bed Purchasing - Southmead Hospital,Permanent Nursing,Drakes Court,1945.28, 29-Aug-2017
1075,Revenue,CAHD,South Glos Users in South Glos Homes,Permanent Nursing,Drakes Court,620.20, 29-Aug-2017
1076,Revenue,CAHD,Bed Purchasing - South,Permanent Nursing,Drakes Court,5560.00, 29-Aug-2017
1077,Revenue,CAHD,Bed Purchasing - South,Permanent Nursing,Drakes Court,5560.00, 29-Aug-2017
1078,Revenue,CAHD,Bed Purchasing - South,Permanent Nursing,Drakes Court,2780.00, 29-Aug-2017
1079,Revenue,CAHD,Bed Purchasing - South,Fees & Charges Income - General,Drakes Court,2034.41, 29-Aug-2017
1080,Revenue,CAHD,Bed Purchasing - South,Fees & Charges Income - General,Drakes Court,1056.39, 29-Aug-2017
1081,Revenue,CAHD,South Glos Users in South Glos Homes,Permanent Nursing,Drakes Court,620.20, 01-Aug-2017
1082,Revenue,CAHD,South Glos Users in South Glos Homes,Permanent Nursing,Drakes Court,620.20, 29-Aug-2017
1083,Revenue,CAHD,Bed Purchasing - North,Respite Planned - Nursing,Drakes Court,2735.12, 01-Aug-2017
1084,Revenue,CAHD,Bed Purchasing - North,Respite Planned - Nursing,Drakes Court,2735.12, 29-Aug-2017
1085,Revenue,CAHD,South Glos Users in South Glos Homes,Permanent Nursing,Drakes Court,620.20, 01-Aug-2017
1086,Revenue,CAHD,South Glos Users in South Glos Homes,Permanent Nursing,Drakes Court,620.20, 29-Aug-2017
1087,Revenue,CAHD,South Glos Users in South Glos Homes,Permanent Nursing,Drakes Court,620.20, 01-Aug-2017
1088,Revenue,CAHD,South Glos Users in South Glos Homes,Permanent Nursing,Drakes Court,620.20, 29-Aug-2017
1089,Revenue,CAHD,Bed Purchasing - North,Permanent Nursing,Drakes Court,3020.76, 01-Aug-2017
1090,Revenue,CAHD,South Glos Users in South Glos Homes,Permanent Nursing,Drakes Court,620.20, 01-Aug-2017
1091,Revenue,CAHD,Bed Purchasing - North,Permanent Nursing,Drakes Court,3020.76, 29-Aug-2017
1092,Revenue,CAHD,South Glos Users in South Glos Homes,Permanent Nursing,Drakes Court,620.20, 29-Aug-2017
1093,Revenue,CAHD,Bed Purchasing - North,Permanent Nursing,Drakes Court,1945.28, 01-Aug-2017
1094,Revenue,CAHD,Bed Purchasing - North,Permanent Nursing,Drakes Court,1945.28, 29-Aug-2017
1095,Revenue,CAHD,Bed Purchasing - Southmead Hospital,Permanent Nursing,Drakes Court,1945.28, 01-Aug-2017
1096,Revenue,CAHD,South Glos Users in South Glos Homes,Permanent Nursing,Drakes Court,620.20, 01-Aug-2017
1097,Revenue,CAHD,Bed Purchasing - Southmead Hospital,Permanent Nursing,Drakes Court,1945.28, 29-Aug-2017
1098,Revenue,CAHD,South Glos Users in South Glos Homes,Permanent Nursing,Drakes Court,620.20, 29-Aug-2017
1099,Revenue,CAHD,Bed Purchasing - North,Permanent Residential,Drakes Court,1886.24, 01-Aug-2017
1100,Revenue,CAHD,Bed Purchasing - North,Permanent Residential,Drakes Court,1886.24, 29-Aug-2017
1101,Revenue,CAHD,Bed Purchasing - North,Permanent Nursing,Drakes Court,2283.32, 01-Aug-2017
1102,Revenue,CAHD,South Glos Users in South Glos Homes,Permanent Nursing,Drakes Court,620.20, 01-Aug-2017
1103,Revenue,CAHD,Bed Purchasing - North,Permanent Nursing,Drakes Court,2283.32, 29-Aug-2017
1104,Revenue,CAHD,South Glos Users in South Glos Homes,Permanent Nursing,Drakes Court,620.20, 29-Aug-2017
1105,Revenue,CAHD,Bed Purchasing - North,Permanent Nursing,Drakes Court,2633.80, 01-Aug-2017
1106,Revenue,CAHD,South Glos Users in South Glos Homes,Permanent Nursing,Drakes Court,620.20, 01-Aug-2017
1107,Revenue,CAHD,Bed Purchasing - North,Permanent Nursing,Drakes Court,2633.80, 29-Aug-2017
1108,Revenue,CAHD,South Glos Users in South Glos Homes,Permanent Nursing,Drakes Court,620.20, 29-Aug-2017
1109,Revenue,CAHD,South Glos Users in South Glos Homes,Permanent Nursing,Drakes Court,620.20, 01-Aug-2017
1110,Revenue,CAHD,South Glos Users in South Glos Homes,Permanent Nursing,Drakes Court,620.20, 29-Aug-2017
1111,Revenue,CAHD,South Glos Users in South Glos Homes,Permanent Nursing,Drakes Court,2370.05, 01-Aug-2017
1112,Revenue,CAHD,South Glos Users in South Glos Homes,Permanent Nursing,Drakes Court,620.20, 01-Aug-2017
1113,Revenue,CAHD,South Glos Users in South Glos Homes,Permanent Nursing,Drakes Court,558.04, 01-Aug-2017
1114,Revenue,CAHD,South Glos Users in South Glos Homes,Permanent Nursing,Drakes Court,620.20, 29-Aug-2017
1115,Revenue,CAHD,South Glos Users in South Glos Homes,Permanent Nursing,Drakes Court,620.20, 01-Aug-2017
1116,Revenue,CAHD,South Glos Users in South Glos Homes,Permanent Nursing,Drakes Court,620.20, 29-Aug-2017
1117,Revenue,CAHD,South Glos Users in South Glos Homes,Permanent Nursing,Drakes Court,620.20, 01-Aug-2017
1118,Revenue,CAHD,South Glos Users in South Glos Homes,Permanent Nursing,Drakes Court,620.20, 29-Aug-2017
1119,Revenue,CAHD,MH Purchasing - Younger,Permanent Residential,Dunraven House,2272.96, 01-Aug-2017
1120,Revenue,CAHD,MH Purchasing - Younger,Permanent Residential,Dunraven House,2272.96, 29-Aug-2017
1121,Revenue,CAHD,Bed and Breakfast,Bed & Breakfast,Individual ,420.00, 01-Aug-2017
1122,Revenue,CAHD,Bed and Breakfast,Bed & Breakfast,Individual ,504.00, 04-Aug-2017
1123,Revenue,CAHD,Bed and Breakfast,Bed & Breakfast,Individual ,434.00, 01-Aug-2017
1124,Revenue,CAHD,Bed and Breakfast,Bed & Breakfast,Individual ,504.00, 08-Aug-2017
1125,Revenue,CAHD,Bed and Breakfast,Bed & Breakfast,Individual ,600.00, 14-Aug-2017
1126,Revenue,CAHD,Bed and Breakfast,Bed & Breakfast,Individual ,504.00, 21-Aug-2017
1127,Revenue,CAHD,Bed and Breakfast,Bed & Breakfast,Individual ,420.00, 21-Aug-2017
1128,Revenue,CAHD,Bed Purchasing - North,Permanent Residential,East Court,2648.48, 01-Aug-2017
1129,Revenue,CAHD,Bed Purchasing - North,Permanent Residential,East Court,2648.48, 29-Aug-2017
1130,Revenue,CAHD,Training - Adult Services,Training Expenses,Edge Training & Consultancy Limited,925.00, 16-Aug-2017
1131,Revenue,CAHD,Bed Purchasing - North,Permanent Residential,Edgecumbe Lodge,2289.40, 01-Aug-2017
1132,Revenue,CAHD,Bed Purchasing - North,Permanent Residential,Edgecumbe Lodge,572.35, 29-Aug-2017
1133,Revenue,CAHD,Bed Purchasing - Southmead Hospital,Permanent Residential,Edgecumbe Lodge,1886.64, 01-Aug-2017
1134,Revenue,CAHD,Bed Purchasing - Southmead Hospital,Permanent Residential,Edgecumbe Lodge,2072.00, 29-Aug-2017
1135,Revenue,CAHD,Bed Purchasing - Southmead Hospital,Permanent Residential,Edgecumbe Lodge,3256.00, 29-Aug-2017
1136,Revenue,CAHD,Bed Purchasing - South,Permanent Residential,Edgecumbe Lodge,2140.00, 01-Aug-2017
1137,Revenue,CAHD,Bed Purchasing - South,Permanent Residential,Edgecumbe Lodge,2140.00, 29-Aug-2017
1138,Revenue,CAHD,Bed Purchasing - Southmead Hospital,Permanent Residential,Edgecumbe Lodge,2431.20, 01-Aug-2017
1139,Revenue,CAHD,Bed Purchasing - Southmead Hospital,Permanent Residential,Edgecumbe Lodge,2431.20, 29-Aug-2017
1140,Revenue,CAHD,Bed Purchasing - South,Permanent Residential,Edgecumbe Lodge,2156.24, 01-Aug-2017
1141,Revenue,CAHD,Bed Purchasing - South,Permanent Residential,Edgecumbe Lodge,2156.24, 29-Aug-2017
1142,Revenue,CAHD,Bed Purchasing - Southmead Hospital,Permanent Residential,Edgecumbe Lodge,5657.14, 01-Aug-2017
1143,Revenue,CAHD,Bed Purchasing - North,Permanent Residential,Edgecumbe Lodge,2320.48, 01-Aug-2017
1144,Revenue,CAHD,Bed Purchasing - North,Permanent Residential,Edgecumbe Lodge,2320.48, 29-Aug-2017
1145,Revenue,CAHD,Bed Purchasing - South,Permanent Residential,Edgecumbe Lodge,2400.00, 01-Aug-2017
1146,Revenue,CAHD,Bed Purchasing - South,Permanent Residential,Edgecumbe Lodge,857.14, 01-Aug-2017
1147,Revenue,CAHD,Bed Purchasing - South,Permanent Residential,Edgecumbe Lodge,2400.00, 29-Aug-2017
1148,Revenue,CAHD,Bed Purchasing - South,Permanent Residential,Edgecumbe Lodge,2156.24, 01-Aug-2017
1149,Revenue,CAHD,Bed Purchasing - South,Permanent Residential,Edgecumbe Lodge,2156.24, 29-Aug-2017
1150,Revenue,CAHD,Bed Purchasing - South,Permanent Residential,Edgecumbe Lodge,2431.20, 01-Aug-2017
1151,Revenue,CAHD,Bed Purchasing - South,Permanent Residential,Edgecumbe Lodge,2431.20, 29-Aug-2017
1152,Revenue,CAHD,Bed Purchasing - South,Permanent Residential,Edgecumbe Lodge,7542.86, 01-Aug-2017
1153,Revenue,CAHD,Bed Purchasing - South,Permanent Residential,Edgecumbe Lodge,2400.00, 01-Aug-2017
1154,Revenue,CAHD,Bed Purchasing - South,Permanent Residential,Edgecumbe Lodge,2400.00, 29-Aug-2017
1155,Revenue,CAHD,Bed Purchasing - Southmead Hospital,Permanent Residential,Edgecumbe Lodge,2431.20, 01-Aug-2017
1156,Revenue,CAHD,Bed Purchasing - Southmead Hospital,Permanent Residential,Edgecumbe Lodge,2431.20, 29-Aug-2017
1157,Revenue,CAHD,Bed Purchasing - North,Permanent Residential,Edgecumbe Lodge,2156.24, 01-Aug-2017
1158,Revenue,CAHD,Bed Purchasing - North,Permanent Residential,Edgecumbe Lodge,2156.24, 29-Aug-2017
1159,Revenue,CAHD,Bed Purchasing - South,Permanent Residential,Edgemont House Ltd,2228.60, 01-Aug-2017
1160,Revenue,CAHD,Bed Purchasing - South,Permanent Residential,Edgemont House Ltd,10028.70, 29-Aug-2017
1161,Revenue,CAHD,Bed Purchasing - South,Permanent Residential,Edgemont House Ltd,2228.60, 29-Aug-2017
1162,Revenue,CAHD,Bed Purchasing - South,Fees & Charges Income - General,Edgemont House Ltd,3317.14, 29-Aug-2017
1163,Revenue,CAHD,Bed Purchasing - Southmead Hospital,Permanent Residential,Edgemont House Ltd,1879.20, 01-Aug-2017
1164,Revenue,CAHD,Bed Purchasing - Southmead Hospital,Permanent Residential,Edgemont House Ltd,1879.20, 29-Aug-2017
1165,Revenue,CAHD,Bed Purchasing - South,Permanent Residential,Edgemont House Ltd,2188.08, 01-Aug-2017
1166,Revenue,CAHD,Bed Purchasing - South,Fees & Charges Income - General,Edgemont House Ltd,2691.75, 01-Aug-2017
1167,Revenue,CAHD,Bed Purchasing - South,Permanent Residential,Edgemont House Ltd,2188.08, 29-Aug-2017
1168,Revenue,CAHD,Bed Purchasing - South,Fees & Charges Income - General,Edgemont House Ltd,3470.89, 29-Aug-2017
1169,Revenue,CAHD,Bed Purchasing - South,Respite Emergency - Residential,Edgemont House Ltd,2950.00, 01-Aug-2017
1170,Revenue,CAHD,Bed Purchasing - South,Permanent Residential,Edgemont House Ltd,2013.32, 01-Aug-2017
1171,Revenue,CAHD,Bed Purchasing - South,Permanent Residential,Edgemont House Ltd,2013.32, 29-Aug-2017
1172,Revenue,CAHD,South Glos Users in South Glos Homes,Permanent Nursing,Edgemont View Nursing Home,620.20, 01-Aug-2017
1173,Revenue,CAHD,South Glos Users in South Glos Homes,Permanent Nursing,Edgemont View Nursing Home,620.20, 29-Aug-2017
1174,Revenue,CAHD,South Glos Users in South Glos Homes,Permanent Nursing,Edgemont View Nursing Home,620.20, 01-Aug-2017
1175,Revenue,CAHD,South Glos Users in South Glos Homes,Permanent Nursing,Edgemont View Nursing Home,620.20, 29-Aug-2017
1176,Revenue,CAHD,South Glos Users in South Glos Homes,Permanent Nursing,Edgemont View Nursing Home,620.20, 01-Aug-2017
1177,Revenue,CAHD,South Glos Users in South Glos Homes,Permanent Nursing,Edgemont View Nursing Home,620.20, 29-Aug-2017
1178,Revenue,CAHD,South Glos Users in South Glos Homes,Permanent Nursing,Edgemont View Nursing Home,620.20, 01-Aug-2017
1179,Revenue,CAHD,South Glos Users in South Glos Homes,Permanent Nursing,Edgemont View Nursing Home,620.20, 29-Aug-2017
1180,Revenue,CAHD,Bed Purchasing - South,Permanent Nursing,Edgemont View Nursing Home,2917.44, 01-Aug-2017
1181,Revenue,CAHD,South Glos Users in South Glos Homes,Permanent Nursing,Edgemont View Nursing Home,620.20, 01-Aug-2017
1182,Revenue,CAHD,Bed Purchasing - South,Permanent Nursing,Edgemont View Nursing Home,2917.44, 29-Aug-2017
1183,Revenue,CAHD,South Glos Users in South Glos Homes,Permanent Nursing,Edgemont View Nursing Home,620.20, 29-Aug-2017
1184,Revenue,CAHD,South Glos Users in South Glos Homes,Permanent Nursing,Edgemont View Nursing Home,620.20, 01-Aug-2017
1185,Revenue,CAHD,South Glos Users in South Glos Homes,Permanent Nursing,Edgemont View Nursing Home,620.20, 29-Aug-2017
1186,Revenue,CAHD,South Glos Users in South Glos Homes,Permanent Nursing,Edgemont View Nursing Home,620.20, 01-Aug-2017
1187,Revenue,CAHD,South Glos Users in South Glos Homes,Permanent Nursing,Edgemont View Nursing Home,620.20, 29-Aug-2017
1188,Revenue,CAHD,Bed Purchasing - Southmead Hospital,Permanent Nursing,Edgemont View Nursing Home,4770.41, 01-Aug-2017
1189,Revenue,CAHD,South Glos Users in South Glos Homes,Permanent Nursing,Edgemont View Nursing Home,620.20, 01-Aug-2017
1190,Revenue,CAHD,South Glos Users in South Glos Homes,Permanent Nursing,Edgemont View Nursing Home,620.20, 29-Aug-2017
1191,Revenue,CAHD,South Glos Users in South Glos Homes,Permanent Nursing,Edgemont View Nursing Home,620.20, 01-Aug-2017
1192,Revenue,CAHD,South Glos Users in South Glos Homes,Permanent Nursing,Edgemont View Nursing Home,620.20, 29-Aug-2017
1193,Revenue,CAHD,South Glos Users in South Glos Homes,Permanent Nursing,Edgemont View Nursing Home,620.20, 01-Aug-2017
1194,Revenue,CAHD,South Glos Users in South Glos Homes,Permanent Nursing,Edgemont View Nursing Home,620.20, 29-Aug-2017
1195,Revenue,CAHD,South Glos Users in South Glos Homes,Permanent Nursing,Edgemont View Nursing Home,620.20, 01-Aug-2017
1196,Revenue,CAHD,South Glos Users in South Glos Homes,Permanent Nursing,Edgemont View Nursing Home,620.20, 29-Aug-2017
1197,Revenue,CAHD,Bed Purchasing - South,Permanent Nursing,Edgemont View Nursing Home,2880.00, 01-Aug-2017
1198,Revenue,CAHD,Bed Purchasing - South,Permanent Nursing,Edgemont View Nursing Home,2880.00, 29-Aug-2017
1199,Revenue,CAHD,Bed Purchasing - South,Permanent Nursing,Edgemont View Nursing Home,2228.00, 01-Aug-2017
1200,Revenue,CAHD,South Glos Users in South Glos Homes,Permanent Nursing,Edgemont View Nursing Home,620.20, 01-Aug-2017
1201,Revenue,CAHD,Bed Purchasing - South,Permanent Nursing,Edgemont View Nursing Home,2228.00, 29-Aug-2017
1202,Revenue,CAHD,South Glos Users in South Glos Homes,Permanent Nursing,Edgemont View Nursing Home,620.20, 29-Aug-2017
1203,Revenue,CAHD,South Glos Users in South Glos Homes,Permanent Nursing,Edgemont View Nursing Home,620.20, 01-Aug-2017
1204,Revenue,CAHD,South Glos Users in South Glos Homes,Permanent Nursing,Edgemont View Nursing Home,620.20, 29-Aug-2017
1205,Revenue,CAHD,South Glos Users in South Glos Homes,Permanent Nursing,Edgemont View Nursing Home,620.20, 01-Aug-2017
1206,Revenue,CAHD,South Glos Users in South Glos Homes,Permanent Nursing,Edgemont View Nursing Home,620.20, 29-Aug-2017
1207,Revenue,CAHD,South Glos Users in South Glos Homes,Permanent Nursing,Edgemont View Nursing Home,620.20, 01-Aug-2017
1208,Revenue,CAHD,South Glos Users in South Glos Homes,Permanent Nursing,Edgemont View Nursing Home,620.20, 29-Aug-2017
1209,Revenue,CAHD,Bed Purchasing - Southmead Hospital,Permanent Nursing,Edgemont View Nursing Home,2917.44, 01-Aug-2017
1210,Revenue,CAHD,South Glos Users in South Glos Homes,Permanent Nursing,Edgemont View Nursing Home,620.20, 01-Aug-2017
1211,Revenue,CAHD,Planning and Partnerships Procurement,Other Supplies & Services,Eldercare,3034.14, 09-Aug-2017
1212,Revenue,CAHD,Planning and Partnerships Procurement,Other Supplies & Services,Eldercare,3046.95, 09-Aug-2017
1213,Revenue,CAHD,Planning and Partnerships Procurement,Other Supplies & Services,Eldercare,3059.76, 31-Aug-2017
1214,Revenue,CAHD,Supporting People Programme,Grants to Voluntary Bodies,Elim Housing Association Limited,5139.16, 01-Aug-2017
1215,Revenue,CAHD,Home Care - Elderly - South,Day Care / Social Activities,Elite Home Care Ltd,435.84, 04-Aug-2017
1216,Revenue,CAHD,Home Care - Elderly - South,Other Small Contracts,Elite Home Care Ltd,8838.60, 04-Aug-2017
1217,Revenue,CAHD,Home Care - Elderly - North,Other Small Contracts,Elite Home Care Ltd,508.48, 04-Aug-2017
1218,Revenue,CAHD,Home Care - Elderly - South,Day Care / Social Activities,Elite Home Care Ltd,435.84, 09-Aug-2017
1219,Revenue,CAHD,Home Care - Elderly - South,Other Small Contracts,Elite Home Care Ltd,9159.54, 09-Aug-2017
1220,Revenue,CAHD,Home Care - Elderly - North,Other Small Contracts,Elite Home Care Ltd,494.86, 09-Aug-2017
1221,Revenue,CAHD,Home Care - Elderly - South,Day Care / Social Activities,Elite Home Care Ltd,317.80, 22-Aug-2017
1222,Revenue,CAHD,Home Care - Elderly - South,Other Small Contracts,Elite Home Care Ltd,9411.54, 22-Aug-2017
1223,Revenue,CAHD,Home Care - Elderly - North,Other Small Contracts,Elite Home Care Ltd,513.02, 22-Aug-2017
1224,Revenue,CAHD,Home Care - Elderly - South,Day Care / Social Activities,Elite Home Care Ltd,190.68, 31-Aug-2017
1225,Revenue,CAHD,Home Care - Elderly - South,Other Small Contracts,Elite Home Care Ltd,9364.58, 31-Aug-2017
1226,Revenue,CAHD,Home Care - Elderly - North,Other Small Contracts,Elite Home Care Ltd,499.40, 31-Aug-2017
1227,Revenue,CAHD,Home Care - Elderly - South,Day Care / Social Activities,Elite Home Care Ltd,195.22, 31-Aug-2017
1228,Revenue,CAHD,Home Care - Elderly - South,Other Small Contracts,Elite Home Care Ltd,9457.10, 31-Aug-2017
1229,Revenue,CAHD,Home Care - Elderly - North,Other Small Contracts,Elite Home Care Ltd,499.40, 31-Aug-2017
1230,Revenue,CAHD,Bed Purchasing - North,Permanent Residential,Epworth House,2798.12, 01-Aug-2017
1231,Revenue,CAHD,Bed Purchasing - North,Permanent Residential,Epworth House,2798.12, 29-Aug-2017
1232,Revenue,CAHD,South Glos Users in South Glos Homes,Permanent Nursing,Fairview Court,620.20, 01-Aug-2017
1233,Revenue,CAHD,South Glos Users in South Glos Homes,Permanent Nursing,Fairview Court,620.20, 29-Aug-2017
1234,Revenue,CAHD,South Glos Users in South Glos Homes,Permanent Nursing,Fairview Court,620.20, 01-Aug-2017
1235,Revenue,CAHD,South Glos Users in South Glos Homes,Permanent Nursing,Fairview Court,620.20, 29-Aug-2017
1236,Revenue,CAHD,South Glos Users in South Glos Homes,Permanent Nursing,Fairview Court,620.20, 01-Aug-2017
1237,Revenue,CAHD,South Glos Users in South Glos Homes,Permanent Nursing,Fairview Court,620.20, 29-Aug-2017
1238,Revenue,CAHD,South Glos Users in South Glos Homes,Permanent Nursing,Fairview Court,620.20, 01-Aug-2017
1239,Revenue,CAHD,South Glos Users in South Glos Homes,Permanent Nursing,Fairview Court,620.20, 29-Aug-2017
1240,Revenue,CAHD,Bed Purchasing - Southmead Hospital,Permanent Nursing,Fairview Court,3360.00, 01-Aug-2017
1241,Revenue,CAHD,Bed Purchasing - Southmead Hospital,Permanent Nursing,Fairview Court,3360.00, 29-Aug-2017
1242,Revenue,CAHD,Bed Purchasing - Southmead Hospital,Permanent Nursing,Fairview Court,3241.60, 01-Aug-2017
1243,Revenue,CAHD,South Glos Users in South Glos Homes,Permanent Nursing,Fairview Court,620.20, 01-Aug-2017
1244,Revenue,CAHD,Bed Purchasing - Southmead Hospital,Permanent Nursing,Fairview Court,3241.60, 29-Aug-2017
1245,Revenue,CAHD,South Glos Users in South Glos Homes,Permanent Nursing,Fairview Court,620.20, 29-Aug-2017
1246,Revenue,CAHD,South Glos Users in South Glos Homes,Permanent Nursing,Fairview Court,620.20, 01-Aug-2017
1247,Revenue,CAHD,South Glos Users in South Glos Homes,Permanent Nursing,Fairview Court,620.20, 29-Aug-2017
1248,Revenue,CAHD,Bed Purchasing - Southmead Hospital,Permanent Nursing,Fairview Court,3031.04, 01-Aug-2017
1249,Revenue,CAHD,South Glos Users in South Glos Homes,Permanent Nursing,Fairview Court,620.20, 01-Aug-2017
1250,Revenue,CAHD,Bed Purchasing - Southmead Hospital,Permanent Nursing,Fairview Court,3031.04, 29-Aug-2017
1251,Revenue,CAHD,South Glos Users in South Glos Homes,Permanent Nursing,Fairview Court,620.20, 29-Aug-2017
1252,Revenue,CAHD,Bed purchasing - Elderly S117 - South,Respite Planned - Residential,Fairview Court,850.00, 01-Aug-2017
1253,Revenue,CAHD,Bed purchasing - Elderly S117 - South,Respite Planned - Residential,Fairview Court,850.00, 01-Aug-2017
1254,Revenue,CAHD,Bed purchasing - Elderly S117 - South,Respite Planned - Nursing,Fairview Court,4250.00, 29-Aug-2017
1255,Revenue,CAHD,Bed Purchasing - South,Permanent Nursing,Fairview Court,1928.08, 01-Aug-2017
1256,Revenue,CAHD,Bed Purchasing - South,Permanent Nursing,Fairview Court,3000.00, 01-Aug-2017
1257,Revenue,CAHD,South Glos Users in South Glos Homes,Permanent Nursing,Fairview Court,620.20, 01-Aug-2017
1258,Revenue,CAHD,Bed Purchasing - South,Permanent Nursing,Fairview Court,3000.00, 29-Aug-2017
1259,Revenue,CAHD,South Glos Users in South Glos Homes,Permanent Nursing,Fairview Court,620.20, 29-Aug-2017
1260,Revenue,CAHD,Bed purchasing - Elderly S117 - South,Permanent Nursing,Fairview Court,4000.00, 01-Aug-2017
1261,Revenue,CAHD,Bed purchasing - Elderly S117 - South,Permanent Nursing,Fairview Court,4000.00, 29-Aug-2017
1262,Revenue,CAHD,Bed purchasing - Elderly S117 - South,Permanent Nursing,Fairview Court,3000.00, 01-Aug-2017
1263,Revenue,CAHD,South Glos Users in South Glos Homes,Permanent Nursing,Fairview Court,620.20, 01-Aug-2017
1264,Revenue,CAHD,Bed purchasing - Elderly S117 - South,Permanent Nursing,Fairview Court,3000.00, 29-Aug-2017
1265,Revenue,CAHD,South Glos Users in South Glos Homes,Permanent Nursing,Fairview Court,620.20, 29-Aug-2017
1266,Revenue,CAHD,Bed Purchasing - South,Permanent Nursing,Fairview Court,1337.85, 01-Aug-2017
1267,Revenue,CAHD,South Glos Users in South Glos Homes,Permanent Nursing,Fairview Court,620.20, 01-Aug-2017
1268,Revenue,CAHD,South Glos Users in South Glos Homes,Permanent Nursing,Fairview Court,620.20, 29-Aug-2017
1269,Revenue,CAHD,Bed Purchasing - South,Permanent Nursing,Fairview Court,3241.60, 01-Aug-2017
1270,Revenue,CAHD,South Glos Users in South Glos Homes,Permanent Nursing,Fairview Court,620.20, 01-Aug-2017
1271,Revenue,CAHD,Bed Purchasing - South,Permanent Nursing,Fairview Court,3241.60, 29-Aug-2017
1272,Revenue,CAHD,South Glos Users in South Glos Homes,Permanent Nursing,Fairview Court,620.20, 29-Aug-2017
1273,Revenue,CAHD,South Glos Users in South Glos Homes,Permanent Nursing,Fairview Court,620.20, 01-Aug-2017
1274,Revenue,CAHD,South Glos Users in South Glos Homes,Permanent Nursing,Fairview Court,620.20, 29-Aug-2017
1275,Revenue,CAHD,South Glos Users in South Glos Homes,Permanent Nursing,Fairview Court,620.20, 01-Aug-2017
1276,Revenue,CAHD,South Glos Users in South Glos Homes,Permanent Nursing,Fairview Court,620.20, 29-Aug-2017
1277,Revenue,CAHD,Bed Purchasing - South,Permanent Nursing,Fairview Court,3031.04, 01-Aug-2017
1278,Revenue,CAHD,South Glos Users in South Glos Homes,Permanent Nursing,Fairview Court,620.20, 01-Aug-2017
1279,Revenue,CAHD,Bed Purchasing - South,Permanent Nursing,Fairview Court,3031.04, 29-Aug-2017
1280,Revenue,CAHD,South Glos Users in South Glos Homes,Permanent Nursing,Fairview Court,620.20, 29-Aug-2017
1281,Revenue,CAHD,Bed Purchasing - Southmead Hospital,Permanent Nursing,Fairview Court,3241.60, 01-Aug-2017
1282,Revenue,CAHD,South Glos Users in South Glos Homes,Permanent Nursing,Fairview Court,620.20, 01-Aug-2017
1283,Revenue,CAHD,Bed Purchasing - Southmead Hospital,Permanent Nursing,Fairview Court,3241.60, 29-Aug-2017
1284,Revenue,CAHD,South Glos Users in South Glos Homes,Permanent Nursing,Fairview Court,620.20, 29-Aug-2017
1285,Revenue,CAHD,Bed Purchasing - Southmead Hospital,Permanent Nursing,Fairview Court,3400.00, 29-Aug-2017
1286,Revenue,CAHD,Bed Purchasing - Southmead Hospital,Permanent Nursing,Fairview Court,3157.14, 29-Aug-2017
1287,Revenue,CAHD,South Glos Users in South Glos Homes,Permanent Nursing,Fairview Court,620.20, 01-Aug-2017
1288,Revenue,CAHD,South Glos Users in South Glos Homes,Permanent Nursing,Fairview Court,620.20, 29-Aug-2017
1289,Revenue,CAHD,South Glos Users in South Glos Homes,Permanent Nursing,Fairview Court,620.20, 01-Aug-2017
1290,Revenue,CAHD,South Glos Users in South Glos Homes,Permanent Nursing,Fairview Court,620.20, 29-Aug-2017
1291,Revenue,CAHD,South Glos Users in South Glos Homes,Permanent Nursing,Fairview Court,620.20, 01-Aug-2017
1292,Revenue,CAHD,South Glos Users in South Glos Homes,Permanent Nursing,Fairview Court,620.20, 29-Aug-2017
1293,Revenue,CAHD,South Glos Users in South Glos Homes,Permanent Nursing,Fairview Court,620.20, 01-Aug-2017
1294,Revenue,CAHD,South Glos Users in South Glos Homes,Permanent Nursing,Fairview Court,620.20, 29-Aug-2017
1295,Revenue,CAHD,South Glos Users in South Glos Homes,Permanent Nursing,Fairview Court,620.20, 29-Aug-2017
1296,Revenue,CAHD,Bed Purchasing - South,Permanent Nursing,Fairview Court,3000.00, 01-Aug-2017
1297,Revenue,CAHD,Bed Purchasing - South,Permanent Nursing,Fairview Court,1928.08, 01-Aug-2017
1298,Revenue,CAHD,South Glos Users in South Glos Homes,Permanent Nursing,Fairview Court,620.20, 01-Aug-2017
1299,Revenue,CAHD,Bed Purchasing - South,Permanent Nursing,Fairview Court,3000.00, 29-Aug-2017
1300,Revenue,CAHD,South Glos Users in South Glos Homes,Permanent Nursing,Fairview Court,620.20, 29-Aug-2017
1301,Revenue,CAHD,Bed Purchasing - Southmead Hospital,Permanent Nursing,Fairview Court,3091.68, 01-Aug-2017
1302,Revenue,CAHD,South Glos Users in South Glos Homes,Permanent Nursing,Fairview Court,620.20, 01-Aug-2017
1303,Revenue,CAHD,Bed Purchasing - Southmead Hospital,Permanent Nursing,Fairview Court,3091.68, 29-Aug-2017
1304,Revenue,CAHD,South Glos Users in South Glos Homes,Permanent Nursing,Fairview Court,620.20, 29-Aug-2017
1305,Revenue,CAHD,Bed Purchasing - South,Permanent Nursing,Fairview Court,3000.00, 01-Aug-2017
1306,Revenue,CAHD,Bed Purchasing - South,Permanent Nursing,Fairview Court,1372.70, 01-Aug-2017
1307,Revenue,CAHD,South Glos Users in South Glos Homes,Permanent Nursing,Fairview Court,620.20, 01-Aug-2017
1308,Revenue,CAHD,Bed Purchasing - South,Permanent Nursing,Fairview Court,3000.00, 29-Aug-2017
1309,Revenue,CAHD,South Glos Users in South Glos Homes,Permanent Nursing,Fairview Court,620.20, 29-Aug-2017
1310,Revenue,CAHD,Bed Purchasing - Southmead Hospital,Permanent Nursing,Fairview Court,3360.00, 01-Aug-2017
1311,Revenue,CAHD,Bed Purchasing - Southmead Hospital,Permanent Nursing,Fairview Court,3360.00, 29-Aug-2017
1312,Revenue,CAHD,South Glos Users in South Glos Homes,Permanent Nursing,Fairview Court,620.20, 01-Aug-2017
1313,Revenue,CAHD,South Glos Users in South Glos Homes,Permanent Nursing,Fairview Court,620.20, 29-Aug-2017
1314,Revenue,CAHD,South Glos Users in South Glos Homes,Permanent Nursing,Fairview Court,1373.30, 01-Aug-2017
1315,Revenue,CAHD,South Glos Users in South Glos Homes,Permanent Nursing,Fairview Court,620.20, 01-Aug-2017
1316,Revenue,CAHD,South Glos Users in South Glos Homes,Permanent Nursing,Fairview Court,620.20, 29-Aug-2017
1317,Revenue,CAHD,Bed purchasing - Elderly S117 - South,Permanent Residential,Fairview House,2058.04, 01-Aug-2017
1318,Revenue,CAHD,Bed purchasing - Elderly S117 - South,Permanent Residential,Fairview House,2058.04, 29-Aug-2017
1319,Revenue,CAHD,Bed Purchasing - Southmead Hospital,Permanent Residential,Fairview House,1886.24, 01-Aug-2017
1320,Revenue,CAHD,Bed Purchasing - Southmead Hospital,Permanent Residential,Fairview House,1886.24, 29-Aug-2017
1321,Revenue,CAHD,Bed Purchasing - South,Permanent Residential,Fairview House,2094.64, 01-Aug-2017
1322,Revenue,CAHD,Bed Purchasing - South,Permanent Residential,Fairview House,2094.64, 29-Aug-2017
1323,Revenue,CAHD,Bed Purchasing - South,Permanent Residential,Fairview House,1886.24, 01-Aug-2017
1324,Revenue,CAHD,Bed Purchasing - South,Permanent Residential,Fairview House,1886.24, 29-Aug-2017
1325,Revenue,CAHD,Bed Purchasing - South,Permanent Residential,Fairview House,2127.32, 01-Aug-2017
1326,Revenue,CAHD,Bed Purchasing - South,Permanent Residential,Fairview House,2127.32, 29-Aug-2017
1327,Revenue,CAHD,Bed Purchasing - South,Permanent Residential,Fairview House,1886.24, 01-Aug-2017
1328,Revenue,CAHD,Bed Purchasing - South,Permanent Residential,Fairview House,1886.24, 29-Aug-2017
1329,Revenue,CAHD,Bed Purchasing - South,Permanent Residential,Fairview House,1886.24, 01-Aug-2017
1330,Revenue,CAHD,Bed Purchasing - South,Fees & Charges Income - General,Fairview House,1008.28, 29-Aug-2017
1331,Revenue,CAHD,Bed Purchasing - South,Permanent Residential,Fairview House,1886.24, 01-Aug-2017
1332,Revenue,CAHD,Bed Purchasing - South,Permanent Residential,Fairview House,1886.24, 29-Aug-2017
1333,Revenue,CAHD,Bed Purchasing - South,Permanent Residential,Fairview House,1917.36, 01-Aug-2017
1334,Revenue,CAHD,Bed Purchasing - South,Permanent Residential,Fairview House,1917.36, 29-Aug-2017
1335,Revenue,CAHD,Bed Purchasing - South,Permanent Residential,Fairview House,2117.24, 01-Aug-2017
1336,Revenue,CAHD,Bed Purchasing - South,Permanent Residential,Fairview House,2117.24, 29-Aug-2017
1337,Revenue,CAHD,Bed Purchasing - Southmead Hospital,Respite Emergency - Residential,Faith House,1764.29, 01-Aug-2017
1338,Revenue,CAHD,Bed Purchasing - North,Permanent Residential,Faith House,2633.80, 01-Aug-2017
1339,Revenue,CAHD,Bed Purchasing - North,Permanent Residential,Faith House,2633.80, 29-Aug-2017
1340,Revenue,CAHD,South Glos Users in South Glos Homes,Permanent Nursing,Field House Care Home,620.20, 01-Aug-2017
1341,Revenue,CAHD,South Glos Users in South Glos Homes,Permanent Nursing,Field House Care Home,620.20, 29-Aug-2017
1342,Revenue,CAHD,Bed Purchasing - Southmead Hospital,Permanent Nursing,Field House Care Home,3261.88, 01-Aug-2017
1343,Revenue,CAHD,Bed Purchasing - Southmead Hospital,Permanent Nursing,Field House Care Home,3261.88, 29-Aug-2017
1344,Revenue,CAHD,Bed Purchasing - Southmead Hospital,Permanent Nursing,Field House Care Home,3280.00, 01-Aug-2017
1345,Revenue,CAHD,Bed Purchasing - Southmead Hospital,Permanent Nursing,Field House Care Home,3280.00, 29-Aug-2017
1346,Revenue,CAHD,Bed Purchasing - North,Permanent Nursing,Field House Care Home,10777.14, 29-Aug-2017
1347,Revenue,CAHD,Bed Purchasing - North,Permanent Nursing,Field House Care Home,3280.00, 29-Aug-2017
1348,Revenue,CAHD,Bed Purchasing - North,Fees & Charges Income - General,Field House Care Home,637.95, 29-Aug-2017
1349,Revenue,CAHD,Bed Purchasing - North,Fees & Charges Income - General,Field House Care Home,519.11, 29-Aug-2017
1350,Revenue,CAHD,Bed Purchasing - North,Permanent Nursing,Field House Care Home,9240.00, 29-Aug-2017
1351,Revenue,CAHD,Bed Purchasing - North,Permanent Nursing,Field House Care Home,3360.00, 29-Aug-2017
1352,Revenue,CAHD,Bed Purchasing - North,Respite Emergency - Residential,Fieldview,3444.20, 01-Aug-2017
1353,Revenue,CAHD,Bed Purchasing - North,Respite Emergency - Residential,Fieldview,3444.20, 29-Aug-2017
1354,Revenue,CAHD,Bed Purchasing - North,Permanent Residential,Fieldview,2836.40, 01-Aug-2017
1355,Revenue,CAHD,Bed Purchasing - North,Permanent Residential,Fieldview,2836.40, 29-Aug-2017
1356,Revenue,CAHD,Bed Purchasing - Elderly S117- North,Permanent Residential,Fieldview,4800.00, 01-Aug-2017
1357,Revenue,CAHD,Bed Purchasing - Elderly S117- North,Permanent Residential,Fieldview,4800.00, 29-Aug-2017
1358,Revenue,CAHD,MH Purchasing - Younger,Permanent Nursing,Fieldview,5267.60, 01-Aug-2017
1359,Revenue,CAHD,MH Purchasing - Younger,Permanent Nursing,Fieldview,5267.60, 29-Aug-2017
1360,Revenue,CAHD,Bed Purchasing - South,Permanent Residential,Fig House,2836.40, 01-Aug-2017
1361,Revenue,CAHD,Bed Purchasing - South,Permanent Residential,Fig House,2836.40, 29-Aug-2017
1362,Revenue,CAHD,Home Care - Elderly - South,Other Small Contracts,Firstpoint Homecare Ltd,1249.60, 01-Aug-2017
1363,Revenue,CAHD,Home Care - Elderly - North,Day Care / Social Activities,Firstpoint Homecare Ltd,132.00, 01-Aug-2017
1364,Revenue,CAHD,Home Care - Elderly - North,Other Small Contracts,Firstpoint Homecare Ltd,52.80, 01-Aug-2017
1365,Revenue,CAHD,Home Care - Elderly - South,Other Small Contracts,Firstpoint Homecare Ltd,1262.80, 04-Aug-2017
1366,Revenue,CAHD,Home Care - Elderly - North,Day Care / Social Activities,Firstpoint Homecare Ltd,132.00, 04-Aug-2017
1367,Revenue,CAHD,Home Care - Elderly - North,Other Small Contracts,Firstpoint Homecare Ltd,52.80, 04-Aug-2017
1368,Revenue,CAHD,Home Care - Elderly - South,Other Small Contracts,Firstpoint Homecare Ltd,1210.00, 23-Aug-2017
1369,Revenue,CAHD,Home Care - Elderly - North,Day Care / Social Activities,Firstpoint Homecare Ltd,127.60, 23-Aug-2017
1370,Revenue,CAHD,Home Care - Elderly - North,Other Small Contracts,Firstpoint Homecare Ltd,48.40, 23-Aug-2017
1371,Revenue,CAHD,Home Care - Elderly - South,Other Small Contracts,Firstpoint Homecare Ltd,1306.80, 22-Aug-2017
1372,Revenue,CAHD,Home Care - Elderly - North,Day Care / Social Activities,Firstpoint Homecare Ltd,127.60, 22-Aug-2017
1373,Revenue,CAHD,Home Care - Elderly - North,Other Small Contracts,Firstpoint Homecare Ltd,52.80, 22-Aug-2017
1374,Revenue,CAHD,Home Care - Elderly - South,Other Small Contracts,Firstpoint Homecare Ltd,1161.60, 31-Aug-2017
1375,Revenue,CAHD,Home Care - Elderly - North,Day Care / Social Activities,Firstpoint Homecare Ltd,127.60, 31-Aug-2017
1376,Revenue,CAHD,Home Care - Elderly - North,Other Small Contracts,Firstpoint Homecare Ltd,52.80, 31-Aug-2017
1377,Revenue,CAHD,Home Care - Elderly - South,Day Care / Social Activities,Fourways Care Limited,39.12, 01-Aug-2017
1378,Revenue,CAHD,Home Care - Elderly - South,Other Small Contracts,Fourways Care Limited,7138.68, 01-Aug-2017
1379,Revenue,CAHD,Home Care - Elderly - North,Other Small Contracts,Fourways Care Limited,4863.12, 01-Aug-2017
1380,Revenue,CAHD,Younger MH non-res purchasing,Other Small Contracts,Fourways Care Limited,757.95, 01-Aug-2017
1381,Revenue,CAHD,Home Care - Elderly - South,Day Care / Social Activities,Fourways Care Limited,39.12, 08-Aug-2017
1382,Revenue,CAHD,Home Care - Elderly - South,Other Small Contracts,Fourways Care Limited,7247.49, 08-Aug-2017
1383,Revenue,CAHD,Home Care - Elderly - North,Other Small Contracts,Fourways Care Limited,4134.51, 08-Aug-2017
1384,Revenue,CAHD,Younger MH non-res purchasing,Other Small Contracts,Fourways Care Limited,748.17, 08-Aug-2017
1385,Revenue,CAHD,Home Care - Elderly - South,Day Care / Social Activities,Fourways Care Limited,39.12, 18-Aug-2017
1386,Revenue,CAHD,Home Care - Elderly - South,Other Small Contracts,Fourways Care Limited,6599.29, 18-Aug-2017
1387,Revenue,CAHD,Home Care - Elderly - North,Other Small Contracts,Fourways Care Limited,4141.83, 18-Aug-2017
1388,Revenue,CAHD,Younger MH non-res purchasing,Other Small Contracts,Fourways Care Limited,650.37, 18-Aug-2017
1389,Revenue,CAHD,Home Care - Elderly - South,Day Care / Social Activities,Fourways Care Limited,78.24, 31-Aug-2017
1390,Revenue,CAHD,Home Care - Elderly - South,Other Small Contracts,Fourways Care Limited,6822.06, 31-Aug-2017
1391,Revenue,CAHD,Home Care - Elderly - North,Other Small Contracts,Fourways Care Limited,4836.21, 31-Aug-2017
1392,Revenue,CAHD,Younger MH non-res purchasing,Other Small Contracts,Fourways Care Limited,723.72, 31-Aug-2017
1393,Revenue,CAHD,Supporting People Programme,Grants to Voluntary Bodies,Freeways Trust Limited,6939.40, 01-Aug-2017
1394,Revenue,CAHD,Freeways,Permanent Residential,Freeways Trust Limited,3677.48, 31-Aug-2017
1395,Revenue,CAHD,Freeways,Permanent Residential,Freeways Trust Limited,2364.64, 31-Aug-2017
1396,Revenue,CAHD,Freeways,Permanent Residential,Freeways Trust Limited,2364.64, 31-Aug-2017
1397,Revenue,CAHD,Freeways,Permanent Residential,Freeways Trust Limited,3441.12, 31-Aug-2017
1398,Revenue,CAHD,Freeways,Permanent Residential,Freeways Trust Limited,2364.64, 31-Aug-2017
1399,Revenue,CAHD,Freeways,Permanent Residential,Freeways Trust Limited,3491.60, 31-Aug-2017
1400,Revenue,CAHD,Freeways,Permanent Residential,Freeways Trust Limited,2629.12, 31-Aug-2017
1401,Revenue,CAHD,Freeways,Permanent Residential,Freeways Trust Limited,3649.08, 31-Aug-2017
1402,Revenue,CAHD,Freeways,Permanent Residential,Freeways Trust Limited,2229.44, 31-Aug-2017
1403,Revenue,CAHD,Freeways,Permanent Residential,Freeways Trust Limited,2792.80, 31-Aug-2017
1404,Revenue,CAHD,Freeways,Permanent Residential,Freeways Trust Limited,3557.68, 31-Aug-2017
1405,Revenue,CAHD,Freeways,Permanent Residential,Freeways Trust Limited,3122.76, 31-Aug-2017
1406,Revenue,CAHD,Freeways,Permanent Residential,Freeways Trust Limited,2364.64, 31-Aug-2017
1407,Revenue,CAHD,Freeways,Permanent Residential,Freeways Trust Limited,2517.36, 31-Aug-2017
1408,Revenue,CAHD,Freeways,Permanent Residential,Freeways Trust Limited,1348.59, 31-Aug-2017
1409,Revenue,CAHD,Freeways,Permanent Residential,Freeways Trust Limited,5034.72, 31-Aug-2017
1410,Revenue,CAHD,Home Care - Elderly - North,Other Small Contracts,Freeways Trust Limited,806.08, 01-Aug-2017
1411,Revenue,CAHD,Home Care - Elderly - North,Other Small Contracts,Freeways Trust Limited,811.36, 01-Aug-2017
1412,Revenue,CAHD,Home Care - Elderly - North,Other Small Contracts,Freeways Trust Limited,811.36, 01-Aug-2017
1413,Revenue,CAHD,Home Care - Elderly - North,Other Small Contracts,Freeways Trust Limited,811.36, 01-Aug-2017
1414,Revenue,CAHD,Home Care - Elderly - North,Other Small Contracts,Freeways Trust Limited,636.18, 22-Aug-2017
1415,Revenue,CAHD,Home Care - Elderly - North,Other Small Contracts,Freeways Trust Limited,811.36, 31-Aug-2017
1416,Revenue,CAHD,Home Care - Elderly - North,Supported Living,Freeways Trust Ltd,810.40, 01-Aug-2017
1417,Revenue,CAHD,Home Care - Elderly - North,Supported Living,Freeways Trust Ltd,810.40, 29-Aug-2017
1418,Revenue,CAHD,Bed purchasing - S28A Under 65 - South,Permanent Residential,Freeways Trust Ltd,3592.40, 01-Aug-2017
1419,Revenue,CAHD,Bed purchasing - S28A Under 65 - South,Permanent Residential,Freeways Trust Ltd,3592.40, 29-Aug-2017
1420,Revenue,CAHD,Bed Purchasing - North,Permanent Residential,Freeways Trust Ltd,3606.68, 01-Aug-2017
1421,Revenue,CAHD,Bed Purchasing - North,Permanent Residential,Freeways Trust Ltd,3606.68, 29-Aug-2017
1422,Revenue,CAHD,Bed Purchasing - South,Permanent Residential,Freeways Trust Ltd,3825.16, 01-Aug-2017
1423,Revenue,CAHD,Bed Purchasing - South,Permanent Residential,Freeways Trust Ltd,3825.16, 29-Aug-2017
1424,Revenue,CAHD,Bed Purchasing - North,Permanent Residential,Freeways Trust Ltd,2888.32, 01-Aug-2017
1425,Revenue,CAHD,Bed Purchasing - North,Permanent Residential,Freeways Trust Ltd,2888.32, 29-Aug-2017
1426,Revenue,CAHD,Bed Purchasing - South,Permanent Residential,Freeways Trust Ltd,3043.64, 01-Aug-2017
1427,Revenue,CAHD,Bed Purchasing - South,Permanent Residential,Freeways Trust Ltd,3043.64, 29-Aug-2017
1428,Revenue,CAHD,Bed Purchasing - North,Permanent Residential,Freeways Trust Ltd,3190.00, 01-Aug-2017
1429,Revenue,CAHD,Bed Purchasing - North,Permanent Residential,Freeways Trust Ltd,3190.00, 29-Aug-2017
1430,Revenue,CAHD,Bed Purchasing - North,Permanent Residential,Freeways Trust Ltd,3818.20, 01-Aug-2017
1431,Revenue,CAHD,Bed Purchasing - North,Permanent Residential,Freeways Trust Ltd,3818.20, 29-Aug-2017
1432,Revenue,CAHD,18-25 Year Olds,Permanent Residential,Freeways Trust Ltd,3527.20, 01-Aug-2017
1433,Revenue,CAHD,18-25 Year Olds,Permanent Residential,Freeways Trust Ltd,3527.20, 29-Aug-2017
1434,Revenue,CAHD,Section 117 Placements MH Younger,Permanent Residential,Freeways Trust Ltd,13600.00, 29-Aug-2017
1435,Revenue,CAHD,Home Care - Elderly - North,Day Care / Social Activities,Frenchay Beckspool Building,864.00, 01-Aug-2017
1436,Revenue,CAHD,Home Care - Elderly - North,Day Care / Social Activities,Frenchay Beckspool Building,864.00, 01-Aug-2017
1437,Revenue,CAHD,Home Care - Elderly - North,Day Care / Social Activities,Frenchay Beckspool Building,864.00, 29-Aug-2017
1438,Revenue,CAHD,Home Care - Elderly - South,Day Care / Social Activities,Frenchay Beckspool Building,864.00, 01-Aug-2017
1439,Revenue,CAHD,Home Care - Elderly - South,Day Care / Social Activities,Frenchay Beckspool Building,864.00, 29-Aug-2017
1440,Revenue,CAHD,Pathway 3 - (Complex Beds),Permanent Nursing,Frenchay House,3204.00, 18-Aug-2017
1441,Revenue,CAHD,Bed Purchasing - South,Respite Planned - Nursing,Frenchay Park Nursing Home,3200.00, 01-Aug-2017
1442,Revenue,CAHD,Bed Purchasing - South,Respite Planned - Nursing,Frenchay Park Nursing Home,1485.71, 01-Aug-2017
1443,Revenue,CAHD,Bed Purchasing - South,Respite Planned - Nursing,Frenchay Park Nursing Home,3200.00, 29-Aug-2017
1444,Revenue,CAHD,Bed Purchasing - Southmead Hospital,Permanent Nursing,Frenchay Park Nursing Home,3200.00, 01-Aug-2017
1445,Revenue,CAHD,Bed Purchasing - Southmead Hospital,Permanent Nursing,Frenchay Park Nursing Home,3200.00, 29-Aug-2017
1446,Revenue,CAHD,South Glos Users in South Glos Homes,Permanent Nursing,Fshc  1St Floor,620.20, 01-Aug-2017
1447,Revenue,CAHD,South Glos Users in South Glos Homes,Permanent Nursing,Fshc  1St Floor,620.20, 29-Aug-2017
1448,Revenue,CAHD,Bed Purchasing - South,Permanent Nursing,Fshc  1St Floor,2621.16, 01-Aug-2017
1449,Revenue,CAHD,South Glos Users in South Glos Homes,Permanent Nursing,Fshc  1St Floor,620.20, 01-Aug-2017
1450,Revenue,CAHD,Bed Purchasing - South,Permanent Nursing,Fshc  1St Floor,2621.16, 29-Aug-2017
1451,Revenue,CAHD,South Glos Users in South Glos Homes,Permanent Nursing,Fshc  1St Floor,620.20, 29-Aug-2017
1452,Revenue,CAHD,Bed Purchasing - South,Permanent Nursing,Fshc  1St Floor,2228.00, 01-Aug-2017
1453,Revenue,CAHD,Bed Purchasing - South,Permanent Nursing,Fshc  1St Floor,2228.00, 29-Aug-2017
1454,Revenue,CAHD,Bed Purchasing - Southmead Hospital,Permanent Nursing,Fshc  1St Floor,2281.28, 01-Aug-2017
1455,Revenue,CAHD,Bed Purchasing - Southmead Hospital,Permanent Nursing,Fshc  1St Floor,2281.28, 29-Aug-2017
1456,Revenue,CAHD,Bed Purchasing - South,Permanent Nursing,Fshc  1St Floor,2228.00, 01-Aug-2017
1457,Revenue,CAHD,South Glos Users in South Glos Homes,Permanent Nursing,Fshc  1St Floor,620.20, 01-Aug-2017
1458,Revenue,CAHD,Bed Purchasing - South,Permanent Nursing,Fshc  1St Floor,2228.00, 29-Aug-2017
1459,Revenue,CAHD,South Glos Users in South Glos Homes,Permanent Nursing,Fshc  1St Floor,620.20, 29-Aug-2017
1460,Revenue,CAHD,Bed Purchasing - Southmead Hospital,Permanent Nursing,Fshc  1St Floor,2390.68, 01-Aug-2017
1461,Revenue,CAHD,South Glos Users in South Glos Homes,Permanent Nursing,Fshc  1St Floor,620.20, 01-Aug-2017
1462,Revenue,CAHD,Bed Purchasing - Southmead Hospital,Permanent Nursing,Fshc  1St Floor,2390.68, 29-Aug-2017
1463,Revenue,CAHD,South Glos Users in South Glos Homes,Permanent Nursing,Fshc  1St Floor,620.20, 29-Aug-2017
1464,Revenue,CAHD,Bed Purchasing - Southmead Hospital,Permanent Nursing,Fshc  1St Floor,2228.00, 01-Aug-2017
1465,Revenue,CAHD,South Glos Users in South Glos Homes,Permanent Nursing,Fshc  1St Floor,620.20, 01-Aug-2017
1466,Revenue,CAHD,Bed Purchasing - Southmead Hospital,Permanent Nursing,Fshc  1St Floor,2228.00, 29-Aug-2017
1467,Revenue,CAHD,South Glos Users in South Glos Homes,Permanent Nursing,Fshc  1St Floor,620.20, 29-Aug-2017
1468,Revenue,CAHD,South Glos Users in South Glos Homes,Permanent Nursing,Fshc  1St Floor,620.20, 01-Aug-2017
1469,Revenue,CAHD,South Glos Users in South Glos Homes,Permanent Nursing,Fshc  1St Floor,620.20, 29-Aug-2017
1470,Revenue,CAHD,Bed Purchasing - Southmead Hospital,Permanent Residential,Fshc  1St Floor,3300.00, 01-Aug-2017
1471,Revenue,CAHD,Bed Purchasing - Southmead Hospital,Permanent Residential,Fshc  1St Floor,2200.00, 01-Aug-2017
1472,Revenue,CAHD,Bed Purchasing - Southmead Hospital,Permanent Residential,Fshc  1St Floor,1100.00, 29-Aug-2017
1473,Revenue,CAHD,Bed Purchasing - Southmead Hospital,Permanent Residential,Fshc  1St Floor,1100.00, 29-Aug-2017
1474,Revenue,CAHD,Bed Purchasing - Southmead Hospital,Permanent Nursing,Fshc  1St Floor,2281.28, 01-Aug-2017
1475,Revenue,CAHD,South Glos Users in South Glos Homes,Permanent Nursing,Fshc  1St Floor,620.20, 01-Aug-2017
1476,Revenue,CAHD,Bed Purchasing - Southmead Hospital,Permanent Nursing,Fshc  1St Floor,2281.28, 29-Aug-2017
1477,Revenue,CAHD,South Glos Users in South Glos Homes,Permanent Nursing,Fshc  1St Floor,620.20, 29-Aug-2017
1478,Revenue,CAHD,South Glos Users in South Glos Homes,Permanent Nursing,Fshc  1St Floor,620.20, 01-Aug-2017
1479,Revenue,CAHD,South Glos Users in South Glos Homes,Permanent Nursing,Fshc  1St Floor,620.20, 29-Aug-2017
1480,Revenue,CAHD,Bed Purchasing - Southmead Hospital,Permanent Nursing,Fshc  1St Floor,818.21, 01-Aug-2017
1481,Revenue,CAHD,Bed Purchasing - Southmead Hospital,Respite Emergency - Residential,Fshc  1St Floor,4620.00, 29-Aug-2017
1482,Revenue,CAHD,Bed Purchasing - Southmead Hospital,Respite Emergency - Residential,Fshc  1St Floor,2640.00, 29-Aug-2017
1483,Revenue,CAHD,Bed Purchasing - Southmead Hospital,Permanent Nursing,Fshc  1St Floor,2228.00, 01-Aug-2017
1484,Revenue,CAHD,Bed Purchasing - Southmead Hospital,Permanent Nursing,Fshc  1St Floor,2228.00, 29-Aug-2017
1485,Revenue,CAHD,Bed Purchasing - South,Respite Planned - Nursing,Fshc  1St Floor,1800.00, 01-Aug-2017
1486,Revenue,CAHD,Bed Purchasing - Southmead Hospital,Permanent Nursing,Fshc  1St Floor,2390.68, 01-Aug-2017
1487,Revenue,CAHD,South Glos Users in South Glos Homes,Permanent Nursing,Fshc  1St Floor,620.20, 01-Aug-2017
1488,Revenue,CAHD,South Glos Users in South Glos Homes,Permanent Nursing,Fshc  1St Floor,620.20, 29-Aug-2017
1489,Revenue,CAHD,Bed Purchasing - Southmead Hospital,Permanent Nursing,Fshc  1St Floor,597.67, 29-Aug-2017
1490,Revenue,CAHD,Bed Purchasing - Southmead Hospital,Permanent Nursing,Fshc  1St Floor,3099.80, 01-Aug-2017
1491,Revenue,CAHD,South Glos Users in South Glos Homes,Permanent Nursing,Fshc  1St Floor,620.20, 01-Aug-2017
1492,Revenue,CAHD,Bed Purchasing - Southmead Hospital,Permanent Nursing,Fshc  1St Floor,3099.80, 29-Aug-2017
1493,Revenue,CAHD,South Glos Users in South Glos Homes,Permanent Nursing,Fshc  1St Floor,620.20, 29-Aug-2017
1494,Revenue,CAHD,Bed Purchasing - Southmead Hospital,Permanent Nursing,Fshc  1St Floor,3550.00, 29-Aug-2017
1495,Revenue,CAHD,Bed Purchasing - Southmead Hospital,Permanent Nursing,Fshc  1St Floor,2840.00, 29-Aug-2017
1496,Revenue,CAHD,Bed Purchasing - Southmead Hospital,Permanent Nursing,Fshc  1St Floor,2360.00, 01-Aug-2017
1497,Revenue,CAHD,South Glos Users in South Glos Homes,Permanent Nursing,Fshc  1St Floor,620.20, 01-Aug-2017
1498,Revenue,CAHD,Bed Purchasing - Southmead Hospital,Permanent Nursing,Fshc  1St Floor,2360.00, 29-Aug-2017
1499,Revenue,CAHD,South Glos Users in South Glos Homes,Permanent Nursing,Fshc  1St Floor,620.20, 29-Aug-2017
1500,Revenue,CAHD,Bed Purchasing - South,Permanent Nursing,Fshc  1St Floor,2613.56, 01-Aug-2017
1501,Revenue,CAHD,Bed Purchasing - South,Permanent Nursing,Fshc  1St Floor,3794.81, 29-Aug-2017
1502,Revenue,CAHD,Bed Purchasing - South,Permanent Nursing,Fshc  1St Floor,2613.56, 29-Aug-2017
1503,Revenue,CAHD,Bed Purchasing - South,Permanent Nursing,Fshc  1St Floor,1213.44, 29-Aug-2017
1504,Revenue,CAHD,South Glos Users in South Glos Homes,Permanent Nursing,Fshc  1St Floor,620.20, 01-Aug-2017
1505,Revenue,CAHD,South Glos Users in South Glos Homes,Permanent Nursing,Fshc  1St Floor,620.20, 29-Aug-2017
1506,Revenue,CAHD,Bed Purchasing - South,Permanent Nursing,Fshc  1St Floor,2312.32, 01-Aug-2017
1507,Revenue,CAHD,Bed Purchasing - South,Permanent Nursing,Fshc  1St Floor,908.41, 29-Aug-2017
1508,Revenue,CAHD,South Glos Users in South Glos Homes,Permanent Nursing,Fshc  1St Floor,620.20, 01-Aug-2017
1509,Revenue,CAHD,South Glos Users in South Glos Homes,Permanent Nursing,Fshc  1St Floor,620.20, 29-Aug-2017
1510,Revenue,CAHD,Bed Purchasing - South,Respite Planned - Nursing,Fshc  1St Floor,4720.00, 01-Aug-2017
1511,Revenue,CAHD,Bed Purchasing - South,Respite Planned - Nursing,Fshc  1St Floor,2360.00, 29-Aug-2017
1512,Revenue,CAHD,Bed Purchasing - South,Permanent Nursing,Fshc  1St Floor,2360.00, 29-Aug-2017
1513,Revenue,CAHD,Bed Purchasing - South,Permanent Nursing,Fshc  1St Floor,505.71, 29-Aug-2017
1514,Revenue,CAHD,Bed Purchasing - Southmead Hospital,Permanent Nursing,Fshc  1St Floor,2281.28, 01-Aug-2017
1515,Revenue,CAHD,South Glos Users in South Glos Homes,Permanent Nursing,Fshc  1St Floor,620.20, 01-Aug-2017
1516,Revenue,CAHD,Bed Purchasing - Southmead Hospital,Permanent Nursing,Fshc  1St Floor,2281.28, 29-Aug-2017
1517,Revenue,CAHD,South Glos Users in South Glos Homes,Permanent Nursing,Fshc  1St Floor,620.20, 29-Aug-2017
1518,Revenue,CAHD,Bed Purchasing - Southmead Hospital,Permanent Nursing,Fshc  1St Floor,3287.14, 01-Aug-2017
1519,Revenue,CAHD,Bed Purchasing - Southmead Hospital,Permanent Nursing,Fshc  1St Floor,2360.00, 01-Aug-2017
1520,Revenue,CAHD,Bed Purchasing - Southmead Hospital,Permanent Nursing,Fshc  1St Floor,5647.14, 29-Aug-2017
1521,Revenue,CAHD,Bed Purchasing - Southmead Hospital,Permanent Nursing,Fshc  1St Floor,2360.00, 29-Aug-2017
1522,Revenue,CAHD,Bed Purchasing - Southmead Hospital,Fees & Charges Income - General,Fshc  1St Floor,1267.67, 29-Aug-2017
1523,Revenue,CAHD,Bed Purchasing - South,Permanent Nursing,Fshc  1St Floor,1671.00, 01-Aug-2017
1524,Revenue,CAHD,South Glos Users in South Glos Homes,Permanent Nursing,Fshc  1St Floor,620.20, 01-Aug-2017
1525,Revenue,CAHD,Bed Purchasing - South,Permanent Nursing,Fshc  1St Floor,557.00, 01-Aug-2017
1526,Revenue,CAHD,Bed Purchasing - South,Fees & Charges Income - General,Fshc  1St Floor,557.00, 01-Aug-2017
1527,Revenue,CAHD,Bed Purchasing - South,Permanent Nursing,Fshc  1St Floor,7798.00, 01-Aug-2017
1528,Revenue,CAHD,Bed Purchasing - South,Fees & Charges Income - General,Fshc  1St Floor,2015.38, 01-Aug-2017
1529,Revenue,CAHD,Bed Purchasing - South,Permanent Nursing,Fshc  1St Floor,2228.00, 29-Aug-2017
1530,Revenue,CAHD,South Glos Users in South Glos Homes,Permanent Nursing,Fshc  1St Floor,620.20, 29-Aug-2017
1531,Revenue,CAHD,Bed Purchasing - Southmead Hospital,Permanent Nursing,Fshc  1St Floor,2228.00, 01-Aug-2017
1532,Revenue,CAHD,South Glos Users in South Glos Homes,Permanent Nursing,Fshc  1St Floor,620.20, 01-Aug-2017
1533,Revenue,CAHD,Bed Purchasing - Southmead Hospital,Permanent Nursing,Fshc  1St Floor,2228.00, 29-Aug-2017
1534,Revenue,CAHD,South Glos Users in South Glos Homes,Permanent Nursing,Fshc  1St Floor,620.20, 29-Aug-2017
1535,Revenue,CAHD,Bed Purchasing - South,Permanent Nursing,Fshc  1St Floor,577.05, 29-Aug-2017
1536,Revenue,CAHD,Bed Purchasing - South,Permanent Nursing,Fshc  1St Floor,3899.00, 01-Aug-2017
1537,Revenue,CAHD,Bed Purchasing - South,Permanent Nursing,Fshc  1St Floor,2228.00, 01-Aug-2017
1538,Revenue,CAHD,South Glos Users in South Glos Homes,Permanent Nursing,Fshc  1St Floor,620.20, 01-Aug-2017
1539,Revenue,CAHD,Bed Purchasing - South,Permanent Nursing,Fshc  1St Floor,3899.00, 01-Aug-2017
1540,Revenue,CAHD,Bed Purchasing - North,Fees & Charges Income - General,Fshc  1St Floor,1048.60, 01-Aug-2017
1541,Revenue,CAHD,Bed Purchasing - South,Permanent Nursing,Fshc  1St Floor,3674.79, 01-Aug-2017
1542,Revenue,CAHD,Bed Purchasing - South,Fees & Charges Income - General,Fshc  1St Floor,1027.20, 01-Aug-2017
1543,Revenue,CAHD,Bed Purchasing - South,Permanent Nursing,Fshc  1St Floor,2228.00, 29-Aug-2017
1544,Revenue,CAHD,South Glos Users in South Glos Homes,Permanent Nursing,Fshc  1St Floor,620.20, 29-Aug-2017
1545,Revenue,CAHD,Bed Purchasing - South,Permanent Nursing,Fshc  1St Floor,2281.28, 01-Aug-2017
1546,Revenue,CAHD,South Glos Users in South Glos Homes,Permanent Nursing,Fshc  1St Floor,620.20, 01-Aug-2017
1547,Revenue,CAHD,Bed Purchasing - South,Permanent Nursing,Fshc  1St Floor,2281.28, 29-Aug-2017
1548,Revenue,CAHD,South Glos Users in South Glos Homes,Permanent Nursing,Fshc  1St Floor,620.20, 29-Aug-2017
1549,Revenue,CAHD,Bed Purchasing - Southmead Hospital,Respite Planned - Nursing,Fshc  1St Floor,2400.00, 01-Aug-2017
1550,Revenue,CAHD,Bed Purchasing - Southmead Hospital,Respite Planned - Nursing,Fshc  1St Floor,1971.43, 01-Aug-2017
1551,Revenue,CAHD,South Glos Users in South Glos Homes,Permanent Nursing,Fshc  1St Floor,620.20, 01-Aug-2017
1552,Revenue,CAHD,South Glos Users in South Glos Homes,Permanent Nursing,Fshc  1St Floor,620.20, 29-Aug-2017
1553,Revenue,CAHD,Bed Purchasing - Southmead Hospital,Respite Planned - Nursing,Fshc  1St Floor,514.29, 29-Aug-2017
1554,Revenue,CAHD,Bed Purchasing - North,Respite Planned - Residential,Fshc  1St Floor,617.14, 01-Aug-2017
1555,Revenue,CAHD,South Glos Users in South Glos Homes,Permanent Nursing,Fshc  1St Floor,620.20, 01-Aug-2017
1556,Revenue,CAHD,South Glos Users in South Glos Homes,Permanent Nursing,Fshc  1St Floor,620.20, 29-Aug-2017
1557,Revenue,CAHD,Bed Purchasing - North,Permanent Nursing,Fshc  1St Floor,2312.32, 01-Aug-2017
1558,Revenue,CAHD,South Glos Users in South Glos Homes,Permanent Nursing,Fshc  1St Floor,620.20, 01-Aug-2017
1559,Revenue,CAHD,Bed Purchasing - North,Permanent Nursing,Fshc  1St Floor,2312.32, 29-Aug-2017
1560,Revenue,CAHD,South Glos Users in South Glos Homes,Permanent Nursing,Fshc  1St Floor,620.20, 29-Aug-2017
1561,Revenue,CAHD,Bed Purchasing - Southmead Hospital,Permanent Nursing,Fshc  1St Floor,2810.84, 01-Aug-2017
1562,Revenue,CAHD,Bed Purchasing - Southmead Hospital,Permanent Nursing,Fshc  1St Floor,2810.84, 29-Aug-2017
1563,Revenue,CAHD,South Glos Users in South Glos Homes,Permanent Nursing,Fshc  1St Floor,620.20, 01-Aug-2017
1564,Revenue,CAHD,South Glos Users in South Glos Homes,Permanent Nursing,Fshc  1St Floor,620.20, 29-Aug-2017
1565,Revenue,CAHD,Bed Purchasing - North,Permanent Nursing,Fshc  1St Floor,2411.42, 01-Aug-2017
1566,Revenue,CAHD,Bed Purchasing - Southmead Hospital,Permanent Residential,Fshc  1St Floor,2256.96, 01-Aug-2017
1567,Revenue,CAHD,Bed Purchasing - Southmead Hospital,Permanent Residential,Fshc  1St Floor,2256.96, 29-Aug-2017
1568,Revenue,CAHD,Bed Purchasing - Southmead Hospital,Permanent Nursing,Fshc  1St Floor,2228.00, 01-Aug-2017
1569,Revenue,CAHD,South Glos Users in South Glos Homes,Permanent Nursing,Fshc  1St Floor,620.20, 01-Aug-2017
1570,Revenue,CAHD,Bed Purchasing - Southmead Hospital,Permanent Nursing,Fshc  1St Floor,2228.00, 29-Aug-2017
1571,Revenue,CAHD,South Glos Users in South Glos Homes,Permanent Nursing,Fshc  1St Floor,620.20, 29-Aug-2017
1572,Revenue,CAHD,South Glos Users in South Glos Homes,Permanent Nursing,Fshc  1St Floor,996.75, 29-Aug-2017
1573,Revenue,CAHD,Bed Purchasing - North,Permanent Nursing,Fshc  1St Floor,2228.00, 01-Aug-2017
1574,Revenue,CAHD,South Glos Users in South Glos Homes,Permanent Nursing,Fshc  1St Floor,620.20, 01-Aug-2017
1575,Revenue,CAHD,Bed Purchasing - North,Permanent Nursing,Fshc  1St Floor,2228.00, 29-Aug-2017
1576,Revenue,CAHD,South Glos Users in South Glos Homes,Permanent Nursing,Fshc  1St Floor,620.20, 29-Aug-2017
1577,Revenue,CAHD,Bed Purchasing - Southmead Hospital,Respite Planned - Nursing,Fshc  1St Floor,3132.86, 29-Aug-2017
1578,Revenue,CAHD,South Glos Users in South Glos Homes,Permanent Nursing,Fshc  1St Floor,620.20, 01-Aug-2017
1579,Revenue,CAHD,South Glos Users in South Glos Homes,Permanent Nursing,Fshc  1St Floor,620.20, 29-Aug-2017
1580,Revenue,CAHD,Bed Purchasing - Southmead Hospital,Permanent Nursing,Fshc  1St Floor,2228.00, 01-Aug-2017
1581,Revenue,CAHD,South Glos Users in South Glos Homes,Permanent Nursing,Fshc  1St Floor,620.20, 01-Aug-2017
1582,Revenue,CAHD,Bed Purchasing - Southmead Hospital,Permanent Nursing,Fshc  1St Floor,2228.00, 29-Aug-2017
1583,Revenue,CAHD,South Glos Users in South Glos Homes,Permanent Nursing,Fshc  1St Floor,620.20, 29-Aug-2017
1584,Revenue,CAHD,Bed Purchasing - Southmead Hospital,Permanent Residential,Fshc  1St Floor,2072.00, 01-Aug-2017
1585,Revenue,CAHD,Bed Purchasing - Southmead Hospital,Permanent Residential,Fshc  1St Floor,2072.00, 29-Aug-2017
1586,Revenue,CAHD,South Glos Users in South Glos Homes,Permanent Nursing,Fshc  1St Floor,620.20, 01-Aug-2017
1587,Revenue,CAHD,South Glos Users in South Glos Homes,Permanent Nursing,Fshc  1St Floor,620.20, 29-Aug-2017
1588,Revenue,CAHD,Bed Purchasing - Southmead Hospital,Permanent Nursing,Fshc  1St Floor,2228.00, 01-Aug-2017
1589,Revenue,CAHD,South Glos Users in South Glos Homes,Permanent Nursing,Fshc  1St Floor,620.20, 01-Aug-2017
1590,Revenue,CAHD,Bed Purchasing - Southmead Hospital,Permanent Nursing,Fshc  1St Floor,2228.00, 01-Aug-2017
1591,Revenue,CAHD,South Glos Users in South Glos Homes,Permanent Nursing,Fshc  1St Floor,620.20, 01-Aug-2017
1592,Revenue,CAHD,Bed Purchasing - Southmead Hospital,Permanent Nursing,Fshc  1St Floor,2228.00, 29-Aug-2017
1593,Revenue,CAHD,South Glos Users in South Glos Homes,Permanent Nursing,Fshc  1St Floor,620.20, 29-Aug-2017
1594,Revenue,CAHD,Bed Purchasing - Southmead Hospital,Permanent Nursing,Fshc  1St Floor,2256.96, 01-Aug-2017
1595,Revenue,CAHD,South Glos Users in South Glos Homes,Permanent Nursing,Fshc  1St Floor,620.20, 01-Aug-2017
1596,Revenue,CAHD,Bed Purchasing - Southmead Hospital,Permanent Nursing,Fshc  1St Floor,2256.96, 29-Aug-2017
1597,Revenue,CAHD,South Glos Users in South Glos Homes,Permanent Nursing,Fshc  1St Floor,620.20, 29-Aug-2017
1598,Revenue,CAHD,Bed Purchasing - Southmead Hospital,Permanent Nursing,Fshc  1St Floor,2228.00, 01-Aug-2017
1599,Revenue,CAHD,South Glos Users in South Glos Homes,Permanent Nursing,Fshc  1St Floor,620.20, 01-Aug-2017
1600,Revenue,CAHD,Bed Purchasing - Southmead Hospital,Permanent Nursing,Fshc  1St Floor,2228.00, 29-Aug-2017
1601,Revenue,CAHD,South Glos Users in South Glos Homes,Permanent Nursing,Fshc  1St Floor,620.20, 29-Aug-2017
1602,Revenue,CAHD,South Glos Users in South Glos Homes,Permanent Nursing,Fshc  1St Floor,620.20, 01-Aug-2017
1603,Revenue,CAHD,South Glos Users in South Glos Homes,Permanent Nursing,Fshc  1St Floor,620.20, 29-Aug-2017
1604,Revenue,CAHD,Bed Purchasing - North,Permanent Nursing,Fshc  1St Floor,2228.00, 01-Aug-2017
1605,Revenue,CAHD,South Glos Users in South Glos Homes,Permanent Nursing,Fshc  1St Floor,620.20, 01-Aug-2017
1606,Revenue,CAHD,Bed Purchasing - North,Permanent Nursing,Fshc  1St Floor,2228.00, 29-Aug-2017
1607,Revenue,CAHD,South Glos Users in South Glos Homes,Permanent Nursing,Fshc  1St Floor,620.20, 29-Aug-2017
1608,Revenue,CAHD,Bed Purchasing - North,Permanent Nursing,Fshc  1St Floor,2228.00, 01-Aug-2017
1609,Revenue,CAHD,South Glos Users in South Glos Homes,Permanent Nursing,Fshc  1St Floor,620.20, 01-Aug-2017
1610,Revenue,CAHD,Bed Purchasing - North,Permanent Nursing,Fshc  1St Floor,2228.00, 29-Aug-2017
1611,Revenue,CAHD,South Glos Users in South Glos Homes,Permanent Nursing,Fshc  1St Floor,620.20, 29-Aug-2017
1612,Revenue,CAHD,South Glos Users in South Glos Homes,Permanent Nursing,Fshc  1St Floor,620.20, 01-Aug-2017
1613,Revenue,CAHD,South Glos Users in South Glos Homes,Permanent Nursing,Fshc  1St Floor,620.20, 29-Aug-2017
1614,Revenue,CAHD,South Glos Users in South Glos Homes,Permanent Nursing,Fshc  1St Floor,620.20, 01-Aug-2017
1615,Revenue,CAHD,South Glos Users in South Glos Homes,Permanent Nursing,Fshc  1St Floor,620.20, 29-Aug-2017
1616,Revenue,CAHD,South Glos Users in South Glos Homes,Permanent Nursing,Fshc  1St Floor,620.20, 01-Aug-2017
1617,Revenue,CAHD,South Glos Users in South Glos Homes,Permanent Nursing,Fshc  1St Floor,620.20, 29-Aug-2017
1618,Revenue,CAHD,South Glos Users in South Glos Homes,Permanent Nursing,Fshc  1St Floor,620.20, 01-Aug-2017
1619,Revenue,CAHD,South Glos Users in South Glos Homes,Permanent Nursing,Fshc  1St Floor,620.20, 29-Aug-2017
1620,Revenue,CAHD,South Glos Users in South Glos Homes,Permanent Nursing,Fshc  1St Floor,620.20, 01-Aug-2017
1621,Revenue,CAHD,Bed Purchasing - Southmead Hospital,Respite Planned - Residential,Fshc  1St Floor,2864.57, 29-Aug-2017
1622,Revenue,CAHD,Bed Purchasing - Southmead Hospital,Permanent Nursing,Fshc  1St Floor,2546.29, 29-Aug-2017
1623,Revenue,CAHD,Bed Purchasing - Southmead Hospital,Permanent Nursing,Fshc  1St Floor,2228.00, 29-Aug-2017
1624,Revenue,CAHD,South Glos Users in South Glos Homes,Permanent Nursing,Fshc  1St Floor,620.20, 29-Aug-2017
1625,Revenue,CAHD,Bed Purchasing - Southmead Hospital,Respite Planned - Residential,Fshc  1St Floor,557.00, 29-Aug-2017
1626,Revenue,CAHD,South Glos Users in South Glos Homes,Permanent Nursing,Fshc  1St Floor,620.20, 01-Aug-2017
1627,Revenue,CAHD,South Glos Users in South Glos Homes,Permanent Nursing,Fshc  1St Floor,620.20, 29-Aug-2017
1628,Revenue,CAHD,South Glos Users in South Glos Homes,Permanent Nursing,Fshc  1St Floor,620.20, 01-Aug-2017
1629,Revenue,CAHD,South Glos Users in South Glos Homes,Permanent Nursing,Fshc  1St Floor,620.20, 29-Aug-2017
1630,Revenue,CAHD,South Glos Users in South Glos Homes,Permanent Nursing,Fshc  1St Floor,620.20, 01-Aug-2017
1631,Revenue,CAHD,Bed Purchasing - North,Permanent Nursing,Fshc  1St Floor,1476.00, 01-Aug-2017
1632,Revenue,CAHD,Bed Purchasing - North,Permanent Nursing,Fshc  1St Floor,2228.00, 01-Aug-2017
1633,Revenue,CAHD,South Glos Users in South Glos Homes,Permanent Nursing,Fshc  1St Floor,620.20, 01-Aug-2017
1634,Revenue,CAHD,Bed Purchasing - North,Permanent Nursing,Fshc  1St Floor,2228.00, 29-Aug-2017
1635,Revenue,CAHD,South Glos Users in South Glos Homes,Permanent Nursing,Fshc  1St Floor,620.20, 29-Aug-2017
1636,Revenue,CAHD,Bed Purchasing - Southmead Hospital,Permanent Nursing,Fshc  1St Floor,2192.12, 01-Aug-2017
1637,Revenue,CAHD,South Glos Users in South Glos Homes,Permanent Nursing,Fshc  1St Floor,620.20, 01-Aug-2017
1638,Revenue,CAHD,Bed Purchasing - Southmead Hospital,Permanent Nursing,Fshc  1St Floor,2192.12, 29-Aug-2017
1639,Revenue,CAHD,South Glos Users in South Glos Homes,Permanent Nursing,Fshc  1St Floor,620.20, 29-Aug-2017
1640,Revenue,CAHD,Bed Purchasing - North,Permanent Nursing,Fshc  1St Floor,2228.00, 01-Aug-2017
1641,Revenue,CAHD,South Glos Users in South Glos Homes,Permanent Nursing,Fshc  1St Floor,620.20, 01-Aug-2017
1642,Revenue,CAHD,Bed Purchasing - North,Permanent Nursing,Fshc  1St Floor,2228.00, 29-Aug-2017
1643,Revenue,CAHD,South Glos Users in South Glos Homes,Permanent Nursing,Fshc  1St Floor,620.20, 29-Aug-2017
1644,Revenue,CAHD,Bed Purchasing - North,Fees & Charges Income - General,Fshc  1St Floor,1804.11, 29-Aug-2017
1645,Revenue,CAHD,Bed Purchasing - North,Permanent Nursing,Fshc  1St Floor,2228.00, 01-Aug-2017
1646,Revenue,CAHD,South Glos Users in South Glos Homes,Permanent Nursing,Fshc  1St Floor,620.20, 01-Aug-2017
1647,Revenue,CAHD,Bed Purchasing - North,Permanent Nursing,Fshc  1St Floor,2228.00, 29-Aug-2017
1648,Revenue,CAHD,South Glos Users in South Glos Homes,Permanent Nursing,Fshc  1St Floor,620.20, 29-Aug-2017
1649,Revenue,CAHD,South Glos Users in South Glos Homes,Permanent Nursing,Fshc  1St Floor,620.20, 01-Aug-2017
1650,Revenue,CAHD,South Glos Users in South Glos Homes,Permanent Nursing,Fshc  1St Floor,620.20, 29-Aug-2017
1651,Revenue,CAHD,Bed Purchasing - North,Permanent Nursing,Fshc  1St Floor,2228.00, 01-Aug-2017
1652,Revenue,CAHD,South Glos Users in South Glos Homes,Permanent Nursing,Fshc  1St Floor,620.20, 01-Aug-2017
1653,Revenue,CAHD,Bed Purchasing - North,Permanent Nursing,Fshc  1St Floor,2228.00, 29-Aug-2017
1654,Revenue,CAHD,South Glos Users in South Glos Homes,Permanent Nursing,Fshc  1St Floor,620.20, 29-Aug-2017
1655,Revenue,CAHD,Bed Purchasing - North,Permanent Nursing,Fshc  1St Floor,2228.00, 01-Aug-2017
1656,Revenue,CAHD,South Glos Users in South Glos Homes,Permanent Nursing,Fshc  1St Floor,620.20, 01-Aug-2017
1657,Revenue,CAHD,Bed Purchasing - North,Permanent Nursing,Fshc  1St Floor,2228.00, 29-Aug-2017
1658,Revenue,CAHD,South Glos Users in South Glos Homes,Permanent Nursing,Fshc  1St Floor,620.20, 29-Aug-2017
1659,Revenue,CAHD,Bed Purchasing - North,Permanent Nursing,Fshc  1St Floor,2256.96, 01-Aug-2017
1660,Revenue,CAHD,South Glos Users in South Glos Homes,Permanent Nursing,Fshc  1St Floor,620.20, 01-Aug-2017
1661,Revenue,CAHD,Bed Purchasing - North,Permanent Nursing,Fshc  1St Floor,2256.96, 29-Aug-2017
1662,Revenue,CAHD,South Glos Users in South Glos Homes,Permanent Nursing,Fshc  1St Floor,620.20, 29-Aug-2017
1663,Revenue,CAHD,Bed Purchasing - North,Permanent Nursing,Fshc  1St Floor,2228.00, 01-Aug-2017
1664,Revenue,CAHD,South Glos Users in South Glos Homes,Permanent Nursing,Fshc  1St Floor,620.20, 01-Aug-2017
1665,Revenue,CAHD,Bed Purchasing - North,Permanent Nursing,Fshc  1St Floor,2228.00, 29-Aug-2017
1666,Revenue,CAHD,South Glos Users in South Glos Homes,Permanent Nursing,Fshc  1St Floor,620.20, 29-Aug-2017
1667,Revenue,CAHD,Bed Purchasing - Southmead Hospital,Permanent Nursing,Fshc  1St Floor,2228.00, 01-Aug-2017
1668,Revenue,CAHD,South Glos Users in South Glos Homes,Permanent Nursing,Fshc  1St Floor,620.20, 01-Aug-2017
1669,Revenue,CAHD,Bed Purchasing - Southmead Hospital,Permanent Nursing,Fshc  1St Floor,2228.00, 29-Aug-2017
1670,Revenue,CAHD,South Glos Users in South Glos Homes,Permanent Nursing,Fshc  1St Floor,620.20, 29-Aug-2017
1671,Revenue,CAHD,Bed Purchasing - North,Permanent Nursing,Fshc  1St Floor,2296.00, 01-Aug-2017
1672,Revenue,CAHD,South Glos Users in South Glos Homes,Permanent Nursing,Fshc  1St Floor,620.20, 01-Aug-2017
1673,Revenue,CAHD,Bed Purchasing - North,Permanent Nursing,Fshc  1St Floor,10004.00, 29-Aug-2017
1674,Revenue,CAHD,Bed Purchasing - North,Permanent Nursing,Fshc  1St Floor,2296.00, 29-Aug-2017
1675,Revenue,CAHD,South Glos Users in South Glos Homes,Permanent Nursing,Fshc  1St Floor,620.20, 29-Aug-2017
1676,Revenue,CAHD,Bed Purchasing - North,Fees & Charges Income - General,Fshc  1St Floor,2324.06, 29-Aug-2017
1677,Revenue,CAHD,Bed Purchasing - North,Permanent Nursing,Fshc  1St Floor,2228.00, 01-Aug-2017
1678,Revenue,CAHD,South Glos Users in South Glos Homes,Permanent Nursing,Fshc  1St Floor,620.20, 01-Aug-2017
1679,Revenue,CAHD,Bed Purchasing - North,Permanent Nursing,Fshc  1St Floor,2228.00, 29-Aug-2017
1680,Revenue,CAHD,South Glos Users in South Glos Homes,Permanent Nursing,Fshc  1St Floor,620.20, 29-Aug-2017
1681,Revenue,CAHD,Bed Purchasing - North,Permanent Nursing,Fshc  1St Floor,2228.00, 01-Aug-2017
1682,Revenue,CAHD,South Glos Users in South Glos Homes,Permanent Nursing,Fshc  1St Floor,620.20, 01-Aug-2017
1683,Revenue,CAHD,Bed Purchasing - North,Permanent Nursing,Fshc  1St Floor,2228.00, 29-Aug-2017
1684,Revenue,CAHD,South Glos Users in South Glos Homes,Permanent Nursing,Fshc  1St Floor,620.20, 29-Aug-2017
1685,Revenue,CAHD,Bed Purchasing - North,Permanent Nursing,Fshc  1St Floor,2296.00, 01-Aug-2017
1686,Revenue,CAHD,South Glos Users in South Glos Homes,Permanent Nursing,Fshc  1St Floor,620.20, 01-Aug-2017
1687,Revenue,CAHD,Bed Purchasing - North,Permanent Nursing,Fshc  1St Floor,2296.00, 29-Aug-2017
1688,Revenue,CAHD,South Glos Users in South Glos Homes,Permanent Nursing,Fshc  1St Floor,620.20, 29-Aug-2017
1689,Revenue,CAHD,Bed Purchasing - Southmead Hospital,Permanent Nursing,Fshc  1St Floor,2382.56, 01-Aug-2017
1690,Revenue,CAHD,South Glos Users in South Glos Homes,Permanent Nursing,Fshc  1St Floor,620.20, 01-Aug-2017
1691,Revenue,CAHD,Bed Purchasing - Southmead Hospital,Permanent Nursing,Fshc  1St Floor,2382.56, 29-Aug-2017
1692,Revenue,CAHD,South Glos Users in South Glos Homes,Permanent Nursing,Fshc  1St Floor,620.20, 29-Aug-2017
1693,Revenue,CAHD,South Glos Users in South Glos Homes,Permanent Nursing,Fshc  1St Floor,620.20, 01-Aug-2017
1694,Revenue,CAHD,South Glos Users in South Glos Homes,Permanent Nursing,Fshc  1St Floor,620.20, 29-Aug-2017
1695,Revenue,CAHD,Bed Purchasing - North,Permanent Nursing,Fshc  1St Floor,2228.00, 01-Aug-2017
1696,Revenue,CAHD,South Glos Users in South Glos Homes,Permanent Nursing,Fshc  1St Floor,620.20, 01-Aug-2017
1697,Revenue,CAHD,Bed Purchasing - North,Permanent Nursing,Fshc  1St Floor,2228.00, 29-Aug-2017
1698,Revenue,CAHD,South Glos Users in South Glos Homes,Permanent Nursing,Fshc  1St Floor,620.20, 29-Aug-2017
1699,Revenue,CAHD,South Glos Users in South Glos Homes,Permanent Nursing,Fshc  1St Floor,620.20, 01-Aug-2017
1700,Revenue,CAHD,South Glos Users in South Glos Homes,Permanent Nursing,Fshc  1St Floor,620.20, 29-Aug-2017
1701,Revenue,CAHD,Bed Purchasing - Southmead Hospital,Permanent Nursing,Fshc  1St Floor,3100.00, 29-Aug-2017
1702,Revenue,CAHD,Bed Purchasing - Southmead Hospital,Permanent Nursing,Fshc  1St Floor,3100.00, 29-Aug-2017
1703,Revenue,CAHD,South Glos Users in South Glos Homes,Permanent Nursing,Fshc  1St Floor,620.20, 01-Aug-2017
1704,Revenue,CAHD,South Glos Users in South Glos Homes,Permanent Nursing,Fshc  1St Floor,620.20, 29-Aug-2017
1705,Revenue,CAHD,South Glos Users in South Glos Homes,Permanent Nursing,Fshc  1St Floor,620.20, 01-Aug-2017
1706,Revenue,CAHD,South Glos Users in South Glos Homes,Permanent Nursing,Fshc  1St Floor,620.20, 29-Aug-2017
1707,Revenue,CAHD,South Glos Users in South Glos Homes,Permanent Nursing,Fshc  1St Floor,620.20, 01-Aug-2017
1708,Revenue,CAHD,South Glos Users in South Glos Homes,Permanent Nursing,Fshc  1St Floor,620.20, 29-Aug-2017
1709,Revenue,CAHD,South Glos Users in South Glos Homes,Permanent Nursing,Fshc  1St Floor,886.00, 01-Aug-2017
1710,Revenue,CAHD,South Glos Users in South Glos Homes,Permanent Nursing,Fshc  1St Floor,620.20, 01-Aug-2017
1711,Revenue,CAHD,South Glos Users in South Glos Homes,Permanent Nursing,Fshc  1St Floor,620.20, 29-Aug-2017
1712,Revenue,CAHD,South Glos Users in South Glos Homes,Permanent Nursing,Fshc  1St Floor,620.20, 01-Aug-2017
1713,Revenue,CAHD,South Glos Users in South Glos Homes,Permanent Nursing,Fshc  1St Floor,620.20, 29-Aug-2017
1714,Revenue,CAHD,Bed Purchasing - South,Permanent Nursing,Fshc  1St Floor,2507.16, 01-Aug-2017
1715,Revenue,CAHD,South Glos Users in South Glos Homes,Permanent Nursing,Fshc  1St Floor,620.20, 01-Aug-2017
1716,Revenue,CAHD,Bed Purchasing - South,Permanent Nursing,Fshc  1St Floor,2507.16, 29-Aug-2017
1717,Revenue,CAHD,South Glos Users in South Glos Homes,Permanent Nursing,Fshc  1St Floor,620.20, 29-Aug-2017
1718,Revenue,CAHD,South Glos Users in South Glos Homes,Permanent Nursing,Fshc  1St Floor,620.20, 01-Aug-2017
1719,Revenue,CAHD,Bed Purchasing - North,Permanent Nursing,Fshc  1St Floor,2228.00, 01-Aug-2017
1720,Revenue,CAHD,South Glos Users in South Glos Homes,Permanent Nursing,Fshc  1St Floor,620.20, 29-Aug-2017
1721,Revenue,CAHD,Bed Purchasing - North,Permanent Nursing,Fshc  1St Floor,2228.00, 29-Aug-2017
1722,Revenue,CAHD,Bed Purchasing - North,Respite Emergency - Nursing,Fshc  1St Floor,569.95, 01-Aug-2017
1723,Revenue,CAHD,South Glos Users in South Glos Homes,Permanent Nursing,Fshc  1St Floor,620.20, 01-Aug-2017
1724,Revenue,CAHD,South Glos Users in South Glos Homes,Permanent Nursing,Fshc  1St Floor,620.20, 29-Aug-2017
1725,Revenue,CAHD,South Glos Users in South Glos Homes,Permanent Nursing,Fshc  1St Floor,620.20, 01-Aug-2017
1726,Revenue,CAHD,South Glos Users in South Glos Homes,Permanent Nursing,Fshc  1St Floor,620.20, 29-Aug-2017
1727,Revenue,CAHD,Bed Purchasing - Southmead Hospital,Permanent Residential,Fshc  1St Floor,2072.00, 01-Aug-2017
1728,Revenue,CAHD,Bed Purchasing - Southmead Hospital,Permanent Residential,Fshc  1St Floor,2072.00, 29-Aug-2017
1729,Revenue,CAHD,Bed Purchasing - Southmead Hospital,Permanent Nursing,Fshc  1St Floor,2479.80, 01-Aug-2017
1730,Revenue,CAHD,South Glos Users in South Glos Homes,Permanent Nursing,Fshc  1St Floor,620.20, 01-Aug-2017
1731,Revenue,CAHD,Bed Purchasing - Southmead Hospital,Permanent Nursing,Fshc  1St Floor,2479.80, 29-Aug-2017
1732,Revenue,CAHD,South Glos Users in South Glos Homes,Permanent Nursing,Fshc  1St Floor,620.20, 29-Aug-2017
1733,Revenue,CAHD,South Glos Users in South Glos Homes,Permanent Nursing,Fshc  1St Floor,620.20, 01-Aug-2017
1734,Revenue,CAHD,South Glos Users in South Glos Homes,Permanent Nursing,Fshc  1St Floor,620.20, 29-Aug-2017
1735,Revenue,CAHD,Bed Purchasing - Southmead Hospital,Respite Planned - Nursing,Fshc  1St Floor,2479.80, 01-Aug-2017
1736,Revenue,CAHD,South Glos Users in South Glos Homes,Permanent Nursing,Fshc  1St Floor,620.20, 01-Aug-2017
1737,Revenue,CAHD,South Glos Users in South Glos Homes,Permanent Nursing,Fshc  1St Floor,620.20, 29-Aug-2017
1738,Revenue,CAHD,Bed Purchasing - Southmead Hospital,Respite Planned - Nursing,Fshc  1St Floor,619.95, 29-Aug-2017
1739,Revenue,CAHD,South Glos Users in South Glos Homes,Permanent Nursing,Fshc  1St Floor,620.20, 01-Aug-2017
1740,Revenue,CAHD,South Glos Users in South Glos Homes,Permanent Nursing,Fshc  1St Floor,620.20, 29-Aug-2017
1741,Revenue,CAHD,Bed Purchasing - Southmead Hospital,Permanent Nursing,Fshc  1St Floor,2405.88, 01-Aug-2017
1742,Revenue,CAHD,South Glos Users in South Glos Homes,Permanent Nursing,Fshc  1St Floor,620.20, 01-Aug-2017
1743,Revenue,CAHD,Bed Purchasing - Southmead Hospital,Permanent Nursing,Fshc  1St Floor,2405.88, 29-Aug-2017
1744,Revenue,CAHD,South Glos Users in South Glos Homes,Permanent Nursing,Fshc  1St Floor,620.20, 29-Aug-2017
1745,Revenue,CAHD,Bed Purchasing - Southmead Hospital,Respite Planned - Nursing,Fshc  1St Floor,2900.00, 29-Aug-2017
1746,Revenue,CAHD,Bed Purchasing - Southmead Hospital,Respite Planned - Nursing,Fshc  1St Floor,2589.29, 29-Aug-2017
1747,Revenue,CAHD,Bed Purchasing - North,Respite Emergency - Residential,Fshc  1St Floor,2507.16, 01-Aug-2017
1748,Revenue,CAHD,Bed Purchasing - North,Respite Emergency - Residential,Fshc  1St Floor,1767.86, 01-Aug-2017
1749,Revenue,CAHD,South Glos Users in South Glos Homes,Permanent Nursing,Fshc  1St Floor,620.20, 01-Aug-2017
1750,Revenue,CAHD,South Glos Users in South Glos Homes,Permanent Nursing,Fshc  1St Floor,620.20, 29-Aug-2017
1751,Revenue,CAHD,Bed Purchasing - North,Respite Emergency - Nursing,Fshc  1St Floor,2507.16, 29-Aug-2017
1752,Revenue,CAHD,Bed Purchasing - North,Respite Emergency - Nursing,Fshc  1St Floor,1767.86, 29-Aug-2017
1753,Revenue,CAHD,South Glos Users in South Glos Homes,Permanent Nursing,Fshc  1St Floor,2370.05, 01-Aug-2017
1754,Revenue,CAHD,South Glos Users in South Glos Homes,Permanent Nursing,Fshc  1St Floor,781.25, 01-Aug-2017
1755,Revenue,CAHD,South Glos Users in South Glos Homes,Permanent Nursing,Fshc  1St Floor,620.20, 01-Aug-2017
1756,Revenue,CAHD,South Glos Users in South Glos Homes,Permanent Nursing,Fshc  1St Floor,620.20, 01-Aug-2017
1757,Revenue,CAHD,South Glos Users in South Glos Homes,Permanent Nursing,Fshc  1St Floor,620.20, 29-Aug-2017
1758,Revenue,CAHD,Bed Purchasing - North,Permanent Nursing,Fshc  1St Floor,2549.24, 01-Aug-2017
1759,Revenue,CAHD,Bed Purchasing - North,Permanent Nursing,Fshc  1St Floor,2549.24, 29-Aug-2017
1760,Revenue,CAHD,Bed Purchasing - Southmead Hospital,Permanent Nursing,Fshc  1St Floor,2507.16, 01-Aug-2017
1761,Revenue,CAHD,South Glos Users in South Glos Homes,Permanent Nursing,Fshc  1St Floor,620.20, 01-Aug-2017
1762,Revenue,CAHD,Bed Purchasing - Southmead Hospital,Permanent Nursing,Fshc  1St Floor,2507.16, 29-Aug-2017
1763,Revenue,CAHD,South Glos Users in South Glos Homes,Permanent Nursing,Fshc  1St Floor,620.20, 29-Aug-2017
1764,Revenue,CAHD,South Glos Users in South Glos Homes,Permanent Nursing,Fshc  1St Floor,3270.48, 29-Aug-2017
1765,Revenue,CAHD,Bed Purchasing - North,Permanent Nursing,Fshc  1St Floor,2296.00, 01-Aug-2017
1766,Revenue,CAHD,South Glos Users in South Glos Homes,Permanent Nursing,Fshc  1St Floor,620.20, 01-Aug-2017
1767,Revenue,CAHD,Bed Purchasing - North,Permanent Nursing,Fshc  1St Floor,2296.00, 29-Aug-2017
1768,Revenue,CAHD,South Glos Users in South Glos Homes,Permanent Nursing,Fshc  1St Floor,620.20, 29-Aug-2017
1769,Revenue,CAHD,South Glos Users in South Glos Homes,Permanent Nursing,Fshc  1St Floor,620.20, 01-Aug-2017
1770,Revenue,CAHD,South Glos Users in South Glos Homes,Permanent Nursing,Fshc  1St Floor,620.20, 29-Aug-2017
1771,Revenue,CAHD,Bed Purchasing - Southmead Hospital,Permanent Nursing,Fshc  1St Floor,2228.00, 01-Aug-2017
1772,Revenue,CAHD,South Glos Users in South Glos Homes,Permanent Nursing,Fshc  1St Floor,620.20, 01-Aug-2017
1773,Revenue,CAHD,Bed Purchasing - Southmead Hospital,Permanent Nursing,Fshc  1St Floor,2228.00, 29-Aug-2017
1774,Revenue,CAHD,South Glos Users in South Glos Homes,Permanent Nursing,Fshc  1St Floor,620.20, 29-Aug-2017
1775,Revenue,CAHD,Bed Purchasing - Southmead Hospital,Permanent Residential,Fshc  1St Floor,3100.00, 01-Aug-2017
1776,Revenue,CAHD,Bed Purchasing - Southmead Hospital,Permanent Residential,Fshc  1St Floor,3100.00, 29-Aug-2017
1777,Revenue,CAHD,South Glos Users in South Glos Homes,Permanent Nursing,Fshc  1St Floor,620.20, 01-Aug-2017
1778,Revenue,CAHD,South Glos Users in South Glos Homes,Permanent Nursing,Fshc  1St Floor,620.20, 29-Aug-2017
1779,Revenue,CAHD,Bed Purchasing - North,Permanent Nursing,Fshc  1St Floor,2410.72, 01-Aug-2017
1780,Revenue,CAHD,South Glos Users in South Glos Homes,Permanent Nursing,Fshc  1St Floor,620.20, 01-Aug-2017
1781,Revenue,CAHD,Bed Purchasing - North,Permanent Nursing,Fshc  1St Floor,2410.72, 29-Aug-2017
1782,Revenue,CAHD,South Glos Users in South Glos Homes,Permanent Nursing,Fshc  1St Floor,620.20, 29-Aug-2017
1783,Revenue,CAHD,Bed Purchasing - North,Permanent Nursing,Fshc  1St Floor,2228.00, 01-Aug-2017
1784,Revenue,CAHD,South Glos Users in South Glos Homes,Permanent Nursing,Fshc  1St Floor,620.20, 01-Aug-2017
1785,Revenue,CAHD,South Glos Users in South Glos Homes,Permanent Nursing,Fshc  1St Floor,620.20, 29-Aug-2017
1786,Revenue,CAHD,Bed Purchasing - North,Permanent Nursing,Fshc  1St Floor,2228.00, 29-Aug-2017
1787,Revenue,CAHD,Bed Purchasing - North,Fees & Charges Income - General,Fshc  1St Floor,1096.79, 29-Aug-2017
1788,Revenue,CAHD,Bed Purchasing - South,Permanent Nursing,Fshc  1St Floor,2507.16, 01-Aug-2017
1789,Revenue,CAHD,South Glos Users in South Glos Homes,Permanent Nursing,Fshc  1St Floor,620.20, 01-Aug-2017
1790,Revenue,CAHD,Bed Purchasing - South,Permanent Nursing,Fshc  1St Floor,2507.16, 29-Aug-2017
1791,Revenue,CAHD,South Glos Users in South Glos Homes,Permanent Nursing,Fshc  1St Floor,620.20, 29-Aug-2017
1792,Revenue,CAHD,Bed Purchasing - Southmead Hospital,Permanent Nursing,Fshc  1St Floor,2296.00, 01-Aug-2017
1793,Revenue,CAHD,South Glos Users in South Glos Homes,Permanent Nursing,Fshc  1St Floor,620.20, 01-Aug-2017
1794,Revenue,CAHD,Bed Purchasing - Southmead Hospital,Permanent Nursing,Fshc  1St Floor,2296.00, 29-Aug-2017
1795,Revenue,CAHD,South Glos Users in South Glos Homes,Permanent Nursing,Fshc  1St Floor,620.20, 29-Aug-2017
1796,Revenue,CAHD,Bed Purchasing - South,Permanent Nursing,Fshc  1St Floor,2431.20, 01-Aug-2017
1797,Revenue,CAHD,Bed Purchasing - South,Permanent Nursing,Fshc  1St Floor,2431.20, 29-Aug-2017
1798,Revenue,CAHD,South Glos Users in South Glos Homes,Permanent Nursing,Fshc  1St Floor,620.20, 01-Aug-2017
1799,Revenue,CAHD,South Glos Users in South Glos Homes,Permanent Nursing,Fshc  1St Floor,620.20, 29-Aug-2017
1800,Revenue,CAHD,Bed Purchasing - South,Permanent Nursing,Fshc  1St Floor,2228.00, 01-Aug-2017
1801,Revenue,CAHD,South Glos Users in South Glos Homes,Permanent Nursing,Fshc  1St Floor,620.20, 01-Aug-2017
1802,Revenue,CAHD,Bed Purchasing - South,Permanent Nursing,Fshc  1St Floor,2500.00, 01-Aug-2017
1803,Revenue,CAHD,Bed Purchasing - South,Permanent Nursing,Fshc  1St Floor,1071.43, 01-Aug-2017
1804,Revenue,CAHD,South Glos Users in South Glos Homes,Permanent Nursing,Fshc  1St Floor,2990.25, 29-Aug-2017
1805,Revenue,CAHD,South Glos Users in South Glos Homes,Permanent Nursing,Fshc  1St Floor,1473.21, 29-Aug-2017
1806,Revenue,CAHD,Bed Purchasing - South,Permanent Nursing,Fshc  1St Floor,3571.43, 29-Aug-2017
1807,Revenue,CAHD,Bed Purchasing - South,Permanent Nursing,Fshc  1St Floor,2500.00, 29-Aug-2017
1808,Revenue,CAHD,South Glos Users in South Glos Homes,Permanent Nursing,Fshc  1St Floor,620.20, 29-Aug-2017
1809,Revenue,CAHD,Bed Purchasing - South,Fees & Charges Income - General,Fshc  1St Floor,660.57, 29-Aug-2017
1810,Revenue,CAHD,Bed Purchasing - South,Fees & Charges Income - General,Fshc  1St Floor,749.08, 29-Aug-2017
1811,Revenue,CAHD,Bed Purchasing - Southmead Hospital,Permanent Nursing,Fshc  1St Floor,2228.00, 01-Aug-2017
1812,Revenue,CAHD,South Glos Users in South Glos Homes,Permanent Nursing,Fshc  1St Floor,620.20, 01-Aug-2017
1813,Revenue,CAHD,Bed Purchasing - Southmead Hospital,Permanent Nursing,Fshc  1St Floor,2228.00, 29-Aug-2017
1814,Revenue,CAHD,South Glos Users in South Glos Homes,Permanent Nursing,Fshc  1St Floor,620.20, 29-Aug-2017
1815,Revenue,CAHD,South Glos Users in South Glos Homes,Permanent Nursing,Fshc  1St Floor,620.20, 01-Aug-2017
1816,Revenue,CAHD,South Glos Users in South Glos Homes,Permanent Nursing,Fshc  1St Floor,620.20, 29-Aug-2017
1817,Revenue,CAHD,South Glos Users in South Glos Homes,Permanent Nursing,Fshc  1St Floor,620.20, 01-Aug-2017
1818,Revenue,CAHD,South Glos Users in South Glos Homes,Permanent Nursing,Fshc  1St Floor,620.20, 29-Aug-2017
1819,Revenue,CAHD,Bed Purchasing - South,Permanent Residential,Fshc  1St Floor,2182.36, 01-Aug-2017
1820,Revenue,CAHD,Bed Purchasing - South,Permanent Residential,Fshc  1St Floor,2182.36, 29-Aug-2017
1821,Revenue,CAHD,Bed Purchasing - North,Respite Emergency - Residential,Fshc  1St Floor,928.57, 29-Aug-2017
1822,Revenue,CAHD,Bed Purchasing - North,Respite Emergency - Nursing,Fshc  1St Floor,928.57, 29-Aug-2017
1823,Revenue,CAHD,Bed Purchasing - North,Permanent Nursing,Fshc  1St Floor,2228.00, 01-Aug-2017
1824,Revenue,CAHD,South Glos Users in South Glos Homes,Permanent Nursing,Fshc  1St Floor,620.20, 01-Aug-2017
1825,Revenue,CAHD,Bed Purchasing - North,Permanent Nursing,Fshc  1St Floor,2228.00, 29-Aug-2017
1826,Revenue,CAHD,South Glos Users in South Glos Homes,Permanent Nursing,Fshc  1St Floor,620.20, 29-Aug-2017
1827,Revenue,CAHD,Bed Purchasing - Southmead Hospital,Permanent Residential,Fshc  1St Floor,1480.00, 29-Aug-2017
1828,Revenue,CAHD,Bed Purchasing - Southmead Hospital,Permanent Residential,Fshc  1St Floor,1406.00, 29-Aug-2017
1829,Revenue,CAHD,Bed Purchasing - Southmead Hospital,Permanent Residential,Fshc  1St Floor,592.00, 29-Aug-2017
1830,Revenue,CAHD,Bed Purchasing - South,Permanent Nursing,Fshc  1St Floor,2228.00, 01-Aug-2017
1831,Revenue,CAHD,South Glos Users in South Glos Homes,Permanent Nursing,Fshc  1St Floor,620.20, 01-Aug-2017
1832,Revenue,CAHD,Bed Purchasing - South,Permanent Nursing,Fshc  1St Floor,2228.00, 29-Aug-2017
1833,Revenue,CAHD,South Glos Users in South Glos Homes,Permanent Nursing,Fshc  1St Floor,620.20, 29-Aug-2017
1834,Revenue,CAHD,South Glos Users in South Glos Homes,Permanent Nursing,Fshc  1St Floor,620.20, 01-Aug-2017
1835,Revenue,CAHD,South Glos Users in South Glos Homes,Permanent Nursing,Fshc  1St Floor,620.20, 29-Aug-2017
1836,Revenue,CAHD,South Glos Users in South Glos Homes,Permanent Nursing,Fshc  1St Floor,708.80, 01-Aug-2017
1837,Revenue,CAHD,South Glos Users in South Glos Homes,Permanent Nursing,Fshc  1St Floor,620.20, 01-Aug-2017
1838,Revenue,CAHD,South Glos Users in South Glos Homes,Permanent Nursing,Fshc  1St Floor,620.20, 29-Aug-2017
1839,Revenue,CAHD,Bed Purchasing - Southmead Hospital,Permanent Nursing,Fshc  1St Floor,2258.92, 01-Aug-2017
1840,Revenue,CAHD,South Glos Users in South Glos Homes,Permanent Nursing,Fshc  1St Floor,620.20, 01-Aug-2017
1841,Revenue,CAHD,Bed Purchasing - Southmead Hospital,Permanent Nursing,Fshc  1St Floor,2258.92, 29-Aug-2017
1842,Revenue,CAHD,South Glos Users in South Glos Homes,Permanent Nursing,Fshc  1St Floor,620.20, 29-Aug-2017
1843,Revenue,CAHD,South Glos Users in South Glos Homes,Permanent Nursing,Fshc  1St Floor,620.20, 01-Aug-2017
1844,Revenue,CAHD,South Glos Users in South Glos Homes,Permanent Nursing,Fshc  1St Floor,620.20, 29-Aug-2017
1845,Revenue,CAHD,South Glos Users in South Glos Homes,Permanent Nursing,Fshc  1St Floor,620.20, 01-Aug-2017
1846,Revenue,CAHD,South Glos Users in South Glos Homes,Permanent Nursing,Fshc  1St Floor,620.20, 29-Aug-2017
1847,Revenue,CAHD,Bed Purchasing - South,Permanent Residential,Fshc  1St Floor,2600.00, 01-Aug-2017
1848,Revenue,CAHD,Bed Purchasing - South,Permanent Residential,Fshc  1St Floor,2600.00, 29-Aug-2017
1849,Revenue,CAHD,Bed Purchasing - Southmead Hospital,Permanent Residential,Fshc  1St Floor,2300.00, 29-Aug-2017
1850,Revenue,CAHD,Bed Purchasing - Southmead Hospital,Permanent Residential,Fshc  1St Floor,2300.00, 29-Aug-2017
1851,Revenue,CAHD,Bed Purchasing - North,Permanent Residential,Fshc  1St Floor,930.27, 29-Aug-2017
1852,Revenue,CAHD,Bed Purchasing - Southmead Hospital,Permanent Residential,Fshc  1St Floor,2300.00, 29-Aug-2017
1853,Revenue,CAHD,Bed Purchasing - Southmead Hospital,Permanent Residential,Fshc  1St Floor,903.57, 29-Aug-2017
1854,Revenue,CAHD,Bed Purchasing - South,Permanent Residential,Fshc  1St Floor,2140.00, 01-Aug-2017
1855,Revenue,CAHD,Bed Purchasing - South,Permanent Residential,Fshc  1St Floor,2140.00, 29-Aug-2017
1856,Revenue,CAHD,Bed Purchasing - Southmead Hospital,Permanent Nursing,Fshc  1St Floor,2296.00, 01-Aug-2017
1857,Revenue,CAHD,South Glos Users in South Glos Homes,Permanent Nursing,Fshc  1St Floor,620.20, 01-Aug-2017
1858,Revenue,CAHD,Bed Purchasing - Southmead Hospital,Permanent Nursing,Fshc  1St Floor,2296.00, 29-Aug-2017
1859,Revenue,CAHD,South Glos Users in South Glos Homes,Permanent Nursing,Fshc  1St Floor,620.20, 29-Aug-2017
1860,Revenue,CAHD,Bed Purchasing - South,Permanent Nursing,Fshc  1St Floor,2836.40, 01-Aug-2017
1861,Revenue,CAHD,South Glos Users in South Glos Homes,Permanent Nursing,Fshc  1St Floor,620.20, 01-Aug-2017
1862,Revenue,CAHD,Bed Purchasing - South,Permanent Nursing,Fshc  1St Floor,2836.40, 29-Aug-2017
1863,Revenue,CAHD,Bed Purchasing - South,Permanent Nursing,Fshc  1St Floor,1220.03, 29-Aug-2017
1864,Revenue,CAHD,South Glos Users in South Glos Homes,Permanent Nursing,Fshc  1St Floor,620.20, 29-Aug-2017
1865,Revenue,CAHD,Bed Purchasing - Southmead Hospital,Permanent Nursing,Fshc  1St Floor,2228.00, 01-Aug-2017
1866,Revenue,CAHD,South Glos Users in South Glos Homes,Permanent Nursing,Fshc  1St Floor,620.20, 01-Aug-2017
1867,Revenue,CAHD,Bed Purchasing - Southmead Hospital,Permanent Nursing,Fshc  1St Floor,2228.00, 29-Aug-2017
1868,Revenue,CAHD,South Glos Users in South Glos Homes,Permanent Nursing,Fshc  1St Floor,620.20, 29-Aug-2017
1869,Revenue,CAHD,Bed Purchasing - South,Permanent Nursing,Fshc  1St Floor,2633.80, 01-Aug-2017
1870,Revenue,CAHD,South Glos Users in South Glos Homes,Permanent Nursing,Fshc  1St Floor,620.20, 01-Aug-2017
1871,Revenue,CAHD,Bed Purchasing - South,Permanent Nursing,Fshc  1St Floor,2633.80, 29-Aug-2017
1872,Revenue,CAHD,South Glos Users in South Glos Homes,Permanent Nursing,Fshc  1St Floor,620.20, 29-Aug-2017
1873,Revenue,CAHD,Bed Purchasing - South,Permanent Nursing,Fshc  1St Floor,2228.00, 01-Aug-2017
1874,Revenue,CAHD,Bed Purchasing - South,Permanent Nursing,Fshc  1St Floor,2228.00, 29-Aug-2017
1875,Revenue,CAHD,Bed Purchasing - South,Permanent Nursing,Fshc  1St Floor,2228.00, 01-Aug-2017
1876,Revenue,CAHD,South Glos Users in South Glos Homes,Permanent Nursing,Fshc  1St Floor,620.20, 01-Aug-2017
1877,Revenue,CAHD,Bed Purchasing - South,Permanent Nursing,Fshc  1St Floor,2228.00, 29-Aug-2017
1878,Revenue,CAHD,South Glos Users in South Glos Homes,Permanent Nursing,Fshc  1St Floor,620.20, 29-Aug-2017
